{"text_format":"1","workbook":"xlsx","n_sheets":5,"sheets":["Mais-valia","Tabelas IRS","Coeficiente de atualização","Art 13 CIMT","Backup"],"not_rendered":{"charts":0,"images":0,"macros":1,"external_links":0,"defined_names":2,"comments":1,"pivot_tables":0},"unopened":[],"bounds":{"document_bytes":16777216,"sheet_cells":100000,"rows_first":2000,"rows_last":500,"rows_between":2000,"halvings":0,"cell_chars":16384,"cell_head_chars":4096},"cells_cut":0,"cells_raw":0,"read":"whole","date_system":"1900"}

{"sheet":"Mais-valia","index":0,"n_rows":129,"n_cols":31,"rows_kept":129,"cut":false,"hidden":false,"merged":[[110,0,113,0],[125,0,128,0],[83,1,83,2],[83,3,83,4],[94,1,94,2],[94,3,94,4],[100,1,100,2],[100,3,100,4],[107,1,107,2],[107,3,107,4],[117,1,117,2],[117,3,117,4],[123,1,123,2],[123,3,123,4],[106,0,106,16383],[117,5,117,6],[123,5,123,6],[94,5,94,6],[100,5,100,6],[107,5,107,6],[123,7,123,8],[94,9,94,10],[100,9,100,10],[107,9,107,10],[46,5,46,6],[52,5,52,6],[59,5,59,6],[70,5,70,6],[52,11,52,12],[78,0,81,0],[39,0,42,0],[63,0,66,0],[87,0,90,0],[82,0,82,16383],[59,11,59,12],[59,7,59,8],[76,5,76,6],[83,5,83,6],[52,9,52,10],[59,9,59,10],[70,9,70,10],[76,9,76,10],[83,9,83,10],[70,11,70,12],[83,15,83,16],[83,19,83,20],[70,23,70,24],[76,23,76,24],[28,11,28,12],[35,17,35,18],[46,17,46,18],[12,23,12,24],[23,23,23,24],[129,0,129,16383],[76,1,76,2],[59,3,59,4],[76,3,76,4],[28,1,28,2],[28,3,28,4],[23,1,23,2],[23,3,23,4],[23,5,23,6],[28,5,28,6],[35,5,35,6],[46,1,46,2],[46,3,46,4],[70,1,70,2],[70,3,70,4],[35,1,35,2],[35,3,35,4],[59,1,59,2],[58,0,58,16383],[1,1,1,2],[12,1,12,2],[12,3,12,4],[4,1,4,2],[12,5,12,6],[11,0,11,16383],[34,0,34,16383],[52,1,52,2],[52,3,52,4],[52,17,52,18],[16,0,19,0],[12,7,12,8],[23,7,23,8],[28,7,28,8],[35,7,35,8],[46,7,46,8],[52,7,52,8],[35,11,35,12],[46,11,46,12],[12,9,12,10],[23,9,23,10],[28,9,28,10],[35,9,35,10],[46,9,46,10],[117,9,117,10],[123,9,123,10],[70,7,70,8],[76,7,76,8],[83,7,83,8],[94,7,94,8],[100,7,100,8],[107,7,107,8],[117,7,117,8],[117,11,117,12],[123,11,123,12],[12,13,12,14],[23,13,23,14],[28,13,28,14],[35,13,35,14],[46,13,46,14],[52,13,52,14],[59,13,59,14],[70,13,70,14],[76,13,76,14],[83,13,83,14],[94,13,94,14],[100,13,100,14],[107,13,107,14],[117,13,117,14],[76,11,76,12],[83,11,83,12],[94,11,94,12],[100,11,100,12],[107,11,107,12],[12,11,12,12],[23,11,23,12],[123,13,123,14],[12,15,12,16],[23,15,23,16],[28,15,28,16],[35,15,35,16],[46,15,46,16],[52,15,52,16],[59,15,59,16],[70,15,70,16],[76,15,76,16],[94,15,94,16],[100,15,100,16],[107,15,107,16],[117,15,117,16],[123,15,123,16],[100,17,100,18],[107,17,107,18],[117,17,117,18],[123,17,123,18],[59,17,59,18],[70,17,70,18],[76,17,76,18],[83,17,83,18],[94,17,94,18],[12,17,12,18],[23,17,23,18],[28,17,28,18],[12,19,12,20],[23,19,23,20],[28,19,28,20],[35,19,35,20],[46,19,46,20],[52,19,52,20],[59,19,59,20],[70,19,70,20],[76,19,76,20],[107,19,107,20],[117,19,117,20],[123,19,123,20],[12,21,12,22],[23,21,23,22],[28,21,28,22],[35,21,35,22],[46,21,46,22],[52,21,52,22],[59,21,59,22],[70,21,70,22],[76,21,76,22],[83,21,83,22],[94,21,94,22],[100,21,100,22],[107,21,107,22],[117,21,117,22],[123,21,123,22],[94,19,94,20],[100,19,100,20],[12,25,12,26],[23,25,23,26],[28,25,28,26],[35,25,35,26],[46,25,46,26],[52,25,52,26],[59,25,59,26],[70,25,70,26],[76,25,76,26],[83,25,83,26],[94,25,94,26],[100,25,100,26],[107,25,107,26],[117,25,117,26],[123,25,123,26],[28,23,28,24],[35,23,35,24],[46,23,46,24],[52,23,52,24],[59,23,59,24],[83,23,83,24],[94,23,94,24],[100,23,100,24],[107,23,107,24],[117,23,117,24],[123,23,123,24],[52,27,52,28],[59,27,59,28],[70,27,70,28],[76,27,76,28],[83,27,83,28],[12,27,12,28],[23,27,23,28],[28,27,28,28],[35,27,35,28],[46,27,46,28],[94,27,94,28],[100,27,100,28],[107,27,107,28],[117,27,117,28],[94,29,94,30],[100,29,100,30],[107,29,107,30],[117,29,117,30],[123,27,123,28],[123,29,123,30],[52,29,52,30],[59,29,59,30],[70,29,70,30],[76,29,76,30],[83,29,83,30],[12,29,12,30],[23,29,23,30],[28,29,28,30],[35,29,35,30],[46,29,46,30]]}
[]
[null,"Dados"]
[null,"Quantidade de proprietários (por cada direito)",4]
[null,"Tipo de Proprietários","Proprietário de Raiz e Direito de Superfície"]
[null,"Imóvel"]
[null,"Localidade","Porto"]
[null,"Finalidade do imóvel","Habitação secundária"]
[null,"Valor de venda do imóvel",180000]
[null,"Ano de venda",2025]
[]
[]
["Cálculo da mais valia"]
[null,"Proprietário 1",null,"Proprietário 2",null,"Proprietário 3 ",null,"Proprietário 4",null,"Proprietário 5",null,"Proprietário 6",null,"Proprietário 7",null,"Proprietário 8",null,"Proprietário 9",null,"Proprietário 10",null,"Proprietário 11",null,"Proprietário 12",null,"Proprietário 13",null,"Proprietário 14 ",null,"Proprietário 15"]
[null,"Nome","João","Nome","Maria",null,null,"Nome",null,"Nome",null,"Nome",null,"Nome",null,"Nome",null,"Nome",null,"Nome",null,"Nome",null,"Nome",null,"Nome",null,"Nome",null,"Nome"]
[null,"Idade",60,"Idade",55,"Idade",null,"Idade",null,"Idade",null,"Idade",null,"Idade",null,"Idade",null,"Idade",null,"Idade",null,"Idade",null,"Idade",null,"Idade",null,"Idade",null,"Idade"]
[{"$f":"SUM(INDEX(16:16, _xlfn.SEQUENCE(C3, , 3, 2)))","v":1},"Quota-parte do direito",0.5,"Quota-parte do direito",0.5,"Quota-parte do direito",null,"Quota-parte do direito",null,"Quota-parte do direito",null,"Quota-parte do direito",null,"Quota-parte do direito",null,"Quota-parte do direito",null,"Quota-parte do direito",null,"Quota-parte do direito",null,"Quota-parte do direito",null,"Quota-parte do direito",null,"Quota-parte do direito",null,"Quota-parte do direito",null,"Quota-parte do direito"]
[{"$f":"IF(A16<>100%, \"As percentagens dos proprietários não totalizam 100%, voltar a confirmar quotas de todos os proprietários\", \"\")","v":""},"Origem","Herança direta","Origem","Herança direta","Origem",null,"Origem",null,"Origem",null,"Origem",null,"Origem",null,"Origem",null,"Origem",null,"Origem",null,"Origem",null,"Origem",null,"Origem",null,"Origem",null,"Origem"]
[null,{"$f":"IF(C17=\"Herança direta\", \"Valor patrimonial\", IF(C17=\"Herança de terceiro\", \"Valor do imóvel na doação\", IF(C17=\"Aquisição\", \"Valor de aquisição\", \"\")))","v":"Valor patrimonial"},75000,{"$f":"IF(E17=\"Herança direta\", \"Valor patrimonial\", IF(E17=\"Herança de terceiro\", \"Valor do imóvel na doação\", IF(E17=\"Aquisição\", \"Valor de aquisição\", \"\")))","v":"Valor patrimonial"},75000,{"$f":"IF(G17=\"Herança direta\", \"Valor patrimonial\", IF(G17=\"Herança de terceiro\", \"Valor do imóvel na doação\", IF(G17=\"Aquisição\", \"Valor de aquisição\", \"\")))","v":""},null,{"$f":"IF(I17=\"Herança direta\", \"Valor patrimonial\", IF(I17=\"Herança de terceiro\", \"Valor do imóvel na doação\", IF(I17=\"Aquisição\", \"Valor de aquisição\", \"\")))","v":""},null,{"$f":"IF(K17=\"Herança direta\", \"Valor patrimonial\", IF(K17=\"Herança de terceiro\", \"Valor do imóvel na doação\", IF(K17=\"Aquisição\", \"Valor de aquisição\", \"\")))","v":""},null,{"$f":"IF(M17=\"Herança direta\", \"Valor patrimonial\", IF(M17=\"Herança de terceiro\", \"Valor do imóvel na doação\", IF(M17=\"Aquisição\", \"Valor de aquisição\", \"\")))","v":""},null,{"$f":"IF(O17=\"Herança direta\", \"Valor patrimonial\", IF(O17=\"Herança de terceiro\", \"Valor do imóvel na doação\", IF(O17=\"Aquisição\", \"Valor de aquisição\", \"\")))","v":""},null,{"$f":"IF(Q17=\"Herança direta\", \"Valor patrimonial\", IF(Q17=\"Herança de terceiro\", \"Valor do imóvel na doação\", IF(Q17=\"Aquisição\", \"Valor de aquisição\", \"\")))","v":""},null,{"$f":"IF(S17=\"Herança direta\", \"Valor patrimonial\", IF(S17=\"Herança de terceiro\", \"Valor do imóvel na doação\", IF(S17=\"Aquisição\", \"Valor de aquisição\", \"\")))","v":""},null,{"$f":"IF(U17=\"Herança direta\", \"Valor patrimonial\", IF(U17=\"Herança de terceiro\", \"Valor do imóvel na doação\", IF(U17=\"Aquisição\", \"Valor de aquisição\", \"\")))","v":""},null,{"$f":"IF(W17=\"Herança direta\", \"Valor patrimonial\", IF(W17=\"Herança de terceiro\", \"Valor do imóvel na doação\", IF(W17=\"Aquisição\", \"Valor de aquisição\", \"\")))","v":""},null,{"$f":"IF(Y17=\"Herança direta\", \"Valor patrimonial\", IF(Y17=\"Herança de terceiro\", \"Valor do imóvel na doação\", IF(Y17=\"Aquisição\", \"Valor de aquisição\", \"\")))","v":""},null,{"$f":"IF(AA17=\"Herança direta\", \"Valor patrimonial\", IF(AA17=\"Herança de terceiro\", \"Valor do imóvel na doação\", IF(AA17=\"Aquisição\", \"Valor de aquisição\", \"\")))","v":""},null,{"$f":"IF(AC17=\"Herança direta\", \"Valor patrimonial\", IF(AC17=\"Herança de terceiro\", \"Valor do imóvel na doação\", IF(AC17=\"Aquisição\", \"Valor de aquisição\", \"\")))","v":""},null,{"$f":"IF(AE17=\"Herança direta\", \"Valor patrimonial\", IF(AE17=\"Herança de terceiro\", \"Valor do imóvel na doação\", IF(AE17=\"Aquisição\", \"Valor de aquisição\", \"\")))","v":""}]
[null,"Ano de aquisição",2013,"Ano de aquisição",2013,"Ano de aquisição",null,"Ano de aquisição",null,"Ano de aquisição",null,"Ano de aquisição",null,"Ano de aquisição",null,"Ano de aquisição",null,"Ano de aquisição",null,"Ano de aquisição",null,"Ano de aquisição",null,"Ano de aquisição",null,"Ano de aquisição",null,"Ano de aquisição",null,"Ano de aquisição"]
[null,"Obras nos últimos 12 anos",15000,"Obras nos últimos 12 anos",0,"Obras nos últimos 12 anos",null,"Obras nos últimos 12 anos",null,"Obras nos últimos 12 anos",null,"Obras nos últimos 12 anos",null,"Obras nos últimos 12 anos",null,"Obras nos últimos 12 anos",null,"Obras nos últimos 12 anos",null,"Obras nos últimos 12 anos",null,"Obras nos últimos 12 anos",null,"Obras nos últimos 12 anos",null,"Obras nos últimos 12 anos",null,"Obras nos últimos 12 anos",null,"Obras nos últimos 12 anos"]
[null,"Impostos pagos na aquisição",3000,"Impostos pagos na aquisição",3000,"Impostos pagos na aquisição",null,"Impostos pagos na aquisição",null,"Impostos pagos na aquisição",null,"Impostos pagos na aquisição",null,"Impostos pagos na aquisição",null,"Impostos pagos na aquisição",null,"Impostos pagos na aquisição",null,"Impostos pagos na aquisição",null,"Impostos pagos na aquisição",null,"Impostos pagos na aquisição",null,"Impostos pagos na aquisição",null,"Impostos pagos na aquisição",null,"Impostos pagos na aquisição"]
[null,"Comissão imobiliária",5000,"Comissão imobiliária",5000,"Comissão imobiliária",null,"Comissão imobiliária",null,"Comissão imobiliária",null,"Comissão imobiliária",null,"Comissão imobiliária",null,"Comissão imobiliária",null,"Comissão imobiliária",null,"Comissão imobiliária",null,"Comissão imobiliária",null,"Comissão imobiliária",null,"Comissão imobiliária",null,"Comissão imobiliária",null,"Comissão imobiliária"]
[null,"Outros encargos dedutíveis",0,"Outros encargos dedutíveis",0,"Outros encargos dedutíveis",null,"Outros encargos dedutíveis",null,"Outros encargos dedutíveis",null,"Outros encargos dedutíveis",null,"Outros encargos dedutíveis",null,"Outros encargos dedutíveis",null,"Outros encargos dedutíveis",null,"Outros encargos dedutíveis",null,"Outros encargos dedutíveis",null,"Outros encargos dedutíveis",null,"Outros encargos dedutíveis",null,"Outros encargos dedutíveis",null,"Outros encargos dedutíveis"]
[null,"Cálculo da mais valia",null,"Cálculo da mais valia",null,"Cálculo da mais valia",null,"Cálculo da mais valia",null,"Cálculo da mais valia",null,"Cálculo da mais valia",null,"Cálculo da mais valia",null,"Cálculo da mais valia",null,"Cálculo da mais valia",null,"Cálculo da mais valia",null,"Cálculo da mais valia",null,"Cálculo da mais valia",null,"Cálculo da mais valia",null,"Cálculo da mais valia",null,"Cálculo da mais valia"]
[null,"Coeficiente de atualização",{"$f":"VLOOKUP(C19, 'Coeficiente de atualização'!B2:C154, 2, FALSE)","v":1.17},"Coeficiente de atualização",{"$f":"VLOOKUP(E19, 'Coeficiente de atualização'!$B$2:$C$154, 2, FALSE)","v":1.17},"Coeficiente de atualização",{"$f":"VLOOKUP(G19, 'Coeficiente de atualização'!$B$2:$C$154, 2, FALSE)","v":{"$error":"#N/A"}},"Coeficiente de atualização",{"$f":"VLOOKUP(I19, 'Coeficiente de atualização'!$B$2:$C$154, 2, FALSE)","v":{"$error":"#N/A"}},"Coeficiente de atualização",{"$f":"VLOOKUP(K19, 'Coeficiente de atualização'!$B$2:$C$154, 2, FALSE)","v":{"$error":"#N/A"}},"Coeficiente de atualização",{"$f":"VLOOKUP(M19, 'Coeficiente de atualização'!$B$2:$C$154, 2, FALSE)","v":{"$error":"#N/A"}},"Coeficiente de atualização",{"$f":"VLOOKUP(O19, 'Coeficiente de atualização'!$B$2:$C$154, 2, FALSE)","v":{"$error":"#N/A"}},"Coeficiente de atualização",{"$f":"VLOOKUP(Q19, 'Coeficiente de atualização'!$B$2:$C$154, 2, FALSE)","v":{"$error":"#N/A"}},"Coeficiente de atualização",{"$f":"VLOOKUP(S19, 'Coeficiente de atualização'!$B$2:$C$154, 2, FALSE)","v":{"$error":"#N/A"}},"Coeficiente de atualização",{"$f":"VLOOKUP(U19, 'Coeficiente de atualização'!$B$2:$C$154, 2, FALSE)","v":{"$error":"#N/A"}},"Coeficiente de atualização",{"$f":"VLOOKUP(W19, 'Coeficiente de atualização'!$B$2:$C$154, 2, FALSE)","v":{"$error":"#N/A"}},"Coeficiente de atualização",{"$f":"VLOOKUP(Y19, 'Coeficiente de atualização'!$B$2:$C$154, 2, FALSE)","v":{"$error":"#N/A"}},"Coeficiente de atualização",{"$f":"VLOOKUP(AA19, 'Coeficiente de atualização'!$B$2:$C$154, 2, FALSE)","v":{"$error":"#N/A"}},"Coeficiente de atualização",{"$f":"VLOOKUP(AC19, 'Coeficiente de atualização'!$B$2:$C$154, 2, FALSE)","v":{"$error":"#N/A"}},"Coeficiente de atualização",{"$f":"VLOOKUP(AE19, 'Coeficiente de atualização'!$B$2:$C$154, 2, FALSE)","v":{"$error":"#N/A"}}]
[null,"Despesas e encargos",{"$f":"C20+C21+C22+C23","v":23000},"Despesas e encargos",{"$f":"E20+E21+E22+E23","v":8000},"Despesas e encargos",{"$f":"G20+G21+G22+G23","v":0},"Despesas e encargos",{"$f":"I20+I21+I22+I23","v":0},"Despesas e encargos",{"$f":"K20+K21+K22+K23","v":0},"Despesas e encargos",{"$f":"M20+M21+M22+M23","v":0},"Despesas e encargos",{"$f":"O20+O21+O22+O23","v":0},"Despesas e encargos",{"$f":"Q20+Q21+Q22+Q23","v":0},"Despesas e encargos",{"$f":"S20+S21+S22+S23","v":0},"Despesas e encargos",{"$f":"U20+U21+U22+U23","v":0},"Despesas e encargos",{"$f":"W20+W21+W22+W23","v":0},"Despesas e encargos",{"$f":"Y20+Y21+Y22+Y23","v":0},"Despesas e encargos",{"$f":"AA20+AA21+AA22+AA23","v":0},"Despesas e encargos",{"$f":"AC20+AC21+AC22+AC23","v":0},"Despesas e encargos",{"$f":"AE20+AE21+AE22+AE23","v":0}]
[null,"Mais-valia",{"$f":"(C8-(C18*C25)-C26)*C16","v":34625},"Mais-valia",{"$f":"($C$8-(E18*E25)-E26)*E16","v":42125},"Mais-valia",{"$f":"($C$8-(G18*G25)-G26)*G16","v":{"$error":"#N/A"}},"Mais-valia",{"$f":"($C$8-(I18*I25)-I26)*I16","v":{"$error":"#N/A"}},"Mais-valia",{"$f":"($C$8-(K18*K25)-K26)*K16","v":{"$error":"#N/A"}},"Mais-valia",{"$f":"($C$8-(M18*M25)-M26)*M16","v":{"$error":"#N/A"}},"Mais-valia",{"$f":"($C$8-(O18*O25)-O26)*O16","v":{"$error":"#N/A"}},"Mais-valia",{"$f":"($C$8-(Q18*Q25)-Q26)*Q16","v":{"$error":"#N/A"}},"Mais-valia",{"$f":"($C$8-(S18*S25)-S26)*S16","v":{"$error":"#N/A"}},"Mais-valia",{"$f":"($C$8-(U18*U25)-U26)*U16","v":{"$error":"#N/A"}},"Mais-valia",{"$f":"($C$8-(W18*W25)-W26)*W16","v":{"$error":"#N/A"}},"Mais-valia",{"$f":"($C$8-(Y18*Y25)-Y26)*Y16","v":{"$error":"#N/A"}},"Mais-valia",{"$f":"($C$8-(AA18*AA25)-AA26)*AA16","v":{"$error":"#N/A"}},"Mais-valia",{"$f":"($C$8-(AC18*AC25)-AC26)*AC16","v":{"$error":"#N/A"}},"Mais-valia",{"$f":"($C$8-(AE18*AE25)-AE26)*AE16","v":{"$error":"#N/A"}}]
[null,"Art 43º (50%)",{"$f":"C27/2","v":17312.5},"Art 43º (50%)",{"$f":"E27/2","v":21062.5},"Art 43º (50%)",{"$f":"G27/2","v":{"$error":"#N/A"}},"Art 43º (50%)",{"$f":"I27/2","v":{"$error":"#N/A"}},"Art 43º (50%)",{"$f":"K27/2","v":{"$error":"#N/A"}},"Art 43º (50%)",{"$f":"M27/2","v":{"$error":"#N/A"}},"Art 43º (50%)",{"$f":"O27/2","v":{"$error":"#N/A"}},"Art 43º (50%)",{"$f":"Q27/2","v":{"$error":"#N/A"}},"Art 43º (50%)",{"$f":"S27/2","v":{"$error":"#N/A"}},"Art 43º (50%)",{"$f":"U27/2","v":{"$error":"#N/A"}},"Art 43º (50%)",{"$f":"W27/2","v":{"$error":"#N/A"}},"Art 43º (50%)",{"$f":"Y27/2","v":{"$error":"#N/A"}},"Art 43º (50%)",{"$f":"AA27/2","v":{"$error":"#N/A"}},"Art 43º (50%)",{"$f":"AC27/2","v":{"$error":"#N/A"}},"Art 43º (50%)",{"$f":"AE27/2","v":{"$error":"#N/A"}}]
[null,"Dados pessoais",null,"Dados pessoais",null,"Dados pessoais",null,"Dados pessoais",null,"Dados pessoais",null,"Dados pessoais",null,"Dados pessoais",null,"Dados pessoais",null,"Dados pessoais",null,"Dados pessoais",null,"Dados pessoais",null,"Dados pessoais",null,"Dados pessoais",null,"Dados pessoais",null,"Dados pessoais"]
[null,"Rendimento anual coletável",30000,"Rendimento anual coletável",30000,"Rendimento anual coletável",30000,"Rendimento anual coletável",30000,"Rendimento anual coletável",30000,"Rendimento anual coletável",30000,"Rendimento anual coletável",null,"Rendimento anual coletável",null,"Rendimento anual coletável",null,"Rendimento anual coletável",null,"Rendimento anual coletável",null,"Rendimento anual coletável",null,"Rendimento anual coletável",null,"Rendimento anual coletável",null,"Rendimento anual coletável"]
[null,"Taxa de IRS",{"$f":"IFERROR(\n   (\n     (C30 * INDEX('Tabelas IRS'!$C$2:$C$12, MATCH(C30, 'Tabelas IRS'!$A$2:$A$12, 1)))\n     - INDEX('Tabelas IRS'!$D$2:$D$12, MATCH(C30, 'Tabelas IRS'!$A$2:$A$12, 1))\n   ) / C30,\n   0\n)","v":0.22089533333333336},"Taxa de IRS",{"$f":"IFERROR(\n   (\n     (E30 * INDEX('Tabelas IRS'!$C$2:$C$12, MATCH(E30, 'Tabelas IRS'!$A$2:$A$12, 1)))\n     - INDEX('Tabelas IRS'!$D$2:$D$12, MATCH(E30, 'Tabelas IRS'!$A$2:$A$12, 1))\n   ) / E30,\n   0\n)","v":0.22089533333333336},"Taxa de IRS",{"$f":"IFERROR(\n   (\n     (G30 * INDEX('Tabelas IRS'!$C$2:$C$12, MATCH(G30, 'Tabelas IRS'!$A$2:$A$12, 1)))\n     - INDEX('Tabelas IRS'!$D$2:$D$12, MATCH(G30, 'Tabelas IRS'!$A$2:$A$12, 1))\n   ) / G30,\n   0\n)","v":0.22089533333333336},"Taxa de IRS",{"$f":"IFERROR(\n   (\n     (I30 * INDEX('Tabelas IRS'!$C$2:$C$12, MATCH(I30, 'Tabelas IRS'!$A$2:$A$12, 1)))\n     - INDEX('Tabelas IRS'!$D$2:$D$12, MATCH(I30, 'Tabelas IRS'!$A$2:$A$12, 1))\n   ) / I30,\n   0\n)","v":0.22089533333333336},"Taxa de IRS",{"$f":"IFERROR(\n   (\n     (K30 * INDEX('Tabelas IRS'!$C$2:$C$12, MATCH(K30, 'Tabelas IRS'!$A$2:$A$12, 1)))\n     - INDEX('Tabelas IRS'!$D$2:$D$12, MATCH(K30, 'Tabelas IRS'!$A$2:$A$12, 1))\n   ) / K30,\n   0\n)","v":0.22089533333333336},"Taxa de IRS",{"$f":"IFERROR(\n   (\n     (M30 * INDEX('Tabelas IRS'!$C$2:$C$12, MATCH(M30, 'Tabelas IRS'!$A$2:$A$12, 1)))\n     - INDEX('Tabelas IRS'!$D$2:$D$12, MATCH(M30, 'Tabelas IRS'!$A$2:$A$12, 1))\n   ) / M30,\n   0\n)","v":0.22089533333333336},"Taxa de IRS",{"$f":"IFERROR(\n   (\n     (O30 * INDEX('Tabelas IRS'!$C$2:$C$12, MATCH(O30, 'Tabelas IRS'!$A$2:$A$12, 1)))\n     - INDEX('Tabelas IRS'!$D$2:$D$12, MATCH(O30, 'Tabelas IRS'!$A$2:$A$12, 1))\n   ) / O30,\n   0\n)","v":0},"Taxa de IRS",{"$f":"IFERROR(\n   (\n     (Q30 * INDEX('Tabelas IRS'!$C$2:$C$12, MATCH(Q30, 'Tabelas IRS'!$A$2:$A$12, 1)))\n     - INDEX('Tabelas IRS'!$D$2:$D$12, MATCH(Q30, 'Tabelas IRS'!$A$2:$A$12, 1))\n   ) / Q30,\n   0\n)","v":0},"Taxa de IRS",{"$f":"IFERROR(\n   (\n     (S30 * INDEX('Tabelas IRS'!$C$2:$C$12, MATCH(S30, 'Tabelas IRS'!$A$2:$A$12, 1)))\n     - INDEX('Tabelas IRS'!$D$2:$D$12, MATCH(S30, 'Tabelas IRS'!$A$2:$A$12, 1))\n   ) / S30,\n   0\n)","v":0},"Taxa de IRS",{"$f":"IFERROR(\n   (\n     (U30 * INDEX('Tabelas IRS'!$C$2:$C$12, MATCH(U30, 'Tabelas IRS'!$A$2:$A$12, 1)))\n     - INDEX('Tabelas IRS'!$D$2:$D$12, MATCH(U30, 'Tabelas IRS'!$A$2:$A$12, 1))\n   ) / U30,\n   0\n)","v":0},"Taxa de IRS",{"$f":"IFERROR(\n   (\n     (W30 * INDEX('Tabelas IRS'!$C$2:$C$12, MATCH(W30, 'Tabelas IRS'!$A$2:$A$12, 1)))\n     - INDEX('Tabelas IRS'!$D$2:$D$12, MATCH(W30, 'Tabelas IRS'!$A$2:$A$12, 1))\n   ) / W30,\n   0\n)","v":0},"Taxa de IRS",{"$f":"IFERROR(\n   (\n     (Y30 * INDEX('Tabelas IRS'!$C$2:$C$12, MATCH(Y30, 'Tabelas IRS'!$A$2:$A$12, 1)))\n     - INDEX('Tabelas IRS'!$D$2:$D$12, MATCH(Y30, 'Tabelas IRS'!$A$2:$A$12, 1))\n   ) / Y30,\n   0\n)","v":0},"Taxa de IRS",{"$f":"IFERROR(\n   (\n     (AA30 * INDEX('Tabelas IRS'!$C$2:$C$12, MATCH(AA30, 'Tabelas IRS'!$A$2:$A$12, 1)))\n     - INDEX('Tabelas IRS'!$D$2:$D$12, MATCH(AA30, 'Tabelas IRS'!$A$2:$A$12, 1))\n   ) / AA30,\n   0\n)","v":0},"Taxa de IRS",{"$f":"IFERROR(\n   (\n     (AC30 * INDEX('Tabelas IRS'!$C$2:$C$12, MATCH(AC30, 'Tabelas IRS'!$A$2:$A$12, 1)))\n     - INDEX('Tabelas IRS'!$D$2:$D$12, MATCH(AC30, 'Tabelas IRS'!$A$2:$A$12, 1))\n   ) / AC30,\n   0\n)","v":0},"Taxa de IRS",{"$f":"IFERROR(\n   (\n     (AE30 * INDEX('Tabelas IRS'!$C$2:$C$12, MATCH(AE30, 'Tabelas IRS'!$A$2:$A$12, 1)))\n     - INDEX('Tabelas IRS'!$D$2:$D$12, MATCH(AE30, 'Tabelas IRS'!$A$2:$A$12, 1))\n   ) / AE30,\n   0\n)","v":0}]
[null,"Rendimento anual com mais-valia",{"$f":"C30+C28","v":47312.5},"Rendimento anual com mais-valia",{"$f":"E30+E28","v":51062.5},"Rendimento anual com mais-valia",{"$f":"G30+G28","v":{"$error":"#N/A"}},"Rendimento anual com mais-valia",{"$f":"I30+I28","v":{"$error":"#N/A"}},"Rendimento anual com mais-valia",{"$f":"K30+K28","v":{"$error":"#N/A"}},"Rendimento anual com mais-valia",{"$f":"M30+M28","v":{"$error":"#N/A"}},"Rendimento anual com mais-valia",{"$f":"O30+O28","v":{"$error":"#N/A"}},"Rendimento anual com mais-valia",{"$f":"Q30+Q28","v":{"$error":"#N/A"}},"Rendimento anual com mais-valia",{"$f":"S30+S28","v":{"$error":"#N/A"}},"Rendimento anual com mais-valia",{"$f":"U30+U28","v":{"$error":"#N/A"}},"Rendimento anual com mais-valia",{"$f":"W30+W28","v":{"$error":"#N/A"}},"Rendimento anual com mais-valia",{"$f":"Y30+Y28","v":{"$error":"#N/A"}},"Rendimento anual com mais-valia",{"$f":"AA30+AA28","v":{"$error":"#N/A"}},"Rendimento anual com mais-valia",{"$f":"AC30+AC28","v":{"$error":"#N/A"}},"Rendimento anual com mais-valia",{"$f":"AE30+AE28","v":{"$error":"#N/A"}}]
[null,"Taxa de IRS",{"$f":"IFERROR(\n   (\n     (C32 * INDEX('Tabelas IRS'!$C$2:$C$12, MATCH(C32, 'Tabelas IRS'!$A$2:$A$12, 1)))\n     - INDEX('Tabelas IRS'!$D$2:$D$12, MATCH(C32, 'Tabelas IRS'!$A$2:$A$12, 1))\n   ) / C32,\n   0\n)","v":0.28031165125495372},"Taxa de IRS",{"$f":"IFERROR(\n   (\n     (E32 * INDEX('Tabelas IRS'!$C$2:$C$12, MATCH(E32, 'Tabelas IRS'!$A$2:$A$12, 1)))\n     - INDEX('Tabelas IRS'!$D$2:$D$12, MATCH(E32, 'Tabelas IRS'!$A$2:$A$12, 1))\n   ) / E32,\n   0\n)","v":0.29277346389228887},"Taxa de IRS",{"$f":"IFERROR(\n   (\n     (G32 * INDEX('Tabelas IRS'!$C$2:$C$12, MATCH(G32, 'Tabelas IRS'!$A$2:$A$12, 1)))\n     - INDEX('Tabelas IRS'!$D$2:$D$12, MATCH(G32, 'Tabelas IRS'!$A$2:$A$12, 1))\n   ) / G32,\n   0\n)","v":0},"Taxa de IRS",{"$f":"IFERROR(\n   (\n     (I32 * INDEX('Tabelas IRS'!$C$2:$C$12, MATCH(I32, 'Tabelas IRS'!$A$2:$A$12, 1)))\n     - INDEX('Tabelas IRS'!$D$2:$D$12, MATCH(I32, 'Tabelas IRS'!$A$2:$A$12, 1))\n   ) / I32,\n   0\n)","v":0},"Taxa de IRS",{"$f":"IFERROR(\n   (\n     (K32 * INDEX('Tabelas IRS'!$C$2:$C$12, MATCH(K32, 'Tabelas IRS'!$A$2:$A$12, 1)))\n     - INDEX('Tabelas IRS'!$D$2:$D$12, MATCH(K32, 'Tabelas IRS'!$A$2:$A$12, 1))\n   ) / K32,\n   0\n)","v":0},"Taxa de IRS",{"$f":"IFERROR(\n   (\n     (M32 * INDEX('Tabelas IRS'!$C$2:$C$12, MATCH(M32, 'Tabelas IRS'!$A$2:$A$12, 1)))\n     - INDEX('Tabelas IRS'!$D$2:$D$12, MATCH(M32, 'Tabelas IRS'!$A$2:$A$12, 1))\n   ) / M32,\n   0\n)","v":0},"Taxa de IRS",{"$f":"IFERROR(\n   (\n     (O32 * INDEX('Tabelas IRS'!$C$2:$C$12, MATCH(O32, 'Tabelas IRS'!$A$2:$A$12, 1)))\n     - INDEX('Tabelas IRS'!$D$2:$D$12, MATCH(O32, 'Tabelas IRS'!$A$2:$A$12, 1))\n   ) / O32,\n   0\n)","v":0},"Taxa de IRS",{"$f":"IFERROR(\n   (\n     (Q32 * INDEX('Tabelas IRS'!$C$2:$C$12, MATCH(Q32, 'Tabelas IRS'!$A$2:$A$12, 1)))\n     - INDEX('Tabelas IRS'!$D$2:$D$12, MATCH(Q32, 'Tabelas IRS'!$A$2:$A$12, 1))\n   ) / Q32,\n   0\n)","v":0},"Taxa de IRS",{"$f":"IFERROR(\n   (\n     (S32 * INDEX('Tabelas IRS'!$C$2:$C$12, MATCH(S32, 'Tabelas IRS'!$A$2:$A$12, 1)))\n     - INDEX('Tabelas IRS'!$D$2:$D$12, MATCH(S32, 'Tabelas IRS'!$A$2:$A$12, 1))\n   ) / S32,\n   0\n)","v":0},"Taxa de IRS",{"$f":"IFERROR(\n   (\n     (U32 * INDEX('Tabelas IRS'!$C$2:$C$12, MATCH(U32, 'Tabelas IRS'!$A$2:$A$12, 1)))\n     - INDEX('Tabelas IRS'!$D$2:$D$12, MATCH(U32, 'Tabelas IRS'!$A$2:$A$12, 1))\n   ) / U32,\n   0\n)","v":0},"Taxa de IRS",{"$f":"IFERROR(\n   (\n     (W32 * INDEX('Tabelas IRS'!$C$2:$C$12, MATCH(W32, 'Tabelas IRS'!$A$2:$A$12, 1)))\n     - INDEX('Tabelas IRS'!$D$2:$D$12, MATCH(W32, 'Tabelas IRS'!$A$2:$A$12, 1))\n   ) / W32,\n   0\n)","v":0},"Taxa de IRS",{"$f":"IFERROR(\n   (\n     (Y32 * INDEX('Tabelas IRS'!$C$2:$C$12, MATCH(Y32, 'Tabelas IRS'!$A$2:$A$12, 1)))\n     - INDEX('Tabelas IRS'!$D$2:$D$12, MATCH(Y32, 'Tabelas IRS'!$A$2:$A$12, 1))\n   ) / Y32,\n   0\n)","v":0},"Taxa de IRS",{"$f":"IFERROR(\n   (\n     (AA32 * INDEX('Tabelas IRS'!$C$2:$C$12, MATCH(AA32, 'Tabelas IRS'!$A$2:$A$12, 1)))\n     - INDEX('Tabelas IRS'!$D$2:$D$12, MATCH(AA32, 'Tabelas IRS'!$A$2:$A$12, 1))\n   ) / AA32,\n   0\n)","v":0},"Taxa de IRS",{"$f":"IFERROR(\n   (\n     (AC32 * INDEX('Tabelas IRS'!$C$2:$C$12, MATCH(AC32, 'Tabelas IRS'!$A$2:$A$12, 1)))\n     - INDEX('Tabelas IRS'!$D$2:$D$12, MATCH(AC32, 'Tabelas IRS'!$A$2:$A$12, 1))\n   ) / AC32,\n   0\n)","v":0},"Taxa de IRS",{"$f":"IFERROR(\n   (\n     (AE32 * INDEX('Tabelas IRS'!$C$2:$C$12, MATCH(AE32, 'Tabelas IRS'!$A$2:$A$12, 1)))\n     - INDEX('Tabelas IRS'!$D$2:$D$12, MATCH(AE32, 'Tabelas IRS'!$A$2:$A$12, 1))\n   ) / AE32,\n   0\n)","v":0}]
[null,"Imposto da Mais-valia",{"$f":"C32*C33-INDEX('Tabelas IRS'!D4:D12,MATCH(C32,'Tabelas IRS'!B4:B12,1))-(C30*C31-INDEX('Tabelas IRS'!D4:D12,MATCH(C32,'Tabelas IRS'!B4:B12,1)))","v":6635.3849999999966},"Imposto da Mais-valia",{"$f":"E32*E33-INDEX('Tabelas IRS'!$D$2:$D$12, MATCH(E32, 'Tabelas IRS'!$A$2:$A$12, 1))-(E30*E31-INDEX('Tabelas IRS'!$D$2:$D$12, MATCH(E32, 'Tabelas IRS'!$A$2:$A$12, 1)))","v":8322.8850000000002},"Imposto da Mais-valia",{"$f":"G32*G33-INDEX('Tabelas IRS'!$D$2:$D$12, MATCH(G32, 'Tabelas IRS'!$A$2:$A$12, 1))-(G30*G31-INDEX('Tabelas IRS'!$D$2:$D$12, MATCH(G32, 'Tabelas IRS'!$A$2:$A$12, 1)))","v":{"$error":"#N/A"}},"Imposto da Mais-valia",{"$f":"I32*I33-INDEX('Tabelas IRS'!$D$2:$D$12, MATCH(I32, 'Tabelas IRS'!$A$2:$A$12, 1))-(I30*I31-INDEX('Tabelas IRS'!$D$2:$D$12, MATCH(I32, 'Tabelas IRS'!$A$2:$A$12, 1)))","v":{"$error":"#N/A"}},"Imposto da Mais-valia",{"$f":"K32*K33-INDEX('Tabelas IRS'!$D$2:$D$12, MATCH(K32, 'Tabelas IRS'!$A$2:$A$12, 1))-(K30*K31-INDEX('Tabelas IRS'!$D$2:$D$12, MATCH(K32, 'Tabelas IRS'!$A$2:$A$12, 1)))","v":{"$error":"#N/A"}},"Imposto da Mais-valia",{"$f":"M32*M33-INDEX('Tabelas IRS'!$D$2:$D$12, MATCH(M32, 'Tabelas IRS'!$A$2:$A$12, 1))-(M30*M31-INDEX('Tabelas IRS'!$D$2:$D$12, MATCH(M32, 'Tabelas IRS'!$A$2:$A$12, 1)))","v":{"$error":"#N/A"}},"Imposto da Mais-valia",{"$f":"O32*O33-INDEX('Tabelas IRS'!$D$2:$D$12, MATCH(O32, 'Tabelas IRS'!$A$2:$A$12, 1))-(O30*O31-INDEX('Tabelas IRS'!$D$2:$D$12, MATCH(O32, 'Tabelas IRS'!$A$2:$A$12, 1)))","v":{"$error":"#N/A"}},"Imposto da Mais-valia",{"$f":"Q32*Q33-INDEX('Tabelas IRS'!$D$2:$D$12, MATCH(Q32, 'Tabelas IRS'!$A$2:$A$12, 1))-(Q30*Q31-INDEX('Tabelas IRS'!$D$2:$D$12, MATCH(Q32, 'Tabelas IRS'!$A$2:$A$12, 1)))","v":{"$error":"#N/A"}},"Imposto da Mais-valia",{"$f":"S32*S33-INDEX('Tabelas IRS'!$D$2:$D$12, MATCH(S32, 'Tabelas IRS'!$A$2:$A$12, 1))-(S30*S31-INDEX('Tabelas IRS'!$D$2:$D$12, MATCH(S32, 'Tabelas IRS'!$A$2:$A$12, 1)))","v":{"$error":"#N/A"}},"Imposto da Mais-valia",{"$f":"U32*U33-INDEX('Tabelas IRS'!$D$2:$D$12, MATCH(U32, 'Tabelas IRS'!$A$2:$A$12, 1))-(U30*U31-INDEX('Tabelas IRS'!$D$2:$D$12, MATCH(U32, 'Tabelas IRS'!$A$2:$A$12, 1)))","v":{"$error":"#N/A"}},"Imposto da Mais-valia",{"$f":"W32*W33-INDEX('Tabelas IRS'!$D$2:$D$12, MATCH(W32, 'Tabelas IRS'!$A$2:$A$12, 1))-(W30*W31-INDEX('Tabelas IRS'!$D$2:$D$12, MATCH(W32, 'Tabelas IRS'!$A$2:$A$12, 1)))","v":{"$error":"#N/A"}},"Imposto da Mais-valia",{"$f":"Y32*Y33-INDEX('Tabelas IRS'!$D$2:$D$12, MATCH(Y32, 'Tabelas IRS'!$A$2:$A$12, 1))-(Y30*Y31-INDEX('Tabelas IRS'!$D$2:$D$12, MATCH(Y32, 'Tabelas IRS'!$A$2:$A$12, 1)))","v":{"$error":"#N/A"}},"Imposto da Mais-valia",{"$f":"AA32*AA33-INDEX('Tabelas IRS'!$D$2:$D$12, MATCH(AA32, 'Tabelas IRS'!$A$2:$A$12, 1))-(AA30*AA31-INDEX('Tabelas IRS'!$D$2:$D$12, MATCH(AA32, 'Tabelas IRS'!$A$2:$A$12, 1)))","v":{"$error":"#N/A"}},"Imposto da Mais-valia",{"$f":"AC32*AC33-INDEX('Tabelas IRS'!$D$2:$D$12, MATCH(AC32, 'Tabelas IRS'!$A$2:$A$12, 1))-(AC30*AC31-INDEX('Tabelas IRS'!$D$2:$D$12, MATCH(AC32, 'Tabelas IRS'!$A$2:$A$12, 1)))","v":{"$error":"#N/A"}},"Imposto da Mais-valia",{"$f":"AE32*AE33-INDEX('Tabelas IRS'!$D$2:$D$12, MATCH(AE32, 'Tabelas IRS'!$A$2:$A$12, 1))-(AE30*AE31-INDEX('Tabelas IRS'!$D$2:$D$12, MATCH(AE32, 'Tabelas IRS'!$A$2:$A$12, 1)))","v":{"$error":"#N/A"}}]
[]
[null,"Usufrutuário 1",null,"Usufrutuário 2",null,"Usufrutuário 3",null,"Usufrutuário 4",null,"Usufrutuário 5",null,"Usufrutuário 6",null,"Usufrutuário 7",null,"Usufrutuário 8",null,"Usufrutuário 9",null,"Usufrutuário 10",null,"Usufrutuário 11",null,"Usufrutuário 12",null,"Usufrutuário 13",null,"Usufrutuário 14",null,"Usufrutuário 15"]
[null,"Nome","João ","Nome","Maria","Nome",null,"Nome",null,"Nome",null,"Nome",null,"Nome",null,"Nome",null,"Nome",null,"Nome",null,"Nome",null,"Nome",null,"Nome",null,"Nome",null,"Nome"]
[null,"Idade",65,"Idade",55,"Idade",null,"Idade",null,"Idade",null,"Idade",null,"Idade",null,"Idade",null,"Idade",null,"Idade",null,"Idade",null,"Idade",null,"Idade",null,"Idade",null,"Idade"]
[{"$f":"SUM(INDEX(39:39, _xlfn.SEQUENCE(C3, , 3, 2)))","v":1},"Quota-parte do direito",0.5,"Quota-parte do direito",0.5,"Quota-parte do direito",null,"Quota-parte do direito",null,"Quota-parte do direito",null,"Quota-parte do direito",null,"Quota-parte do direito",null,"Quota-parte do direito",null,"Quota-parte do direito",null,"Quota-parte do direito",null,"Quota-parte do direito",null,"Quota-parte do direito",null,"Quota-parte do direito",null,"Quota-parte do direito",null,"Quota-parte do direito"]
[{"$f":"IF(A39<>100%, \"As percentagens dos usufrutuários não totalizam 100%, voltar a confirmar quotas de todos os proprietários\", \"\")","v":""},"Origem","Aquisição","Origem","Aquisição","Origem",null,"Origem",null,"Origem",null,"Origem",null,"Origem",null,"Origem",null,"Origem",null,"Origem",null,"Origem",null,"Origem",null,"Origem",null,"Origem",null,"Origem"]
[null,{"$f":"IF(C40=\"Herança direta\", \"Valor patrimonial\", IF(C40=\"Herança de terceiro\", \"Valor do imóvel na doação\", IF(C40=\"Aquisição\", \"Valor de aquisição\", \"\")))","v":"Valor de aquisição"},75000,{"$f":"IF(E40=\"Herança direta\", \"Valor patrimonial\", IF(E40=\"Herança de terceiro\", \"Valor do imóvel na doação\", IF(E40=\"Aquisição\", \"Valor de aquisição\", \"\")))","v":"Valor de aquisição"},75000,{"$f":"IF(G40=\"Herança direta\", \"Valor patrimonial\", IF(G40=\"Herança de terceiro\", \"Valor do imóvel na doação\", IF(G40=\"Aquisição\", \"Valor de aquisição\", \"\")))","v":""},null,{"$f":"IF(I40=\"Herança direta\", \"Valor patrimonial\", IF(I40=\"Herança de terceiro\", \"Valor do imóvel na doação\", IF(I40=\"Aquisição\", \"Valor de aquisição\", \"\")))","v":""},null,{"$f":"IF(K40=\"Herança direta\", \"Valor patrimonial\", IF(K40=\"Herança de terceiro\", \"Valor do imóvel na doação\", IF(K40=\"Aquisição\", \"Valor de aquisição\", \"\")))","v":""},null,{"$f":"IF(M40=\"Herança direta\", \"Valor patrimonial\", IF(M40=\"Herança de terceiro\", \"Valor do imóvel na doação\", IF(M40=\"Aquisição\", \"Valor de aquisição\", \"\")))","v":""},null,{"$f":"IF(O40=\"Herança direta\", \"Valor patrimonial\", IF(O40=\"Herança de terceiro\", \"Valor do imóvel na doação\", IF(O40=\"Aquisição\", \"Valor de aquisição\", \"\")))","v":""},null,{"$f":"IF(Q40=\"Herança direta\", \"Valor patrimonial\", IF(Q40=\"Herança de terceiro\", \"Valor do imóvel na doação\", IF(Q40=\"Aquisição\", \"Valor de aquisição\", \"\")))","v":""},null,{"$f":"IF(S40=\"Herança direta\", \"Valor patrimonial\", IF(S40=\"Herança de terceiro\", \"Valor do imóvel na doação\", IF(S40=\"Aquisição\", \"Valor de aquisição\", \"\")))","v":""},null,{"$f":"IF(U40=\"Herança direta\", \"Valor patrimonial\", IF(U40=\"Herança de terceiro\", \"Valor do imóvel na doação\", IF(U40=\"Aquisição\", \"Valor de aquisição\", \"\")))","v":""},null,{"$f":"IF(W40=\"Herança direta\", \"Valor patrimonial\", IF(W40=\"Herança de terceiro\", \"Valor do imóvel na doação\", IF(W40=\"Aquisição\", \"Valor de aquisição\", \"\")))","v":""},null,{"$f":"IF(Y40=\"Herança direta\", \"Valor patrimonial\", IF(Y40=\"Herança de terceiro\", \"Valor do imóvel na doação\", IF(Y40=\"Aquisição\", \"Valor de aquisição\", \"\")))","v":""},null,{"$f":"IF(AA40=\"Herança direta\", \"Valor patrimonial\", IF(AA40=\"Herança de terceiro\", \"Valor do imóvel na doação\", IF(AA40=\"Aquisição\", \"Valor de aquisição\", \"\")))","v":""},null,{"$f":"IF(AC40=\"Herança direta\", \"Valor patrimonial\", IF(AC40=\"Herança de terceiro\", \"Valor do imóvel na doação\", IF(AC40=\"Aquisição\", \"Valor de aquisição\", \"\")))","v":""},null,{"$f":"IF(AE40=\"Herança direta\", \"Valor patrimonial\", IF(AE40=\"Herança de terceiro\", \"Valor do imóvel na doação\", IF(AE40=\"Aquisição\", \"Valor de aquisição\", \"\")))","v":""}]
[null,"Ano de aquisição",2013,"Ano de aquisição",2013,"Ano de aquisição",null,"Ano de aquisição",null,"Ano de aquisição",null,"Ano de aquisição",null,"Ano de aquisição",null,"Ano de aquisição",null,"Ano de aquisição",null,"Ano de aquisição",null,"Ano de aquisição",null,"Ano de aquisição",null,"Ano de aquisição",null,"Ano de aquisição",null,"Ano de aquisição"]
[null,"Obras nos últimos 12 anos",0,"Obras nos últimos 12 anos",5000,"Obras nos últimos 12 anos",null,"Obras nos últimos 12 anos",null,"Obras nos últimos 12 anos",null,"Obras nos últimos 12 anos",null,"Obras nos últimos 12 anos",null,"Obras nos últimos 12 anos",null,"Obras nos últimos 12 anos",null,"Obras nos últimos 12 anos",null,"Obras nos últimos 12 anos",null,"Obras nos últimos 12 anos",null,"Obras nos últimos 12 anos",null,"Obras nos últimos 12 anos",null,"Obras nos últimos 12 anos"]
[null,"Impostos pagos na aquisição",100,"Impostos pagos na aquisição",100,"Impostos pagos na aquisição",null,"Impostos pagos na aquisição",null,"Impostos pagos na aquisição",null,"Impostos pagos na aquisição",null,"Impostos pagos na aquisição",null,"Impostos pagos na aquisição",null,"Impostos pagos na aquisição",null,"Impostos pagos na aquisição",null,"Impostos pagos na aquisição",null,"Impostos pagos na aquisição",null,"Impostos pagos na aquisição",null,"Impostos pagos na aquisição",null,"Impostos pagos na aquisição"]
[null,"Comissão imobiliária",2460,"Comissão imobiliária",2460,"Comissão imobiliária",null,"Comissão imobiliária",null,"Comissão imobiliária",null,"Comissão imobiliária",null,"Comissão imobiliária",null,"Comissão imobiliária",null,"Comissão imobiliária",null,"Comissão imobiliária",null,"Comissão imobiliária",null,"Comissão imobiliária",null,"Comissão imobiliária",null,"Comissão imobiliária",null,"Comissão imobiliária"]
[null,"Outros encargos dedutíveis",0,"Outros encargos dedutíveis",0,"Outros encargos dedutíveis",null,"Outros encargos dedutíveis",null,"Outros encargos dedutíveis",null,"Outros encargos dedutíveis",null,"Outros encargos dedutíveis",null,"Outros encargos dedutíveis",null,"Outros encargos dedutíveis",null,"Outros encargos dedutíveis",null,"Outros encargos dedutíveis",null,"Outros encargos dedutíveis",null,"Outros encargos dedutíveis",null,"Outros encargos dedutíveis",null,"Outros encargos dedutíveis"]
[null,"Cálculo da mais valia",null,"Cálculo da mais valia",null,"Cálculo da mais valia",null,"Cálculo da mais valia",null,"Cálculo da mais valia",null,"Cálculo da mais valia",null,"Cálculo da mais valia",null,"Cálculo da mais valia",null,"Cálculo da mais valia",null,"Cálculo da mais valia",null,"Cálculo da mais valia",null,"Cálculo da mais valia",null,"Cálculo da mais valia",null,"Cálculo da mais valia",null,"Cálculo da mais valia"]
[null,"Coeficiente de atualização",{"$f":"VLOOKUP(C42, 'Coeficiente de atualização'!B2:C154, 2, FALSE)","v":1.17},"Coeficiente de atualização",{"$f":"VLOOKUP(E42, 'Coeficiente de atualização'!$B$2:$C$154, 2, FALSE)","v":1.17},"Coeficiente de atualização",{"$f":"VLOOKUP(G42, 'Coeficiente de atualização'!$B$2:$C$154, 2, FALSE)","v":{"$error":"#N/A"}},"Coeficiente de atualização",{"$f":"VLOOKUP(I42, 'Coeficiente de atualização'!$B$2:$C$154, 2, FALSE)","v":{"$error":"#N/A"}},"Coeficiente de atualização",{"$f":"VLOOKUP(K42, 'Coeficiente de atualização'!$B$2:$C$154, 2, FALSE)","v":{"$error":"#N/A"}},"Coeficiente de atualização",{"$f":"VLOOKUP(M42, 'Coeficiente de atualização'!$B$2:$C$154, 2, FALSE)","v":{"$error":"#N/A"}},"Coeficiente de atualização",{"$f":"VLOOKUP(O42, 'Coeficiente de atualização'!$B$2:$C$154, 2, FALSE)","v":{"$error":"#N/A"}},"Coeficiente de atualização",{"$f":"VLOOKUP(Q42, 'Coeficiente de atualização'!$B$2:$C$154, 2, FALSE)","v":{"$error":"#N/A"}},"Coeficiente de atualização",{"$f":"VLOOKUP(S42, 'Coeficiente de atualização'!$B$2:$C$154, 2, FALSE)","v":{"$error":"#N/A"}},"Coeficiente de atualização",{"$f":"VLOOKUP(U42, 'Coeficiente de atualização'!$B$2:$C$154, 2, FALSE)","v":{"$error":"#N/A"}},"Coeficiente de atualização",{"$f":"VLOOKUP(W42, 'Coeficiente de atualização'!$B$2:$C$154, 2, FALSE)","v":{"$error":"#N/A"}},"Coeficiente de atualização",{"$f":"VLOOKUP(Y42, 'Coeficiente de atualização'!$B$2:$C$154, 2, FALSE)","v":{"$error":"#N/A"}},"Coeficiente de atualização",{"$f":"VLOOKUP(AA42, 'Coeficiente de atualização'!$B$2:$C$154, 2, FALSE)","v":{"$error":"#N/A"}},"Coeficiente de atualização",{"$f":"VLOOKUP(AC42, 'Coeficiente de atualização'!$B$2:$C$154, 2, FALSE)","v":{"$error":"#N/A"}},"Coeficiente de atualização",{"$f":"VLOOKUP(AE42, 'Coeficiente de atualização'!$B$2:$C$154, 2, FALSE)","v":{"$error":"#N/A"}}]
[null,"Despesas e encargos",{"$f":"C43+C44+C45+C46","v":2560},"Despesas e encargos",{"$f":"E43+E44+E45+E46","v":7560},"Despesas e encargos",{"$f":"G43+G44+G45+G46","v":0},"Despesas e encargos",{"$f":"I43+I44+I45+I46","v":0},"Despesas e encargos",{"$f":"K43+K44+K45+K46","v":0},"Despesas e encargos",{"$f":"M43+M44+M45+M46","v":0},"Despesas e encargos",{"$f":"O43+O44+O45+O46","v":0},"Despesas e encargos",{"$f":"Q43+Q44+Q45+Q46","v":0},"Despesas e encargos",{"$f":"S43+S44+S45+S46","v":0},"Despesas e encargos",{"$f":"U43+U44+U45+U46","v":0},"Despesas e encargos",{"$f":"W43+W44+W45+W46","v":0},"Despesas e encargos",{"$f":"Y43+Y44+Y45+Y46","v":0},"Despesas e encargos",{"$f":"AA43+AA44+AA45+AA46","v":0},"Despesas e encargos",{"$f":"AC43+AC44+AC45+AC46","v":0},"Despesas e encargos",{"$f":"AE43+AE44+AE45+AE46","v":0}]
[{"$f":"C50+E50","v":0.5},"Quota-parte da mais-valia",{"$f":"VLOOKUP(C38, 'Art 13 CIMT'!B3:C12, 2, TRUE)*C39","v":0.2},"Quota-parte da mais-valia",{"$f":"VLOOKUP(E38, 'Art 13 CIMT'!$B$3:$C$12, 2, TRUE)*E39","v":0.3},"Quota-parte da mais-valia",{"$f":"VLOOKUP(G38, 'Art 13 CIMT'!$B$3:$C$12, 2, TRUE)*G39","v":0},"Quota-parte da mais-valia",{"$f":"VLOOKUP(I38, 'Art 13 CIMT'!$B$3:$C$12, 2, TRUE)*I39","v":0},"Quota-parte da mais-valia",{"$f":"VLOOKUP(K38, 'Art 13 CIMT'!$B$3:$C$12, 2, TRUE)*K39","v":0},"Quota-parte da mais-valia",{"$f":"VLOOKUP(M38, 'Art 13 CIMT'!$B$3:$C$12, 2, TRUE)*M39","v":0},"Quota-parte da mais-valia",{"$f":"VLOOKUP(O38, 'Art 13 CIMT'!$B$3:$C$12, 2, TRUE)*O39","v":0},"Quota-parte da mais-valia",{"$f":"VLOOKUP(Q38, 'Art 13 CIMT'!$B$3:$C$12, 2, TRUE)*Q39","v":0},"Quota-parte da mais-valia",{"$f":"VLOOKUP(S38, 'Art 13 CIMT'!$B$3:$C$12, 2, TRUE)*S39","v":0},"Quota-parte da mais-valia",{"$f":"VLOOKUP(U38, 'Art 13 CIMT'!$B$3:$C$12, 2, TRUE)*U39","v":0},"Quota-parte da mais-valia",{"$f":"VLOOKUP(W38, 'Art 13 CIMT'!$B$3:$C$12, 2, TRUE)*W39","v":0},"Quota-parte da mais-valia",{"$f":"VLOOKUP(Y38, 'Art 13 CIMT'!$B$3:$C$12, 2, TRUE)*Y39","v":0},"Quota-parte da mais-valia",{"$f":"VLOOKUP(AA38, 'Art 13 CIMT'!$B$3:$C$12, 2, TRUE)*AA39","v":0},"Quota-parte da mais-valia",{"$f":"VLOOKUP(AC38, 'Art 13 CIMT'!$B$3:$C$12, 2, TRUE)*AC39","v":0},"Quota-parte da mais-valia",{"$f":"VLOOKUP(AE38, 'Art 13 CIMT'!$B$3:$C$12, 2, TRUE)*AE39","v":0}]
[null,"Mais-valia do usufrutuário",{"$f":"(C8-(C41*C48)-C49)*C50","v":17938},"Mais-valia do usufrutuário",{"$f":"($C$8-(E41*E48)-E49)*E50","v":25407},"Mais-valia do usufrutuário",{"$f":"($C$8-(G41*G48)-G49)*G50","v":{"$error":"#N/A"}},"Mais-valia do usufrutuário",{"$f":"($C$8-(I41*I48)-I49)*I50","v":{"$error":"#N/A"}},"Mais-valia do usufrutuário",{"$f":"($C$8-(K41*K48)-K49)*K50","v":{"$error":"#N/A"}},"Mais-valia do usufrutuário",{"$f":"($C$8-(M41*M48)-M49)*M50","v":{"$error":"#N/A"}},"Mais-valia do usufrutuário",{"$f":"($C$8-(O41*O48)-O49)*O50","v":{"$error":"#N/A"}},"Mais-valia do usufrutuário",{"$f":"($C$8-(Q41*Q48)-Q49)*Q50","v":{"$error":"#N/A"}},"Mais-valia do usufrutuário",{"$f":"($C$8-(S41*S48)-S49)*S50","v":{"$error":"#N/A"}},"Mais-valia do usufrutuário",{"$f":"($C$8-(U41*U48)-U49)*U50","v":{"$error":"#N/A"}},"Mais-valia do usufrutuário",{"$f":"($C$8-(W41*W48)-W49)*W50","v":{"$error":"#N/A"}},"Mais-valia do usufrutuário",{"$f":"($C$8-(Y41*Y48)-Y49)*Y50","v":{"$error":"#N/A"}},"Mais-valia do usufrutuário",{"$f":"($C$8-(AA41*AA48)-AA49)*AA50","v":{"$error":"#N/A"}},"Mais-valia do usufrutuário",{"$f":"($C$8-(AC41*AC48)-AC49)*AC50","v":{"$error":"#N/A"}},"Mais-valia do usufrutuário",{"$f":"($C$8-(AE41*AE48)-AE49)*AE50","v":{"$error":"#N/A"}}]
[null,"Art 43º (50%)",{"$f":"C51/2","v":8969},"Art 43º (50%)",{"$f":"E51/2","v":12703.5},"Art 43º (50%)",{"$f":"G51/2","v":{"$error":"#N/A"}},"Art 43º (50%)",{"$f":"I51/2","v":{"$error":"#N/A"}},"Art 43º (50%)",{"$f":"K51/2","v":{"$error":"#N/A"}},"Art 43º (50%)",{"$f":"M51/2","v":{"$error":"#N/A"}},"Art 43º (50%)",{"$f":"O51/2","v":{"$error":"#N/A"}},"Art 43º (50%)",{"$f":"Q51/2","v":{"$error":"#N/A"}},"Art 43º (50%)",{"$f":"S51/2","v":{"$error":"#N/A"}},"Art 43º (50%)",{"$f":"U51/2","v":{"$error":"#N/A"}},"Art 43º (50%)",{"$f":"W51/2","v":{"$error":"#N/A"}},"Art 43º (50%)",{"$f":"Y51/2","v":{"$error":"#N/A"}},"Art 43º (50%)",{"$f":"AA51/2","v":{"$error":"#N/A"}},"Art 43º (50%)",{"$f":"AC51/2","v":{"$error":"#N/A"}},"Art 43º (50%)",{"$f":"AE51/2","v":{"$error":"#N/A"}}]
[null,"Dados pessoais",null,"Dados pessoais",null,"Dados pessoais",null,"Dados pessoais",null,"Dados pessoais",null,"Dados pessoais",null,"Dados pessoais",null,"Dados pessoais",null,"Dados pessoais",null,"Dados pessoais",null,"Dados pessoais",null,"Dados pessoais",null,"Dados pessoais",null,"Dados pessoais",null,"Dados pessoais"]
[null,"Rendimento anual coletável",35000,"Rendimento anual coletável",30000,"Rendimento anual coletável",null,"Rendimento anual coletável",null,"Rendimento anual coletável",null,"Rendimento anual coletável",null,"Rendimento anual coletável",null,"Rendimento anual coletável",null,"Rendimento anual coletável",null,"Rendimento anual coletável",null,"Rendimento anual coletável",null,"Rendimento anual coletável",null,"Rendimento anual coletável",null,"Rendimento anual coletável",null,"Rendimento anual coletável"]
[null,"Taxa de IRS",{"$f":"IFERROR(\n   (\n     (C54 * INDEX('Tabelas IRS'!$C$2:$C$12, MATCH(C54, 'Tabelas IRS'!$A$2:$A$12, 1)))\n     - INDEX('Tabelas IRS'!$D$2:$D$12, MATCH(C54, 'Tabelas IRS'!$A$2:$A$12, 1))\n   ) / C54,\n   0\n)","v":0.24005314285714288},"Taxa de IRS",{"$f":"IFERROR(\n   (\n     (E54 * INDEX('Tabelas IRS'!$C$2:$C$12, MATCH(E54, 'Tabelas IRS'!$A$2:$A$12, 1)))\n     - INDEX('Tabelas IRS'!$D$2:$D$12, MATCH(E54, 'Tabelas IRS'!$A$2:$A$12, 1))\n   ) / E54,\n   0\n)","v":0.22089533333333336},"Taxa de IRS",{"$f":"IFERROR(\n   (\n     (G54 * INDEX('Tabelas IRS'!$C$2:$C$12, MATCH(G54, 'Tabelas IRS'!$A$2:$A$12, 1)))\n     - INDEX('Tabelas IRS'!$D$2:$D$12, MATCH(G54, 'Tabelas IRS'!$A$2:$A$12, 1))\n   ) / G54,\n   0\n)","v":0},"Taxa de IRS",{"$f":"IFERROR(\n   (\n     (I54 * INDEX('Tabelas IRS'!$C$2:$C$12, MATCH(I54, 'Tabelas IRS'!$A$2:$A$12, 1)))\n     - INDEX('Tabelas IRS'!$D$2:$D$12, MATCH(I54, 'Tabelas IRS'!$A$2:$A$12, 1))\n   ) / I54,\n   0\n)","v":0},"Taxa de IRS",{"$f":"IFERROR(\n   (\n     (K54 * INDEX('Tabelas IRS'!$C$2:$C$12, MATCH(K54, 'Tabelas IRS'!$A$2:$A$12, 1)))\n     - INDEX('Tabelas IRS'!$D$2:$D$12, MATCH(K54, 'Tabelas IRS'!$A$2:$A$12, 1))\n   ) / K54,\n   0\n)","v":0},"Taxa de IRS",{"$f":"IFERROR(\n   (\n     (M54 * INDEX('Tabelas IRS'!$C$2:$C$12, MATCH(M54, 'Tabelas IRS'!$A$2:$A$12, 1)))\n     - INDEX('Tabelas IRS'!$D$2:$D$12, MATCH(M54, 'Tabelas IRS'!$A$2:$A$12, 1))\n   ) / M54,\n   0\n)","v":0},"Taxa de IRS",{"$f":"IFERROR(\n   (\n     (O54 * INDEX('Tabelas IRS'!$C$2:$C$12, MATCH(O54, 'Tabelas IRS'!$A$2:$A$12, 1)))\n     - INDEX('Tabelas IRS'!$D$2:$D$12, MATCH(O54, 'Tabelas IRS'!$A$2:$A$12, 1))\n   ) / O54,\n   0\n)","v":0},"Taxa de IRS",{"$f":"IFERROR(\n   (\n     (Q54 * INDEX('Tabelas IRS'!$C$2:$C$12, MATCH(Q54, 'Tabelas IRS'!$A$2:$A$12, 1)))\n     - INDEX('Tabelas IRS'!$D$2:$D$12, MATCH(Q54, 'Tabelas IRS'!$A$2:$A$12, 1))\n   ) / Q54,\n   0\n)","v":0},"Taxa de IRS",{"$f":"IFERROR(\n   (\n     (S54 * INDEX('Tabelas IRS'!$C$2:$C$12, MATCH(S54, 'Tabelas IRS'!$A$2:$A$12, 1)))\n     - INDEX('Tabelas IRS'!$D$2:$D$12, MATCH(S54, 'Tabelas IRS'!$A$2:$A$12, 1))\n   ) / S54,\n   0\n)","v":0},"Taxa de IRS",{"$f":"IFERROR(\n   (\n     (U54 * INDEX('Tabelas IRS'!$C$2:$C$12, MATCH(U54, 'Tabelas IRS'!$A$2:$A$12, 1)))\n     - INDEX('Tabelas IRS'!$D$2:$D$12, MATCH(U54, 'Tabelas IRS'!$A$2:$A$12, 1))\n   ) / U54,\n   0\n)","v":0},"Taxa de IRS",{"$f":"IFERROR(\n   (\n     (W54 * INDEX('Tabelas IRS'!$C$2:$C$12, MATCH(W54, 'Tabelas IRS'!$A$2:$A$12, 1)))\n     - INDEX('Tabelas IRS'!$D$2:$D$12, MATCH(W54, 'Tabelas IRS'!$A$2:$A$12, 1))\n   ) / W54,\n   0\n)","v":0},"Taxa de IRS",{"$f":"IFERROR(\n   (\n     (Y54 * INDEX('Tabelas IRS'!$C$2:$C$12, MATCH(Y54, 'Tabelas IRS'!$A$2:$A$12, 1)))\n     - INDEX('Tabelas IRS'!$D$2:$D$12, MATCH(Y54, 'Tabelas IRS'!$A$2:$A$12, 1))\n   ) / Y54,\n   0\n)","v":0},"Taxa de IRS",{"$f":"IFERROR(\n   (\n     (AA54 * INDEX('Tabelas IRS'!$C$2:$C$12, MATCH(AA54, 'Tabelas IRS'!$A$2:$A$12, 1)))\n     - INDEX('Tabelas IRS'!$D$2:$D$12, MATCH(AA54, 'Tabelas IRS'!$A$2:$A$12, 1))\n   ) / AA54,\n   0\n)","v":0},"Taxa de IRS",{"$f":"IFERROR(\n   (\n     (AC54 * INDEX('Tabelas IRS'!$C$2:$C$12, MATCH(AC54, 'Tabelas IRS'!$A$2:$A$12, 1)))\n     - INDEX('Tabelas IRS'!$D$2:$D$12, MATCH(AC54, 'Tabelas IRS'!$A$2:$A$12, 1))\n   ) / AC54,\n   0\n)","v":0},"Taxa de IRS",{"$f":"IFERROR(\n   (\n     (AE54 * INDEX('Tabelas IRS'!$C$2:$C$12, MATCH(AE54, 'Tabelas IRS'!$A$2:$A$12, 1)))\n     - INDEX('Tabelas IRS'!$D$2:$D$12, MATCH(AE54, 'Tabelas IRS'!$A$2:$A$12, 1))\n   ) / AE54,\n   0\n)","v":0}]
[null,"Rendimento anual com mais-valia",{"$f":"C54+C52","v":43969},"Rendimento anual com mais-valia",{"$f":"E54+E52","v":42703.5},"Rendimento anual com mais-valia",{"$f":"G54+G52","v":{"$error":"#N/A"}},"Rendimento anual com mais-valia",{"$f":"I54+I52","v":{"$error":"#N/A"}},"Rendimento anual com mais-valia",{"$f":"K54+K52","v":{"$error":"#N/A"}},"Rendimento anual com mais-valia",{"$f":"M54+M52","v":{"$error":"#N/A"}},"Rendimento anual com mais-valia",{"$f":"O54+O52","v":{"$error":"#N/A"}},"Rendimento anual com mais-valia",{"$f":"Q54+Q52","v":{"$error":"#N/A"}},"Rendimento anual com mais-valia",{"$f":"S54+S52","v":{"$error":"#N/A"}},"Rendimento anual com mais-valia",{"$f":"U54+U52","v":{"$error":"#N/A"}},"Rendimento anual com mais-valia",{"$f":"W54+W52","v":{"$error":"#N/A"}},"Rendimento anual com mais-valia",{"$f":"Y54+Y52","v":{"$error":"#N/A"}},"Rendimento anual com mais-valia",{"$f":"AA54+AA52","v":{"$error":"#N/A"}},"Rendimento anual com mais-valia",{"$f":"AC54+AC52","v":{"$error":"#N/A"}},"Rendimento anual com mais-valia",{"$f":"AE54+AE52","v":{"$error":"#N/A"}}]
[null,"Taxa de IRS",{"$f":"IFERROR(\n   (\n     (C56 * INDEX('Tabelas IRS'!$C$2:$C$12, MATCH(C56, 'Tabelas IRS'!$A$2:$A$12, 1)))\n     - INDEX('Tabelas IRS'!$D$2:$D$12, MATCH(C56, 'Tabelas IRS'!$A$2:$A$12, 1))\n   ) / C56,\n   0\n)","v":0.26775125656712684},"Taxa de IRS",{"$f":"IFERROR(\n   (\n     (E56 * INDEX('Tabelas IRS'!$C$2:$C$12, MATCH(E56, 'Tabelas IRS'!$A$2:$A$12, 1)))\n     - INDEX('Tabelas IRS'!$D$2:$D$12, MATCH(E56, 'Tabelas IRS'!$A$2:$A$12, 1))\n   ) / E56,\n   0\n)","v":0.26279491142412215},"Taxa de IRS",{"$f":"IFERROR(\n   (\n     (G56 * INDEX('Tabelas IRS'!$C$2:$C$12, MATCH(G56, 'Tabelas IRS'!$A$2:$A$12, 1)))\n     - INDEX('Tabelas IRS'!$D$2:$D$12, MATCH(G56, 'Tabelas IRS'!$A$2:$A$12, 1))\n   ) / G56,\n   0\n)","v":0},"Taxa de IRS",{"$f":"IFERROR(\n   (\n     (I56 * INDEX('Tabelas IRS'!$C$2:$C$12, MATCH(I56, 'Tabelas IRS'!$A$2:$A$12, 1)))\n     - INDEX('Tabelas IRS'!$D$2:$D$12, MATCH(I56, 'Tabelas IRS'!$A$2:$A$12, 1))\n   ) / I56,\n   0\n)","v":0},"Taxa de IRS",{"$f":"IFERROR(\n   (\n     (K56 * INDEX('Tabelas IRS'!$C$2:$C$12, MATCH(K56, 'Tabelas IRS'!$A$2:$A$12, 1)))\n     - INDEX('Tabelas IRS'!$D$2:$D$12, MATCH(K56, 'Tabelas IRS'!$A$2:$A$12, 1))\n   ) / K56,\n   0\n)","v":0},"Taxa de IRS",{"$f":"IFERROR(\n   (\n     (M56 * INDEX('Tabelas IRS'!$C$2:$C$12, MATCH(M56, 'Tabelas IRS'!$A$2:$A$12, 1)))\n     - INDEX('Tabelas IRS'!$D$2:$D$12, MATCH(M56, 'Tabelas IRS'!$A$2:$A$12, 1))\n   ) / M56,\n   0\n)","v":0},"Taxa de IRS",{"$f":"IFERROR(\n   (\n     (O56 * INDEX('Tabelas IRS'!$C$2:$C$12, MATCH(O56, 'Tabelas IRS'!$A$2:$A$12, 1)))\n     - INDEX('Tabelas IRS'!$D$2:$D$12, MATCH(O56, 'Tabelas IRS'!$A$2:$A$12, 1))\n   ) / O56,\n   0\n)","v":0},"Taxa de IRS",{"$f":"IFERROR(\n   (\n     (Q56 * INDEX('Tabelas IRS'!$C$2:$C$12, MATCH(Q56, 'Tabelas IRS'!$A$2:$A$12, 1)))\n     - INDEX('Tabelas IRS'!$D$2:$D$12, MATCH(Q56, 'Tabelas IRS'!$A$2:$A$12, 1))\n   ) / Q56,\n   0\n)","v":0},"Taxa de IRS",{"$f":"IFERROR(\n   (\n     (S56 * INDEX('Tabelas IRS'!$C$2:$C$12, MATCH(S56, 'Tabelas IRS'!$A$2:$A$12, 1)))\n     - INDEX('Tabelas IRS'!$D$2:$D$12, MATCH(S56, 'Tabelas IRS'!$A$2:$A$12, 1))\n   ) / S56,\n   0\n)","v":0},"Taxa de IRS",{"$f":"IFERROR(\n   (\n     (U56 * INDEX('Tabelas IRS'!$C$2:$C$12, MATCH(U56, 'Tabelas IRS'!$A$2:$A$12, 1)))\n     - INDEX('Tabelas IRS'!$D$2:$D$12, MATCH(U56, 'Tabelas IRS'!$A$2:$A$12, 1))\n   ) / U56,\n   0\n)","v":0},"Taxa de IRS",{"$f":"IFERROR(\n   (\n     (W56 * INDEX('Tabelas IRS'!$C$2:$C$12, MATCH(W56, 'Tabelas IRS'!$A$2:$A$12, 1)))\n     - INDEX('Tabelas IRS'!$D$2:$D$12, MATCH(W56, 'Tabelas IRS'!$A$2:$A$12, 1))\n   ) / W56,\n   0\n)","v":0},"Taxa de IRS",{"$f":"IFERROR(\n   (\n     (Y56 * INDEX('Tabelas IRS'!$C$2:$C$12, MATCH(Y56, 'Tabelas IRS'!$A$2:$A$12, 1)))\n     - INDEX('Tabelas IRS'!$D$2:$D$12, MATCH(Y56, 'Tabelas IRS'!$A$2:$A$12, 1))\n   ) / Y56,\n   0\n)","v":0},"Taxa de IRS",{"$f":"IFERROR(\n   (\n     (AA56 * INDEX('Tabelas IRS'!$C$2:$C$12, MATCH(AA56, 'Tabelas IRS'!$A$2:$A$12, 1)))\n     - INDEX('Tabelas IRS'!$D$2:$D$12, MATCH(AA56, 'Tabelas IRS'!$A$2:$A$12, 1))\n   ) / AA56,\n   0\n)","v":0},"Taxa de IRS",{"$f":"IFERROR(\n   (\n     (AC56 * INDEX('Tabelas IRS'!$C$2:$C$12, MATCH(AC56, 'Tabelas IRS'!$A$2:$A$12, 1)))\n     - INDEX('Tabelas IRS'!$D$2:$D$12, MATCH(AC56, 'Tabelas IRS'!$A$2:$A$12, 1))\n   ) / AC56,\n   0\n)","v":0},"Taxa de IRS",{"$f":"IFERROR(\n   (\n     (AE56 * INDEX('Tabelas IRS'!$C$2:$C$12, MATCH(AE56, 'Tabelas IRS'!$A$2:$A$12, 1)))\n     - INDEX('Tabelas IRS'!$D$2:$D$12, MATCH(AE56, 'Tabelas IRS'!$A$2:$A$12, 1))\n   ) / AE56,\n   0\n)","v":0}]
[null,"Imposto da Mais-valia",{"$f":"C56*C57-INDEX('Tabelas IRS'!D4:D12,MATCH(C56,'Tabelas IRS'!B4:B12,1))-(C54*C55-INDEX('Tabelas IRS'!D4:D12,MATCH(C56,'Tabelas IRS'!B4:B12,1)))","v":3370.8949999999986},"Imposto da Mais-valia",{"$f":"E56*E57-INDEX('Tabelas IRS'!$D$2:$D$12, MATCH(E32, 'Tabelas IRS'!$A$2:$A$12, 1))-(E54*E55-INDEX('Tabelas IRS'!$D$2:$D$12, MATCH(E32, 'Tabelas IRS'!$A$2:$A$12, 1)))","v":4595.4025000000001},"Imposto da Mais-valia",{"$f":"G56*G57-INDEX('Tabelas IRS'!$D$2:$D$12, MATCH(G32, 'Tabelas IRS'!$A$2:$A$12, 1))-(G54*G55-INDEX('Tabelas IRS'!$D$2:$D$12, MATCH(G32, 'Tabelas IRS'!$A$2:$A$12, 1)))","v":{"$error":"#N/A"}},"Imposto da Mais-valia",{"$f":"I56*I57-INDEX('Tabelas IRS'!$D$2:$D$12, MATCH(I32, 'Tabelas IRS'!$A$2:$A$12, 1))-(I54*I55-INDEX('Tabelas IRS'!$D$2:$D$12, MATCH(I32, 'Tabelas IRS'!$A$2:$A$12, 1)))","v":{"$error":"#N/A"}},"Imposto da Mais-valia",{"$f":"K56*K57-INDEX('Tabelas IRS'!$D$2:$D$12, MATCH(K32, 'Tabelas IRS'!$A$2:$A$12, 1))-(K54*K55-INDEX('Tabelas IRS'!$D$2:$D$12, MATCH(K32, 'Tabelas IRS'!$A$2:$A$12, 1)))","v":{"$error":"#N/A"}},"Imposto da Mais-valia",{"$f":"M56*M57-INDEX('Tabelas IRS'!$D$2:$D$12, MATCH(M32, 'Tabelas IRS'!$A$2:$A$12, 1))-(M54*M55-INDEX('Tabelas IRS'!$D$2:$D$12, MATCH(M32, 'Tabelas IRS'!$A$2:$A$12, 1)))","v":{"$error":"#N/A"}},"Imposto da Mais-valia",{"$f":"O56*O57-INDEX('Tabelas IRS'!$D$2:$D$12, MATCH(O32, 'Tabelas IRS'!$A$2:$A$12, 1))-(O54*O55-INDEX('Tabelas IRS'!$D$2:$D$12, MATCH(O32, 'Tabelas IRS'!$A$2:$A$12, 1)))","v":{"$error":"#N/A"}},"Imposto da Mais-valia",{"$f":"Q56*Q57-INDEX('Tabelas IRS'!$D$2:$D$12, MATCH(Q32, 'Tabelas IRS'!$A$2:$A$12, 1))-(Q54*Q55-INDEX('Tabelas IRS'!$D$2:$D$12, MATCH(Q32, 'Tabelas IRS'!$A$2:$A$12, 1)))","v":{"$error":"#N/A"}},"Imposto da Mais-valia",{"$f":"S56*S57-INDEX('Tabelas IRS'!$D$2:$D$12, MATCH(S32, 'Tabelas IRS'!$A$2:$A$12, 1))-(S54*S55-INDEX('Tabelas IRS'!$D$2:$D$12, MATCH(S32, 'Tabelas IRS'!$A$2:$A$12, 1)))","v":{"$error":"#N/A"}},"Imposto da Mais-valia",{"$f":"U56*U57-INDEX('Tabelas IRS'!$D$2:$D$12, MATCH(U32, 'Tabelas IRS'!$A$2:$A$12, 1))-(U54*U55-INDEX('Tabelas IRS'!$D$2:$D$12, MATCH(U32, 'Tabelas IRS'!$A$2:$A$12, 1)))","v":{"$error":"#N/A"}},"Imposto da Mais-valia",{"$f":"W56*W57-INDEX('Tabelas IRS'!$D$2:$D$12, MATCH(W32, 'Tabelas IRS'!$A$2:$A$12, 1))-(W54*W55-INDEX('Tabelas IRS'!$D$2:$D$12, MATCH(W32, 'Tabelas IRS'!$A$2:$A$12, 1)))","v":{"$error":"#N/A"}},"Imposto da Mais-valia",{"$f":"Y56*Y57-INDEX('Tabelas IRS'!$D$2:$D$12, MATCH(Y32, 'Tabelas IRS'!$A$2:$A$12, 1))-(Y54*Y55-INDEX('Tabelas IRS'!$D$2:$D$12, MATCH(Y32, 'Tabelas IRS'!$A$2:$A$12, 1)))","v":{"$error":"#N/A"}},"Imposto da Mais-valia",{"$f":"AA56*AA57-INDEX('Tabelas IRS'!$D$2:$D$12, MATCH(AA32, 'Tabelas IRS'!$A$2:$A$12, 1))-(AA54*AA55-INDEX('Tabelas IRS'!$D$2:$D$12, MATCH(AA32, 'Tabelas IRS'!$A$2:$A$12, 1)))","v":{"$error":"#N/A"}},"Imposto da Mais-valia",{"$f":"AC56*AC57-INDEX('Tabelas IRS'!$D$2:$D$12, MATCH(AC32, 'Tabelas IRS'!$A$2:$A$12, 1))-(AC54*AC55-INDEX('Tabelas IRS'!$D$2:$D$12, MATCH(AC32, 'Tabelas IRS'!$A$2:$A$12, 1)))","v":{"$error":"#N/A"}},"Imposto da Mais-valia",{"$f":"AE56*AE57-INDEX('Tabelas IRS'!$D$2:$D$12, MATCH(AE32, 'Tabelas IRS'!$A$2:$A$12, 1))-(AE54*AE55-INDEX('Tabelas IRS'!$D$2:$D$12, MATCH(AE32, 'Tabelas IRS'!$A$2:$A$12, 1)))","v":{"$error":"#N/A"}}]
[]
[null,"Nu-Proprietário 1",null,"Nu-Proprietário 2",null,"Nu-Proprietário 3",null,"Nu-Proprietário 4",null,"Nu-Proprietário 5",null,"Nu-Proprietário 6",null,"Nu-Proprietário 7",null,"Nu-Proprietário 8",null,"Nu-Proprietário 9",null,"Nu-Proprietário 10",null,"Nu-Proprietário 11",null,"Nu-Proprietário 12",null,"Nu-Proprietário 13",null,"Nu-Proprietário 14",null,"Nu-Proprietário 15"]
[null,"Nome ","André","Nome ","Francisco","Nome ",null,"Nome ",null,"Nome ",null,"Nome ",null,"Nome ",null,"Nome ",null,"Nome ",null,"Nome ",null,"Nome ",null,"Nome ",null,"Nome ",null,"Nome ",null,"Nome "]
[null,"Idade",28,"Idade",33,"Idade",null,"Idade",null,"Idade",null,"Idade",null,"Idade",null,"Idade",null,"Idade",null,"Idade",null,"Idade",null,"Idade",null,"Idade",null,"Idade",null,"Idade"]
[{"$f":"SUM(INDEX(63:63, _xlfn.SEQUENCE(C3, , 3, 2)))","v":1},"Quota-parte do direito",0.5,"Quota-parte do direito",0.5,"Quota-parte do direito",null,"Quota-parte do direito",null,"Quota-parte do direito",null,"Quota-parte do direito",null,"Quota-parte do direito",null,"Quota-parte do direito",null,"Quota-parte do direito",null,"Quota-parte do direito",null,"Quota-parte do direito",null,"Quota-parte do direito",null,"Quota-parte do direito",null,"Quota-parte do direito",null,"Quota-parte do direito"]
[{"$f":"IF(A63<>100%, \"As percentagens dos nu-proprietários não totalizam 100%, voltar a confirmar quotas de todos os proprietários\", \"\")","v":""},"Origem","Herança direta","Origem","Herança direta","Origem",null,"Origem",null,"Origem",null,"Origem",null,"Origem",null,"Origem",null,"Origem",null,"Origem",null,"Origem",null,"Origem",null,"Origem",null,"Origem",null,"Origem"]
[null,{"$f":"IF(C64=\"Herança direta\", \"Valor patrimonial\", IF(C64=\"Herança de terceiro\", \"Valor do imóvel na doação\", IF(C64=\"Aquisição\", \"Valor de aquisição\", \"\")))","v":"Valor patrimonial"},19000,{"$f":"IF(E64=\"Herança direta\", \"Valor patrimonial\", IF(E64=\"Herança de terceiro\", \"Valor do imóvel na doação\", IF(E64=\"Aquisição\", \"Valor de aquisição\", \"\")))","v":"Valor patrimonial"},19000,{"$f":"IF(G64=\"Herança direta\", \"Valor patrimonial\", IF(G64=\"Herança de terceiro\", \"Valor do imóvel na doação\", IF(G64=\"Aquisição\", \"Valor de aquisição\", \"\")))","v":""},null,{"$f":"IF(I64=\"Herança direta\", \"Valor patrimonial\", IF(I64=\"Herança de terceiro\", \"Valor do imóvel na doação\", IF(I64=\"Aquisição\", \"Valor de aquisição\", \"\")))","v":""},null,{"$f":"IF(K64=\"Herança direta\", \"Valor patrimonial\", IF(K64=\"Herança de terceiro\", \"Valor do imóvel na doação\", IF(K64=\"Aquisição\", \"Valor de aquisição\", \"\")))","v":""},null,{"$f":"IF(M64=\"Herança direta\", \"Valor patrimonial\", IF(M64=\"Herança de terceiro\", \"Valor do imóvel na doação\", IF(M64=\"Aquisição\", \"Valor de aquisição\", \"\")))","v":""},null,{"$f":"IF(O64=\"Herança direta\", \"Valor patrimonial\", IF(O64=\"Herança de terceiro\", \"Valor do imóvel na doação\", IF(O64=\"Aquisição\", \"Valor de aquisição\", \"\")))","v":""},null,{"$f":"IF(Q64=\"Herança direta\", \"Valor patrimonial\", IF(Q64=\"Herança de terceiro\", \"Valor do imóvel na doação\", IF(Q64=\"Aquisição\", \"Valor de aquisição\", \"\")))","v":""},null,{"$f":"IF(S64=\"Herança direta\", \"Valor patrimonial\", IF(S64=\"Herança de terceiro\", \"Valor do imóvel na doação\", IF(S64=\"Aquisição\", \"Valor de aquisição\", \"\")))","v":""},null,{"$f":"IF(U64=\"Herança direta\", \"Valor patrimonial\", IF(U64=\"Herança de terceiro\", \"Valor do imóvel na doação\", IF(U64=\"Aquisição\", \"Valor de aquisição\", \"\")))","v":""},null,{"$f":"IF(W64=\"Herança direta\", \"Valor patrimonial\", IF(W64=\"Herança de terceiro\", \"Valor do imóvel na doação\", IF(W64=\"Aquisição\", \"Valor de aquisição\", \"\")))","v":""},null,{"$f":"IF(Y64=\"Herança direta\", \"Valor patrimonial\", IF(Y64=\"Herança de terceiro\", \"Valor do imóvel na doação\", IF(Y64=\"Aquisição\", \"Valor de aquisição\", \"\")))","v":""},null,{"$f":"IF(AA64=\"Herança direta\", \"Valor patrimonial\", IF(AA64=\"Herança de terceiro\", \"Valor do imóvel na doação\", IF(AA64=\"Aquisição\", \"Valor de aquisição\", \"\")))","v":""},null,{"$f":"IF(AC64=\"Herança direta\", \"Valor patrimonial\", IF(AC64=\"Herança de terceiro\", \"Valor do imóvel na doação\", IF(AC64=\"Aquisição\", \"Valor de aquisição\", \"\")))","v":""},null,{"$f":"IF(AE64=\"Herança direta\", \"Valor patrimonial\", IF(AE64=\"Herança de terceiro\", \"Valor do imóvel na doação\", IF(AE64=\"Aquisição\", \"Valor de aquisição\", \"\")))","v":""}]
[null,"Ano de aquisição",2013,"Ano de aquisição",2013,"Ano de aquisição",null,"Ano de aquisição",null,"Ano de aquisição",null,"Ano de aquisição",null,"Ano de aquisição",null,"Ano de aquisição",null,"Ano de aquisição",null,"Ano de aquisição",null,"Ano de aquisição",null,"Ano de aquisição",null,"Ano de aquisição",null,"Ano de aquisição",null,"Ano de aquisição"]
[null,"Obras nos últimos 12 anos",0,"Obras nos últimos 12 anos",0,"Obras nos últimos 12 anos",null,"Obras nos últimos 12 anos",null,"Obras nos últimos 12 anos",null,"Obras nos últimos 12 anos",null,"Obras nos últimos 12 anos",null,"Obras nos últimos 12 anos",null,"Obras nos últimos 12 anos",null,"Obras nos últimos 12 anos",null,"Obras nos últimos 12 anos",null,"Obras nos últimos 12 anos",null,"Obras nos últimos 12 anos",null,"Obras nos últimos 12 anos",null,"Obras nos últimos 12 anos"]
[null,"Impostos pagos na aquisição",100,"Impostos pagos na aquisição",100,"Impostos pagos na aquisição",null,"Impostos pagos na aquisição",null,"Impostos pagos na aquisição",null,"Impostos pagos na aquisição",null,"Impostos pagos na aquisição",null,"Impostos pagos na aquisição",null,"Impostos pagos na aquisição",null,"Impostos pagos na aquisição",null,"Impostos pagos na aquisição",null,"Impostos pagos na aquisição",null,"Impostos pagos na aquisição",null,"Impostos pagos na aquisição",null,"Impostos pagos na aquisição"]
[null,"Comissão imobiliária",2460,"Comissão imobiliária",2460,"Comissão imobiliária",null,"Comissão imobiliária",null,"Comissão imobiliária",null,"Comissão imobiliária",null,"Comissão imobiliária",null,"Comissão imobiliária",null,"Comissão imobiliária",null,"Comissão imobiliária",null,"Comissão imobiliária",null,"Comissão imobiliária",null,"Comissão imobiliária",null,"Comissão imobiliária",null,"Comissão imobiliária"]
[null,"Outros encargos dedutíveis",0,"Outros encargos dedutíveis",0,"Outros encargos dedutíveis",null,"Outros encargos dedutíveis",null,"Outros encargos dedutíveis",null,"Outros encargos dedutíveis",null,"Outros encargos dedutíveis",null,"Outros encargos dedutíveis",null,"Outros encargos dedutíveis",null,"Outros encargos dedutíveis",null,"Outros encargos dedutíveis",null,"Outros encargos dedutíveis",null,"Outros encargos dedutíveis",null,"Outros encargos dedutíveis",null,"Outros encargos dedutíveis"]
[null,"Cálculo da mais valia",null,"Cálculo da mais valia",null,"Cálculo da mais valia",null,"Cálculo da mais valia",null,"Cálculo da mais valia",null,"Cálculo da mais valia",null,"Cálculo da mais valia",null,"Cálculo da mais valia",null,"Cálculo da mais valia",null,"Cálculo da mais valia",null,"Cálculo da mais valia",null,"Cálculo da mais valia",null,"Cálculo da mais valia",null,"Cálculo da mais valia",null,"Cálculo da mais valia"]
[null,"Coeficiente de atualização",{"$f":"VLOOKUP(C66, 'Coeficiente de atualização'!B2:C154, 2, FALSE)","v":1.17},"Coeficiente de atualização",{"$f":"VLOOKUP(E66, 'Coeficiente de atualização'!$B$2:$C$154, 2, FALSE)","v":1.17},"Coeficiente de atualização",{"$f":"VLOOKUP(G66, 'Coeficiente de atualização'!$B$2:$C$154, 2, FALSE)","v":{"$error":"#N/A"}},"Coeficiente de atualização",{"$f":"VLOOKUP(I66, 'Coeficiente de atualização'!$B$2:$C$154, 2, FALSE)","v":{"$error":"#N/A"}},"Coeficiente de atualização",{"$f":"VLOOKUP(K66, 'Coeficiente de atualização'!$B$2:$C$154, 2, FALSE)","v":{"$error":"#N/A"}},"Coeficiente de atualização",{"$f":"VLOOKUP(M66, 'Coeficiente de atualização'!$B$2:$C$154, 2, FALSE)","v":{"$error":"#N/A"}},"Coeficiente de atualização",{"$f":"VLOOKUP(O66, 'Coeficiente de atualização'!$B$2:$C$154, 2, FALSE)","v":{"$error":"#N/A"}},"Coeficiente de atualização",{"$f":"VLOOKUP(Q66, 'Coeficiente de atualização'!$B$2:$C$154, 2, FALSE)","v":{"$error":"#N/A"}},"Coeficiente de atualização",{"$f":"VLOOKUP(S66, 'Coeficiente de atualização'!$B$2:$C$154, 2, FALSE)","v":{"$error":"#N/A"}},"Coeficiente de atualização",{"$f":"VLOOKUP(U66, 'Coeficiente de atualização'!$B$2:$C$154, 2, FALSE)","v":{"$error":"#N/A"}},"Coeficiente de atualização",{"$f":"VLOOKUP(W66, 'Coeficiente de atualização'!$B$2:$C$154, 2, FALSE)","v":{"$error":"#N/A"}},"Coeficiente de atualização",{"$f":"VLOOKUP(Y66, 'Coeficiente de atualização'!$B$2:$C$154, 2, FALSE)","v":{"$error":"#N/A"}},"Coeficiente de atualização",{"$f":"VLOOKUP(AA66, 'Coeficiente de atualização'!$B$2:$C$154, 2, FALSE)","v":{"$error":"#N/A"}},"Coeficiente de atualização",{"$f":"VLOOKUP(AC66, 'Coeficiente de atualização'!$B$2:$C$154, 2, FALSE)","v":{"$error":"#N/A"}},"Coeficiente de atualização",{"$f":"VLOOKUP(AE66, 'Coeficiente de atualização'!$B$2:$C$154, 2, FALSE)","v":{"$error":"#N/A"}}]
[null,"Despesas e encargos",{"$f":"C68++C67+C69+C70","v":2560},"Despesas e encargos",{"$f":"E67+E68+E69+E70","v":2560},"Despesas e encargos",{"$f":"G67+G68+G69+G70","v":0},"Despesas e encargos",{"$f":"I67+I68+I69+I70","v":0},"Despesas e encargos",{"$f":"K67+K68+K69+K70","v":0},"Despesas e encargos",{"$f":"M67+M68+M69+M70","v":0},"Despesas e encargos",{"$f":"O67+O68+O69+O70","v":0},"Despesas e encargos",{"$f":"Q67+Q68+Q69+Q70","v":0},"Despesas e encargos",{"$f":"S67+S68+S69+S70","v":0},"Despesas e encargos",{"$f":"U67+U68+U69+U70","v":0},"Despesas e encargos",{"$f":"W67+W68+W69+W70","v":0},"Despesas e encargos",{"$f":"Y67+Y68+Y69+Y70","v":0},"Despesas e encargos",{"$f":"AA67+AA68+AA69+AA70","v":0},"Despesas e encargos",{"$f":"AC67+AC68+AC69+AC70","v":0},"Despesas e encargos",{"$f":"AE67+AE68+AE69+AE70","v":0}]
[{"$f":"1-A50","v":0.5},"Quota-parte da mais-valia",{"$f":"A74*C63","v":0.25},"Quota-parte da mais-valia",{"$f":"$A$74*$E$63","v":0.25},"Quota-parte da mais-valia",{"$f":"$A$74*$E$63","v":0.25},"Quota-parte da mais-valia",{"$f":"$A$74*$E$63","v":0.25},"Quota-parte da mais-valia",{"$f":"$A$74*$E$63","v":0.25},"Quota-parte da mais-valia",{"$f":"$A$74*$E$63","v":0.25},"Quota-parte da mais-valia",{"$f":"$A$74*$E$63","v":0.25},"Quota-parte da mais-valia",{"$f":"$A$74*$E$63","v":0.25},"Quota-parte da mais-valia",{"$f":"$A$74*$E$63","v":0.25},"Quota-parte da mais-valia",{"$f":"$A$74*$E$63","v":0.25},"Quota-parte da mais-valia",{"$f":"$A$74*$E$63","v":0.25},"Quota-parte da mais-valia",{"$f":"$A$74*$E$63","v":0.25},"Quota-parte da mais-valia",{"$f":"$A$74*$E$63","v":0.25},"Quota-parte da mais-valia",{"$f":"$A$74*$E$63","v":0.25},"Quota-parte da mais-valia",{"$f":"$A$74*$E$63","v":0.25}]
[null,"Mais-valia do nu-proprietário",{"$f":"(C8-(C65*C72)-C73)*C74","v":38802.5},"Mais-valia do nu-proprietário",{"$f":"($C$8-(E65*E72)-E73)*E74","v":38802.5},"Mais-valia do nu-proprietário",{"$f":"($C$8-(G65*G72)-G73)*G74","v":{"$error":"#N/A"}},"Mais-valia do nu-proprietário",{"$f":"($C$8-(I65*I72)-I73)*I74","v":{"$error":"#N/A"}},"Mais-valia do nu-proprietário",{"$f":"($C$8-(K65*K72)-K73)*K74","v":{"$error":"#N/A"}},"Mais-valia do nu-proprietário",{"$f":"($C$8-(M65*M72)-M73)*M74","v":{"$error":"#N/A"}},"Mais-valia do nu-proprietário",{"$f":"($C$8-(O65*O72)-O73)*O74","v":{"$error":"#N/A"}},"Mais-valia do nu-proprietário",{"$f":"($C$8-(Q65*Q72)-Q73)*Q74","v":{"$error":"#N/A"}},"Mais-valia do nu-proprietário",{"$f":"($C$8-(S65*S72)-S73)*S74","v":{"$error":"#N/A"}},"Mais-valia do nu-proprietário",{"$f":"($C$8-(U65*U72)-U73)*U74","v":{"$error":"#N/A"}},"Mais-valia do nu-proprietário",{"$f":"($C$8-(W65*W72)-W73)*W74","v":{"$error":"#N/A"}},"Mais-valia do nu-proprietário",{"$f":"($C$8-(Y65*Y72)-Y73)*Y74","v":{"$error":"#N/A"}},"Mais-valia do nu-proprietário",{"$f":"($C$8-(AA65*AA72)-AA73)*AA74","v":{"$error":"#N/A"}},"Mais-valia do nu-proprietário",{"$f":"($C$8-(AC65*AC72)-AC73)*AC74","v":{"$error":"#N/A"}},"Mais-valia do nu-proprietário",{"$f":"($C$8-(AE65*AE72)-AE73)*AE74","v":{"$error":"#N/A"}}]
[null,"Art 43º (50%)",{"$f":"C75/2","v":19401.25},"Art 43º (50%)",{"$f":"E75/2","v":19401.25},"Art 43º (50%)",{"$f":"G75/2","v":{"$error":"#N/A"}},"Art 43º (50%)",{"$f":"I75/2","v":{"$error":"#N/A"}},"Art 43º (50%)",{"$f":"K75/2","v":{"$error":"#N/A"}},"Art 43º (50%)",{"$f":"M75/2","v":{"$error":"#N/A"}},"Art 43º (50%)",{"$f":"O75/2","v":{"$error":"#N/A"}},"Art 43º (50%)",{"$f":"Q75/2","v":{"$error":"#N/A"}},"Art 43º (50%)",{"$f":"S75/2","v":{"$error":"#N/A"}},"Art 43º (50%)",{"$f":"U75/2","v":{"$error":"#N/A"}},"Art 43º (50%)",{"$f":"W75/2","v":{"$error":"#N/A"}},"Art 43º (50%)",{"$f":"Y75/2","v":{"$error":"#N/A"}},"Art 43º (50%)",{"$f":"AA75/2","v":{"$error":"#N/A"}},"Art 43º (50%)",{"$f":"AC75/2","v":{"$error":"#N/A"}},"Art 43º (50%)",{"$f":"AE75/2","v":{"$error":"#N/A"}}]
[null,"Dados pessoais",null,"Dados pessoais",null,"Dados pessoais",null,"Dados pessoais",null,"Dados pessoais",null,"Dados pessoais",null,"Dados pessoais",null,"Dados pessoais",null,"Dados pessoais",null,"Dados pessoais",null,"Dados pessoais",null,"Dados pessoais",null,"Dados pessoais",null,"Dados pessoais",null,"Dados pessoais"]
[null,"Rendimento anual coletável",20000,"Rendimento anual coletável",15000,"Rendimento anual coletável",15000,"Rendimento anual coletável",15000,"Rendimento anual coletável",15000,"Rendimento anual coletável",15000,"Rendimento anual coletável",15000,"Rendimento anual coletável",15000,"Rendimento anual coletável",15000,"Rendimento anual coletável",15000,"Rendimento anual coletável",15000,"Rendimento anual coletável",15000,"Rendimento anual coletável",15000,"Rendimento anual coletável",15000,"Rendimento anual coletável",15000]
[{"$f":"IF(A50+A74<>100%, \"As percentagens dos usufrutuários e nu-proprietários não totalizam 100%, voltar a confirmar quotas de todos os proprietários\", \"\")","v":""},"Taxa de IRS",{"$f":"IFERROR(\n   (\n     (C78 * INDEX('Tabelas IRS'!$C$2:$C$12, MATCH(C78, 'Tabelas IRS'!$A$2:$A$12, 1)))\n     - INDEX('Tabelas IRS'!$D$2:$D$12, MATCH(C78, 'Tabelas IRS'!$A$2:$A$12, 1))\n   ) / C78,\n   0\n)","v":0.1766045},"Taxa de IRS",{"$f":"IFERROR(\n   (\n     (E78 * INDEX('Tabelas IRS'!$C$2:$C$12, MATCH(E78, 'Tabelas IRS'!$A$2:$A$12, 1)))\n     - INDEX('Tabelas IRS'!$D$2:$D$12, MATCH(E78, 'Tabelas IRS'!$A$2:$A$12, 1))\n   ) / E78,\n   0\n)","v":0.15660600000000002},"Taxa de IRS",{"$f":"IFERROR(\n   (\n     (G78 * INDEX('Tabelas IRS'!$C$2:$C$12, MATCH(G78, 'Tabelas IRS'!$A$2:$A$12, 1)))\n     - INDEX('Tabelas IRS'!$D$2:$D$12, MATCH(G78, 'Tabelas IRS'!$A$2:$A$12, 1))\n   ) / G78,\n   0\n)","v":0.15660600000000002},"Taxa de IRS",{"$f":"IFERROR(\n   (\n     (I78 * INDEX('Tabelas IRS'!$C$2:$C$12, MATCH(I78, 'Tabelas IRS'!$A$2:$A$12, 1)))\n     - INDEX('Tabelas IRS'!$D$2:$D$12, MATCH(I78, 'Tabelas IRS'!$A$2:$A$12, 1))\n   ) / I78,\n   0\n)","v":0.15660600000000002},"Taxa de IRS",{"$f":"IFERROR(\n   (\n     (K78 * INDEX('Tabelas IRS'!$C$2:$C$12, MATCH(K78, 'Tabelas IRS'!$A$2:$A$12, 1)))\n     - INDEX('Tabelas IRS'!$D$2:$D$12, MATCH(K78, 'Tabelas IRS'!$A$2:$A$12, 1))\n   ) / K78,\n   0\n)","v":0.15660600000000002},"Taxa de IRS",{"$f":"IFERROR(\n   (\n     (M78 * INDEX('Tabelas IRS'!$C$2:$C$12, MATCH(M78, 'Tabelas IRS'!$A$2:$A$12, 1)))\n     - INDEX('Tabelas IRS'!$D$2:$D$12, MATCH(M78, 'Tabelas IRS'!$A$2:$A$12, 1))\n   ) / M78,\n   0\n)","v":0.15660600000000002},"Taxa de IRS",{"$f":"IFERROR(\n   (\n     (O78 * INDEX('Tabelas IRS'!$C$2:$C$12, MATCH(O78, 'Tabelas IRS'!$A$2:$A$12, 1)))\n     - INDEX('Tabelas IRS'!$D$2:$D$12, MATCH(O78, 'Tabelas IRS'!$A$2:$A$12, 1))\n   ) / O78,\n   0\n)","v":0.15660600000000002},"Taxa de IRS",{"$f":"IFERROR(\n   (\n     (Q78 * INDEX('Tabelas IRS'!$C$2:$C$12, MATCH(Q78, 'Tabelas IRS'!$A$2:$A$12, 1)))\n     - INDEX('Tabelas IRS'!$D$2:$D$12, MATCH(Q78, 'Tabelas IRS'!$A$2:$A$12, 1))\n   ) / Q78,\n   0\n)","v":0.15660600000000002},"Taxa de IRS",{"$f":"IFERROR(\n   (\n     (S78 * INDEX('Tabelas IRS'!$C$2:$C$12, MATCH(S78, 'Tabelas IRS'!$A$2:$A$12, 1)))\n     - INDEX('Tabelas IRS'!$D$2:$D$12, MATCH(S78, 'Tabelas IRS'!$A$2:$A$12, 1))\n   ) / S78,\n   0\n)","v":0.15660600000000002},"Taxa de IRS",{"$f":"IFERROR(\n   (\n     (U78 * INDEX('Tabelas IRS'!$C$2:$C$12, MATCH(U78, 'Tabelas IRS'!$A$2:$A$12, 1)))\n     - INDEX('Tabelas IRS'!$D$2:$D$12, MATCH(U78, 'Tabelas IRS'!$A$2:$A$12, 1))\n   ) / U78,\n   0\n)","v":0.15660600000000002},"Taxa de IRS",{"$f":"IFERROR(\n   (\n     (W78 * INDEX('Tabelas IRS'!$C$2:$C$12, MATCH(W78, 'Tabelas IRS'!$A$2:$A$12, 1)))\n     - INDEX('Tabelas IRS'!$D$2:$D$12, MATCH(W78, 'Tabelas IRS'!$A$2:$A$12, 1))\n   ) / W78,\n   0\n)","v":0.15660600000000002},"Taxa de IRS",{"$f":"IFERROR(\n   (\n     (Y78 * INDEX('Tabelas IRS'!$C$2:$C$12, MATCH(Y78, 'Tabelas IRS'!$A$2:$A$12, 1)))\n     - INDEX('Tabelas IRS'!$D$2:$D$12, MATCH(Y78, 'Tabelas IRS'!$A$2:$A$12, 1))\n   ) / Y78,\n   0\n)","v":0.15660600000000002},"Taxa de IRS",{"$f":"IFERROR(\n   (\n     (AA78 * INDEX('Tabelas IRS'!$C$2:$C$12, MATCH(AA78, 'Tabelas IRS'!$A$2:$A$12, 1)))\n     - INDEX('Tabelas IRS'!$D$2:$D$12, MATCH(AA78, 'Tabelas IRS'!$A$2:$A$12, 1))\n   ) / AA78,\n   0\n)","v":0.15660600000000002},"Taxa de IRS",{"$f":"IFERROR(\n   (\n     (AC78 * INDEX('Tabelas IRS'!$C$2:$C$12, MATCH(AC78, 'Tabelas IRS'!$A$2:$A$12, 1)))\n     - INDEX('Tabelas IRS'!$D$2:$D$12, MATCH(AC78, 'Tabelas IRS'!$A$2:$A$12, 1))\n   ) / AC78,\n   0\n)","v":0.15660600000000002},"Taxa de IRS",{"$f":"IFERROR(\n   (\n     (AE78 * INDEX('Tabelas IRS'!$C$2:$C$12, MATCH(AE78, 'Tabelas IRS'!$A$2:$A$12, 1)))\n     - INDEX('Tabelas IRS'!$D$2:$D$12, MATCH(AE78, 'Tabelas IRS'!$A$2:$A$12, 1))\n   ) / AE78,\n   0\n)","v":0.15660600000000002}]
[null,"Rendimento anual com mais-valia",{"$f":"C78+C76","v":39401.25},"Rendimento anual com mais-valia",{"$f":"E78+E76","v":34401.25},"Rendimento anual com mais-valia",{"$f":"G78+G76","v":{"$error":"#N/A"}},"Rendimento anual com mais-valia",{"$f":"I78+I76","v":{"$error":"#N/A"}},"Rendimento anual com mais-valia",{"$f":"K78+K76","v":{"$error":"#N/A"}},"Rendimento anual com mais-valia",{"$f":"M78+M76","v":{"$error":"#N/A"}},"Rendimento anual com mais-valia",{"$f":"O78+O76","v":{"$error":"#N/A"}},"Rendimento anual com mais-valia",{"$f":"Q78+Q76","v":{"$error":"#N/A"}},"Rendimento anual com mais-valia",{"$f":"S78+S76","v":{"$error":"#N/A"}},"Rendimento anual com mais-valia",{"$f":"U78+U76","v":{"$error":"#N/A"}},"Rendimento anual com mais-valia",{"$f":"W78+W76","v":{"$error":"#N/A"}},"Rendimento anual com mais-valia",{"$f":"Y78+Y76","v":{"$error":"#N/A"}},"Rendimento anual com mais-valia",{"$f":"AA78+AA76","v":{"$error":"#N/A"}},"Rendimento anual com mais-valia",{"$f":"AC78+AC76","v":{"$error":"#N/A"}},"Rendimento anual com mais-valia",{"$f":"AE78+AE76","v":{"$error":"#N/A"}}]
[null,"Taxa de IRS",{"$f":"IFERROR(\n   (\n     (C80 * INDEX('Tabelas IRS'!$C$2:$C$12, MATCH(C80, 'Tabelas IRS'!$A$2:$A$12, 1)))\n     - INDEX('Tabelas IRS'!$D$2:$D$12, MATCH(C80, 'Tabelas IRS'!$A$2:$A$12, 1))\n   ) / C80,\n   0\n)","v":0.25289308714825037},"Taxa de IRS",{"$f":"IFERROR(\n   (\n     (E80 * INDEX('Tabelas IRS'!$C$2:$C$12, MATCH(E80, 'Tabelas IRS'!$A$2:$A$12, 1)))\n     - INDEX('Tabelas IRS'!$D$2:$D$12, MATCH(E80, 'Tabelas IRS'!$A$2:$A$12, 1))\n   ) / E80,\n   0\n)","v":0.23805250535954359},"Taxa de IRS",{"$f":"IFERROR(\n   (\n     (G80 * INDEX('Tabelas IRS'!$C$2:$C$12, MATCH(G80, 'Tabelas IRS'!$A$2:$A$12, 1)))\n     - INDEX('Tabelas IRS'!$D$2:$D$12, MATCH(G80, 'Tabelas IRS'!$A$2:$A$12, 1))\n   ) / G80,\n   0\n)","v":0},"Taxa de IRS",{"$f":"IFERROR(\n   (\n     (I80 * INDEX('Tabelas IRS'!$C$2:$C$12, MATCH(I80, 'Tabelas IRS'!$A$2:$A$12, 1)))\n     - INDEX('Tabelas IRS'!$D$2:$D$12, MATCH(I80, 'Tabelas IRS'!$A$2:$A$12, 1))\n   ) / I80,\n   0\n)","v":0},"Taxa de IRS",{"$f":"IFERROR(\n   (\n     (K80 * INDEX('Tabelas IRS'!$C$2:$C$12, MATCH(K80, 'Tabelas IRS'!$A$2:$A$12, 1)))\n     - INDEX('Tabelas IRS'!$D$2:$D$12, MATCH(K80, 'Tabelas IRS'!$A$2:$A$12, 1))\n   ) / K80,\n   0\n)","v":0},"Taxa de IRS",{"$f":"IFERROR(\n   (\n     (M80 * INDEX('Tabelas IRS'!$C$2:$C$12, MATCH(M80, 'Tabelas IRS'!$A$2:$A$12, 1)))\n     - INDEX('Tabelas IRS'!$D$2:$D$12, MATCH(M80, 'Tabelas IRS'!$A$2:$A$12, 1))\n   ) / M80,\n   0\n)","v":0},"Taxa de IRS",{"$f":"IFERROR(\n   (\n     (O80 * INDEX('Tabelas IRS'!$C$2:$C$12, MATCH(O80, 'Tabelas IRS'!$A$2:$A$12, 1)))\n     - INDEX('Tabelas IRS'!$D$2:$D$12, MATCH(O80, 'Tabelas IRS'!$A$2:$A$12, 1))\n   ) / O80,\n   0\n)","v":0},"Taxa de IRS",{"$f":"IFERROR(\n   (\n     (Q80 * INDEX('Tabelas IRS'!$C$2:$C$12, MATCH(Q80, 'Tabelas IRS'!$A$2:$A$12, 1)))\n     - INDEX('Tabelas IRS'!$D$2:$D$12, MATCH(Q80, 'Tabelas IRS'!$A$2:$A$12, 1))\n   ) / Q80,\n   0\n)","v":0},"Taxa de IRS",{"$f":"IFERROR(\n   (\n     (S80 * INDEX('Tabelas IRS'!$C$2:$C$12, MATCH(S80, 'Tabelas IRS'!$A$2:$A$12, 1)))\n     - INDEX('Tabelas IRS'!$D$2:$D$12, MATCH(S80, 'Tabelas IRS'!$A$2:$A$12, 1))\n   ) / S80,\n   0\n)","v":0},"Taxa de IRS",{"$f":"IFERROR(\n   (\n     (U80 * INDEX('Tabelas IRS'!$C$2:$C$12, MATCH(U80, 'Tabelas IRS'!$A$2:$A$12, 1)))\n     - INDEX('Tabelas IRS'!$D$2:$D$12, MATCH(U80, 'Tabelas IRS'!$A$2:$A$12, 1))\n   ) / U80,\n   0\n)","v":0},"Taxa de IRS",{"$f":"IFERROR(\n   (\n     (W80 * INDEX('Tabelas IRS'!$C$2:$C$12, MATCH(W80, 'Tabelas IRS'!$A$2:$A$12, 1)))\n     - INDEX('Tabelas IRS'!$D$2:$D$12, MATCH(W80, 'Tabelas IRS'!$A$2:$A$12, 1))\n   ) / W80,\n   0\n)","v":0},"Taxa de IRS",{"$f":"IFERROR(\n   (\n     (Y80 * INDEX('Tabelas IRS'!$C$2:$C$12, MATCH(Y80, 'Tabelas IRS'!$A$2:$A$12, 1)))\n     - INDEX('Tabelas IRS'!$D$2:$D$12, MATCH(Y80, 'Tabelas IRS'!$A$2:$A$12, 1))\n   ) / Y80,\n   0\n)","v":0},"Taxa de IRS",{"$f":"IFERROR(\n   (\n     (AA80 * INDEX('Tabelas IRS'!$C$2:$C$12, MATCH(AA80, 'Tabelas IRS'!$A$2:$A$12, 1)))\n     - INDEX('Tabelas IRS'!$D$2:$D$12, MATCH(AA80, 'Tabelas IRS'!$A$2:$A$12, 1))\n   ) / AA80,\n   0\n)","v":0},"Taxa de IRS",{"$f":"IFERROR(\n   (\n     (AC80 * INDEX('Tabelas IRS'!$C$2:$C$12, MATCH(AC80, 'Tabelas IRS'!$A$2:$A$12, 1)))\n     - INDEX('Tabelas IRS'!$D$2:$D$12, MATCH(AC80, 'Tabelas IRS'!$A$2:$A$12, 1))\n   ) / AC80,\n   0\n)","v":0},"Taxa de IRS",{"$f":"IFERROR(\n   (\n     (AE80 * INDEX('Tabelas IRS'!$C$2:$C$12, MATCH(AE80, 'Tabelas IRS'!$A$2:$A$12, 1)))\n     - INDEX('Tabelas IRS'!$D$2:$D$12, MATCH(AE80, 'Tabelas IRS'!$A$2:$A$12, 1))\n   ) / AE80,\n   0\n)","v":0}]
[null,"Imposto da Mais-valia",{"$f":"C80*C81-INDEX('Tabelas IRS'!D4:D12,MATCH(C80,'Tabelas IRS'!B4:B12,1))-(C78*C79-INDEX('Tabelas IRS'!D4:D12,MATCH(C80,'Tabelas IRS'!B4:B12,1)))","v":6432.213749999999},"Imposto da Mais-valia",{"$f":"E80*E81-INDEX('Tabelas IRS'!$D$2:$D$12, MATCH(E32, 'Tabelas IRS'!$A$2:$A$12, 1))-(E78*E79-INDEX('Tabelas IRS'!$D$2:$D$12, MATCH(E32, 'Tabelas IRS'!$A$2:$A$12, 1)))","v":5840.213749999999},"Imposto da Mais-valia",{"$f":"G80*G81-INDEX('Tabelas IRS'!$D$2:$D$12, MATCH(G32, 'Tabelas IRS'!$A$2:$A$12, 1))-(G78*G79-INDEX('Tabelas IRS'!$D$2:$D$12, MATCH(G32, 'Tabelas IRS'!$A$2:$A$12, 1)))","v":{"$error":"#N/A"}},"Imposto da Mais-valia",{"$f":"I80*I81-INDEX('Tabelas IRS'!$D$2:$D$12, MATCH(I32, 'Tabelas IRS'!$A$2:$A$12, 1))-(I78*I79-INDEX('Tabelas IRS'!$D$2:$D$12, MATCH(I32, 'Tabelas IRS'!$A$2:$A$12, 1)))","v":{"$error":"#N/A"}},"Imposto da Mais-valia",{"$f":"K80*K81-INDEX('Tabelas IRS'!$D$2:$D$12, MATCH(K32, 'Tabelas IRS'!$A$2:$A$12, 1))-(K78*K79-INDEX('Tabelas IRS'!$D$2:$D$12, MATCH(K32, 'Tabelas IRS'!$A$2:$A$12, 1)))","v":{"$error":"#N/A"}},"Imposto da Mais-valia",{"$f":"M80*M81-INDEX('Tabelas IRS'!$D$2:$D$12, MATCH(M32, 'Tabelas IRS'!$A$2:$A$12, 1))-(M78*M79-INDEX('Tabelas IRS'!$D$2:$D$12, MATCH(M32, 'Tabelas IRS'!$A$2:$A$12, 1)))","v":{"$error":"#N/A"}},"Imposto da Mais-valia",{"$f":"O80*O81-INDEX('Tabelas IRS'!$D$2:$D$12, MATCH(O32, 'Tabelas IRS'!$A$2:$A$12, 1))-(O78*O79-INDEX('Tabelas IRS'!$D$2:$D$12, MATCH(O32, 'Tabelas IRS'!$A$2:$A$12, 1)))","v":{"$error":"#N/A"}},"Imposto da Mais-valia",{"$f":"Q80*Q81-INDEX('Tabelas IRS'!$D$2:$D$12, MATCH(Q32, 'Tabelas IRS'!$A$2:$A$12, 1))-(Q78*Q79-INDEX('Tabelas IRS'!$D$2:$D$12, MATCH(Q32, 'Tabelas IRS'!$A$2:$A$12, 1)))","v":{"$error":"#N/A"}},"Imposto da Mais-valia",{"$f":"S80*S81-INDEX('Tabelas IRS'!$D$2:$D$12, MATCH(S32, 'Tabelas IRS'!$A$2:$A$12, 1))-(S78*S79-INDEX('Tabelas IRS'!$D$2:$D$12, MATCH(S32, 'Tabelas IRS'!$A$2:$A$12, 1)))","v":{"$error":"#N/A"}},"Imposto da Mais-valia",{"$f":"U80*U81-INDEX('Tabelas IRS'!$D$2:$D$12, MATCH(U32, 'Tabelas IRS'!$A$2:$A$12, 1))-(U78*U79-INDEX('Tabelas IRS'!$D$2:$D$12, MATCH(U32, 'Tabelas IRS'!$A$2:$A$12, 1)))","v":{"$error":"#N/A"}},"Imposto da Mais-valia",{"$f":"W80*W81-INDEX('Tabelas IRS'!$D$2:$D$12, MATCH(W32, 'Tabelas IRS'!$A$2:$A$12, 1))-(W78*W79-INDEX('Tabelas IRS'!$D$2:$D$12, MATCH(W32, 'Tabelas IRS'!$A$2:$A$12, 1)))","v":{"$error":"#N/A"}},"Imposto da Mais-valia",{"$f":"Y80*Y81-INDEX('Tabelas IRS'!$D$2:$D$12, MATCH(Y32, 'Tabelas IRS'!$A$2:$A$12, 1))-(Y78*Y79-INDEX('Tabelas IRS'!$D$2:$D$12, MATCH(Y32, 'Tabelas IRS'!$A$2:$A$12, 1)))","v":{"$error":"#N/A"}},"Imposto da Mais-valia",{"$f":"AA80*AA81-INDEX('Tabelas IRS'!$D$2:$D$12, MATCH(AA32, 'Tabelas IRS'!$A$2:$A$12, 1))-(AA78*AA79-INDEX('Tabelas IRS'!$D$2:$D$12, MATCH(AA32, 'Tabelas IRS'!$A$2:$A$12, 1)))","v":{"$error":"#N/A"}},"Imposto da Mais-valia",{"$f":"AC80*AC81-INDEX('Tabelas IRS'!$D$2:$D$12, MATCH(AC32, 'Tabelas IRS'!$A$2:$A$12, 1))-(AC78*AC79-INDEX('Tabelas IRS'!$D$2:$D$12, MATCH(AC32, 'Tabelas IRS'!$A$2:$A$12, 1)))","v":{"$error":"#N/A"}},"Imposto da Mais-valia",{"$f":"AE80*AE81-INDEX('Tabelas IRS'!$D$2:$D$12, MATCH(AE32, 'Tabelas IRS'!$A$2:$A$12, 1))-(AE78*AE79-INDEX('Tabelas IRS'!$D$2:$D$12, MATCH(AE32, 'Tabelas IRS'!$A$2:$A$12, 1)))","v":{"$error":"#N/A"}}]
[]
[null,"Direito de Superfície 1",null,"Direito de Superfície 2",null,"Direito de Superfície 3",null,"Direito de Superfície 4",null,"Direito de Superfície 5",null,"Direito de Superfície 6",null,"Direito de Superfície 7",null,"Direito de Superfície 8",null,"Direito de Superfície 9",null,"Direito de Superfície 10",null,"Direito de Superfície 11",null,"Direito de Superfície 12",null,"Direito de Superfície 13",null,"Direito de Superfície 14",null,"Direito de Superfície 15"]
[null,"Nome ","João","Nome ","Maria","Nome ",null,"Nome ",null,"Nome ",null,"Nome ",null,"Nome ",null,"Nome ",null,"Nome ",null,"Nome ",null,"Nome ",null,"Nome ",null,"Nome ",null,"Nome ",null,"Nome "]
[null,"Duração do direito de superfície",40,"Duração do direito de superfície",40,"Duração do direito de superfície",null,"Duração do direito de superfície",null,"Duração do direito de superfície",null,"Duração do direito de superfície",null,"Duração do direito de superfície",null,"Duração do direito de superfície",null,"Duração do direito de superfície",null,"Duração do direito de superfície",null,"Duração do direito de superfície",null,"Duração do direito de superfície",null,"Duração do direito de superfície",null,"Duração do direito de superfície",null,"Duração do direito de superfície"]
[{"$f":"SUM(INDEX(87:87, _xlfn.SEQUENCE(C3, , 3, 2)))","v":1},"Quota-parte do direito",0.5,"Quota-parte do direito",0.5,"Quota-parte do direito",null,"Quota-parte do direito",null,"Quota-parte do direito",null,"Quota-parte do direito",null,"Quota-parte do direito",null,"Quota-parte do direito",null,"Quota-parte do direito",null,"Quota-parte do direito",null,"Quota-parte do direito",null,"Quota-parte do direito",null,"Quota-parte do direito",null,"Quota-parte do direito",null,"Quota-parte do direito"]
[{"$f":"IF(A87<>100%, \"As percentagens não totalizam 100%, voltar a confirmar quotas de todos os proprietários\", \"\")","v":""},"Origem","Herança de terceiro","Origem","Herança de terceiro","Origem",null,"Origem",null,"Origem",null,"Origem",null,"Origem",null,"Origem",null,"Origem",null,"Origem",null,"Origem",null,"Origem",null,"Origem",null,"Origem",null,"Origem"]
[null,{"$f":"IF(C88=\"Herança direta\", \"Valor patrimonial\", IF(C88=\"Herança de terceiro\", \"Valor do imóvel na doação\", IF(C88=\"Aquisição\", \"Valor de aquisição\", \"\")))","v":"Valor do imóvel na doação"},19000,{"$f":"IF(E88=\"Herança direta\", \"Valor patrimonial\", IF(E88=\"Herança de terceiro\", \"Valor do imóvel na doação\", IF(E88=\"Aquisição\", \"Valor de aquisição\", \"\")))","v":"Valor do imóvel na doação"},19000,{"$f":"IF(G88=\"Herança direta\", \"Valor patrimonial\", IF(G88=\"Herança de terceiro\", \"Valor do imóvel na doação\", IF(G88=\"Aquisição\", \"Valor de aquisição\", \"\")))","v":""},null,{"$f":"IF(I88=\"Herança direta\", \"Valor patrimonial\", IF(I88=\"Herança de terceiro\", \"Valor do imóvel na doação\", IF(I88=\"Aquisição\", \"Valor de aquisição\", \"\")))","v":""},null,{"$f":"IF(K88=\"Herança direta\", \"Valor patrimonial\", IF(K88=\"Herança de terceiro\", \"Valor do imóvel na doação\", IF(K88=\"Aquisição\", \"Valor de aquisição\", \"\")))","v":""},null,{"$f":"IF(M88=\"Herança direta\", \"Valor patrimonial\", IF(M88=\"Herança de terceiro\", \"Valor do imóvel na doação\", IF(M88=\"Aquisição\", \"Valor de aquisição\", \"\")))","v":""},null,{"$f":"IF(O88=\"Herança direta\", \"Valor patrimonial\", IF(O88=\"Herança de terceiro\", \"Valor do imóvel na doação\", IF(O88=\"Aquisição\", \"Valor de aquisição\", \"\")))","v":""},null,{"$f":"IF(Q88=\"Herança direta\", \"Valor patrimonial\", IF(Q88=\"Herança de terceiro\", \"Valor do imóvel na doação\", IF(Q88=\"Aquisição\", \"Valor de aquisição\", \"\")))","v":""},null,{"$f":"IF(S88=\"Herança direta\", \"Valor patrimonial\", IF(S88=\"Herança de terceiro\", \"Valor do imóvel na doação\", IF(S88=\"Aquisição\", \"Valor de aquisição\", \"\")))","v":""},null,{"$f":"IF(U88=\"Herança direta\", \"Valor patrimonial\", IF(U88=\"Herança de terceiro\", \"Valor do imóvel na doação\", IF(U88=\"Aquisição\", \"Valor de aquisição\", \"\")))","v":""},null,{"$f":"IF(W88=\"Herança direta\", \"Valor patrimonial\", IF(W88=\"Herança de terceiro\", \"Valor do imóvel na doação\", IF(W88=\"Aquisição\", \"Valor de aquisição\", \"\")))","v":""},null,{"$f":"IF(Y88=\"Herança direta\", \"Valor patrimonial\", IF(Y88=\"Herança de terceiro\", \"Valor do imóvel na doação\", IF(Y88=\"Aquisição\", \"Valor de aquisição\", \"\")))","v":""},null,{"$f":"IF(AA88=\"Herança direta\", \"Valor patrimonial\", IF(AA88=\"Herança de terceiro\", \"Valor do imóvel na doação\", IF(AA88=\"Aquisição\", \"Valor de aquisição\", \"\")))","v":""},null,{"$f":"IF(AC88=\"Herança direta\", \"Valor patrimonial\", IF(AC88=\"Herança de terceiro\", \"Valor do imóvel na doação\", IF(AC88=\"Aquisição\", \"Valor de aquisição\", \"\")))","v":""},null,{"$f":"IF(AE88=\"Herança direta\", \"Valor patrimonial\", IF(AE88=\"Herança de terceiro\", \"Valor do imóvel na doação\", IF(AE88=\"Aquisição\", \"Valor de aquisição\", \"\")))","v":""}]
[null,"Ano de aquisição",2013,"Ano de aquisição",2013,"Ano de aquisição",null,"Ano de aquisição",null,"Ano de aquisição",null,"Ano de aquisição",null,"Ano de aquisição",null,"Ano de aquisição",null,"Ano de aquisição",null,"Ano de aquisição",null,"Ano de aquisição",null,"Ano de aquisição",null,"Ano de aquisição",null,"Ano de aquisição",null,"Ano de aquisição"]
[null,"Obras nos últimos 12 anos",0,"Obras nos últimos 12 anos",0,"Obras nos últimos 12 anos",null,"Obras nos últimos 12 anos",null,"Obras nos últimos 12 anos",null,"Obras nos últimos 12 anos",null,"Obras nos últimos 12 anos",null,"Obras nos últimos 12 anos",null,"Obras nos últimos 12 anos",null,"Obras nos últimos 12 anos",null,"Obras nos últimos 12 anos",null,"Obras nos últimos 12 anos",null,"Obras nos últimos 12 anos",null,"Obras nos últimos 12 anos",null,"Obras nos últimos 12 anos"]
[null,"Impostos pagos na aquisição",100,"Impostos pagos na aquisição",100,"Impostos pagos na aquisição",null,"Impostos pagos na aquisição",null,"Impostos pagos na aquisição",null,"Impostos pagos na aquisição",null,"Impostos pagos na aquisição",null,"Impostos pagos na aquisição",null,"Impostos pagos na aquisição",null,"Impostos pagos na aquisição",null,"Impostos pagos na aquisição",null,"Impostos pagos na aquisição",null,"Impostos pagos na aquisição",null,"Impostos pagos na aquisição",null,"Impostos pagos na aquisição"]
[null,"Comissão imobiliária",2460,"Comissão imobiliária",2460,"Comissão imobiliária",null,"Comissão imobiliária",null,"Comissão imobiliária",null,"Comissão imobiliária",null,"Comissão imobiliária",null,"Comissão imobiliária",null,"Comissão imobiliária",null,"Comissão imobiliária",null,"Comissão imobiliária",null,"Comissão imobiliária",null,"Comissão imobiliária",null,"Comissão imobiliária",null,"Comissão imobiliária"]
[null,"Outros encargos dedutíveis",0,"Outros encargos dedutíveis",0,"Outros encargos dedutíveis",null,"Outros encargos dedutíveis",null,"Outros encargos dedutíveis",null,"Outros encargos dedutíveis",null,"Outros encargos dedutíveis",null,"Outros encargos dedutíveis",null,"Outros encargos dedutíveis",null,"Outros encargos dedutíveis",null,"Outros encargos dedutíveis",null,"Outros encargos dedutíveis",null,"Outros encargos dedutíveis",null,"Outros encargos dedutíveis",null,"Outros encargos dedutíveis"]
[null,"Cálculo da mais valia",null,"Cálculo da mais valia",null,"Cálculo da mais valia",null,"Cálculo da mais valia",null,"Cálculo da mais valia",null,"Cálculo da mais valia",null,"Cálculo da mais valia",null,"Cálculo da mais valia",null,"Cálculo da mais valia",null,"Cálculo da mais valia",null,"Cálculo da mais valia",null,"Cálculo da mais valia",null,"Cálculo da mais valia",null,"Cálculo da mais valia",null,"Cálculo da mais valia"]
[null,"Coeficiente de atualização",{"$f":"VLOOKUP(C90, 'Coeficiente de atualização'!B50:C202, 2, FALSE)","v":1.17},"Coeficiente de atualização",{"$f":"VLOOKUP(E90, 'Coeficiente de atualização'!$B$50:$C$202, 2, FALSE)","v":1.17},"Coeficiente de atualização",{"$f":"VLOOKUP(G90, 'Coeficiente de atualização'!$B$50:$C$202, 2, FALSE)","v":{"$error":"#N/A"}},"Coeficiente de atualização",{"$f":"VLOOKUP(I90, 'Coeficiente de atualização'!$B$50:$C$202, 2, FALSE)","v":{"$error":"#N/A"}},"Coeficiente de atualização",{"$f":"VLOOKUP(K90, 'Coeficiente de atualização'!$B$50:$C$202, 2, FALSE)","v":{"$error":"#N/A"}},"Coeficiente de atualização",{"$f":"VLOOKUP(M90, 'Coeficiente de atualização'!$B$50:$C$202, 2, FALSE)","v":{"$error":"#N/A"}},"Coeficiente de atualização",{"$f":"VLOOKUP(O90, 'Coeficiente de atualização'!$B$50:$C$202, 2, FALSE)","v":{"$error":"#N/A"}},"Coeficiente de atualização",{"$f":"VLOOKUP(Q90, 'Coeficiente de atualização'!$B$50:$C$202, 2, FALSE)","v":{"$error":"#N/A"}},"Coeficiente de atualização",{"$f":"VLOOKUP(S90, 'Coeficiente de atualização'!$B$50:$C$202, 2, FALSE)","v":{"$error":"#N/A"}},"Coeficiente de atualização",{"$f":"VLOOKUP(U90, 'Coeficiente de atualização'!$B$50:$C$202, 2, FALSE)","v":{"$error":"#N/A"}},"Coeficiente de atualização",{"$f":"VLOOKUP(W90, 'Coeficiente de atualização'!$B$50:$C$202, 2, FALSE)","v":{"$error":"#N/A"}},"Coeficiente de atualização",{"$f":"VLOOKUP(Y90, 'Coeficiente de atualização'!$B$50:$C$202, 2, FALSE)","v":{"$error":"#N/A"}},"Coeficiente de atualização",{"$f":"VLOOKUP(AA90, 'Coeficiente de atualização'!$B$50:$C$202, 2, FALSE)","v":{"$error":"#N/A"}},"Coeficiente de atualização",{"$f":"VLOOKUP(AC90, 'Coeficiente de atualização'!$B$50:$C$202, 2, FALSE)","v":{"$error":"#N/A"}},"Coeficiente de atualização",{"$f":"VLOOKUP(AE90, 'Coeficiente de atualização'!$B$50:$C$202, 2, FALSE)","v":{"$error":"#N/A"}}]
[null,"Despesas e encargos",{"$f":"C92++C91+C93+C94","v":2560},"Despesas e encargos",{"$f":"E91+E92+E93+E94","v":2560},"Despesas e encargos",{"$f":"G91+G92+G93+G94","v":0},"Despesas e encargos",{"$f":"I91+I92+I93+I94","v":0},"Despesas e encargos",{"$f":"K91+K92+K93+K94","v":0},"Despesas e encargos",{"$f":"M91+M92+M93+M94","v":0},"Despesas e encargos",{"$f":"O91+O92+O93+O94","v":0},"Despesas e encargos",{"$f":"Q91+Q92+Q93+Q94","v":0},"Despesas e encargos",{"$f":"S91+S92+S93+S94","v":0},"Despesas e encargos",{"$f":"U91+U92+U93+U94","v":0},"Despesas e encargos",{"$f":"W91+W92+W93+W94","v":0},"Despesas e encargos",{"$f":"Y91+Y92+Y93+Y94","v":0},"Despesas e encargos",{"$f":"AA91+AA92+AA93+AA94","v":0},"Despesas e encargos",{"$f":"AC91+AC92+AC93+AC94","v":0},"Despesas e encargos",{"$f":"AE91+AE92+AE93+AE94","v":0}]
[{"$f":"C98+E98","v":0.4},"Quota-parte da mais-valia",{"$f":"(MIN(MAX(C86,0),100)/100)*C87","v":0.2},"Quota-parte da mais-valia",{"$f":"(MIN(MAX(E86,0),100)/100)*E87","v":0.2},"Quota-parte da mais-valia",{"$f":"(MIN(MAX(G86,0),100)/100)*G87","v":0},"Quota-parte da mais-valia",{"$f":"(MIN(MAX(I86,0),100)/100)*I87","v":0},"Quota-parte da mais-valia",{"$f":"(MIN(MAX(K86,0),100)/100)*K87","v":0},"Quota-parte da mais-valia",{"$f":"(MIN(MAX(M86,0),100)/100)*M87","v":0},"Quota-parte da mais-valia",{"$f":"(MIN(MAX(O86,0),100)/100)*O87","v":0},"Quota-parte da mais-valia",{"$f":"(MIN(MAX(Q86,0),100)/100)*Q87","v":0},"Quota-parte da mais-valia",{"$f":"(MIN(MAX(S86,0),100)/100)*S87","v":0},"Quota-parte da mais-valia",{"$f":"(MIN(MAX(U86,0),100)/100)*U87","v":0},"Quota-parte da mais-valia",{"$f":"(MIN(MAX(W86,0),100)/100)*W87","v":0},"Quota-parte da mais-valia",{"$f":"(MIN(MAX(Y86,0),100)/100)*Y87","v":0},"Quota-parte da mais-valia",{"$f":"(MIN(MAX(AA86,0),100)/100)*AA87","v":0},"Quota-parte da mais-valia",{"$f":"(MIN(MAX(AC86,0),100)/100)*AC87","v":0},"Quota-parte da mais-valia",{"$f":"(MIN(MAX(AE86,0),100)/100)*AE87","v":0}]
[null,"Mais-valia ",{"$f":"(C8-(C89*C96)-C97)*C98","v":31042},"Mais-valia",{"$f":"($C$8-(E89*E96)-E97)*E98","v":31042},"Mais-valia",{"$f":"($C$8-(G89*G96)-G97)*G98","v":{"$error":"#N/A"}},"Mais-valia",{"$f":"($C$8-(I89*I96)-I97)*I98","v":{"$error":"#N/A"}},"Mais-valia",{"$f":"($C$8-(K89*K96)-K97)*K98","v":{"$error":"#N/A"}},"Mais-valia",{"$f":"($C$8-(M89*M96)-M97)*M98","v":{"$error":"#N/A"}},"Mais-valia",{"$f":"($C$8-(O89*O96)-O97)*O98","v":{"$error":"#N/A"}},"Mais-valia",{"$f":"($C$8-(Q89*Q96)-Q97)*Q98","v":{"$error":"#N/A"}},"Mais-valia",{"$f":"($C$8-(S89*S96)-S97)*S98","v":{"$error":"#N/A"}},"Mais-valia",{"$f":"($C$8-(U89*U96)-U97)*U98","v":{"$error":"#N/A"}},"Mais-valia",{"$f":"($C$8-(W89*W96)-W97)*W98","v":{"$error":"#N/A"}},"Mais-valia",{"$f":"($C$8-(Y89*Y96)-Y97)*Y98","v":{"$error":"#N/A"}},"Mais-valia",{"$f":"($C$8-(AA89*AA96)-AA97)*AA98","v":{"$error":"#N/A"}},"Mais-valia",{"$f":"($C$8-(AC89*AC96)-AC97)*AC98","v":{"$error":"#N/A"}},"Mais-valia",{"$f":"($C$8-(AE89*AE96)-AE97)*AE98","v":{"$error":"#N/A"}}]
[null,"Art 43º (50%)",{"$f":"C99/2","v":15521},"Art 43º (50%)",{"$f":"E99/2","v":15521},"Art 43º (50%)",{"$f":"G99/2","v":{"$error":"#N/A"}},"Art 43º (50%)",{"$f":"I99/2","v":{"$error":"#N/A"}},"Art 43º (50%)",{"$f":"K99/2","v":{"$error":"#N/A"}},"Art 43º (50%)",{"$f":"M99/2","v":{"$error":"#N/A"}},"Art 43º (50%)",{"$f":"O99/2","v":{"$error":"#N/A"}},"Art 43º (50%)",{"$f":"Q99/2","v":{"$error":"#N/A"}},"Art 43º (50%)",{"$f":"S99/2","v":{"$error":"#N/A"}},"Art 43º (50%)",{"$f":"U99/2","v":{"$error":"#N/A"}},"Art 43º (50%)",{"$f":"W99/2","v":{"$error":"#N/A"}},"Art 43º (50%)",{"$f":"Y99/2","v":{"$error":"#N/A"}},"Art 43º (50%)",{"$f":"AA99/2","v":{"$error":"#N/A"}},"Art 43º (50%)",{"$f":"AC99/2","v":{"$error":"#N/A"}},"Art 43º (50%)",{"$f":"AE99/2","v":{"$error":"#N/A"}}]
[null,"Dados pessoais",null,"Dados pessoais",null,"Dados pessoais",null,"Dados pessoais",null,"Dados pessoais",null,"Dados pessoais",null,"Dados pessoais",null,"Dados pessoais",null,"Dados pessoais",null,"Dados pessoais",null,"Dados pessoais",null,"Dados pessoais",null,"Dados pessoais",null,"Dados pessoais",null,"Dados pessoais"]
[null,"Rendimento anual coletável",30000,"Rendimento anual coletável",30000,"Rendimento anual coletável",null,"Rendimento anual coletável",null,"Rendimento anual coletável",null,"Rendimento anual coletável",null,"Rendimento anual coletável",null,"Rendimento anual coletável",null,"Rendimento anual coletável",null,"Rendimento anual coletável",null,"Rendimento anual coletável",null,"Rendimento anual coletável",null,"Rendimento anual coletável",null,"Rendimento anual coletável",null,"Rendimento anual coletável"]
[null,"Taxa de IRS",{"$f":"IFERROR(\n   (\n     (C102 * INDEX('Tabelas IRS'!$C$2:$C$12, MATCH(C102, 'Tabelas IRS'!$A$2:$A$12, 1)))\n     - INDEX('Tabelas IRS'!$D$2:$D$12, MATCH(C102, 'Tabelas IRS'!$A$2:$A$12, 1))\n   ) / C102,\n   0\n)","v":0.22089533333333336},"Taxa de IRS",{"$f":"IFERROR(\n   (\n     (E102 * INDEX('Tabelas IRS'!$C$2:$C$12, MATCH(E102, 'Tabelas IRS'!$A$2:$A$12, 1)))\n     - INDEX('Tabelas IRS'!$D$2:$D$12, MATCH(E102, 'Tabelas IRS'!$A$2:$A$12, 1))\n   ) / E102,\n   0\n)","v":0.22089533333333336},"Taxa de IRS",{"$f":"IFERROR(\n   (\n     (G102 * INDEX('Tabelas IRS'!$C$2:$C$12, MATCH(G102, 'Tabelas IRS'!$A$2:$A$12, 1)))\n     - INDEX('Tabelas IRS'!$D$2:$D$12, MATCH(G102, 'Tabelas IRS'!$A$2:$A$12, 1))\n   ) / G102,\n   0\n)","v":0},"Taxa de IRS",{"$f":"IFERROR(\n   (\n     (I102 * INDEX('Tabelas IRS'!$C$2:$C$12, MATCH(I102, 'Tabelas IRS'!$A$2:$A$12, 1)))\n     - INDEX('Tabelas IRS'!$D$2:$D$12, MATCH(I102, 'Tabelas IRS'!$A$2:$A$12, 1))\n   ) / I102,\n   0\n)","v":0},"Taxa de IRS",{"$f":"IFERROR(\n   (\n     (K102 * INDEX('Tabelas IRS'!$C$2:$C$12, MATCH(K102, 'Tabelas IRS'!$A$2:$A$12, 1)))\n     - INDEX('Tabelas IRS'!$D$2:$D$12, MATCH(K102, 'Tabelas IRS'!$A$2:$A$12, 1))\n   ) / K102,\n   0\n)","v":0},"Taxa de IRS",{"$f":"IFERROR(\n   (\n     (M102 * INDEX('Tabelas IRS'!$C$2:$C$12, MATCH(M102, 'Tabelas IRS'!$A$2:$A$12, 1)))\n     - INDEX('Tabelas IRS'!$D$2:$D$12, MATCH(M102, 'Tabelas IRS'!$A$2:$A$12, 1))\n   ) / M102,\n   0\n)","v":0},"Taxa de IRS",{"$f":"IFERROR(\n   (\n     (O102 * INDEX('Tabelas IRS'!$C$2:$C$12, MATCH(O102, 'Tabelas IRS'!$A$2:$A$12, 1)))\n     - INDEX('Tabelas IRS'!$D$2:$D$12, MATCH(O102, 'Tabelas IRS'!$A$2:$A$12, 1))\n   ) / O102,\n   0\n)","v":0},"Taxa de IRS",{"$f":"IFERROR(\n   (\n     (Q102 * INDEX('Tabelas IRS'!$C$2:$C$12, MATCH(Q102, 'Tabelas IRS'!$A$2:$A$12, 1)))\n     - INDEX('Tabelas IRS'!$D$2:$D$12, MATCH(Q102, 'Tabelas IRS'!$A$2:$A$12, 1))\n   ) / Q102,\n   0\n)","v":0},"Taxa de IRS",{"$f":"IFERROR(\n   (\n     (S102 * INDEX('Tabelas IRS'!$C$2:$C$12, MATCH(S102, 'Tabelas IRS'!$A$2:$A$12, 1)))\n     - INDEX('Tabelas IRS'!$D$2:$D$12, MATCH(S102, 'Tabelas IRS'!$A$2:$A$12, 1))\n   ) / S102,\n   0\n)","v":0},"Taxa de IRS",{"$f":"IFERROR(\n   (\n     (U102 * INDEX('Tabelas IRS'!$C$2:$C$12, MATCH(U102, 'Tabelas IRS'!$A$2:$A$12, 1)))\n     - INDEX('Tabelas IRS'!$D$2:$D$12, MATCH(U102, 'Tabelas IRS'!$A$2:$A$12, 1))\n   ) / U102,\n   0\n)","v":0},"Taxa de IRS",{"$f":"IFERROR(\n   (\n     (W102 * INDEX('Tabelas IRS'!$C$2:$C$12, MATCH(W102, 'Tabelas IRS'!$A$2:$A$12, 1)))\n     - INDEX('Tabelas IRS'!$D$2:$D$12, MATCH(W102, 'Tabelas IRS'!$A$2:$A$12, 1))\n   ) / W102,\n   0\n)","v":0},"Taxa de IRS",{"$f":"IFERROR(\n   (\n     (Y102 * INDEX('Tabelas IRS'!$C$2:$C$12, MATCH(Y102, 'Tabelas IRS'!$A$2:$A$12, 1)))\n     - INDEX('Tabelas IRS'!$D$2:$D$12, MATCH(Y102, 'Tabelas IRS'!$A$2:$A$12, 1))\n   ) / Y102,\n   0\n)","v":0},"Taxa de IRS",{"$f":"IFERROR(\n   (\n     (AA102 * INDEX('Tabelas IRS'!$C$2:$C$12, MATCH(AA102, 'Tabelas IRS'!$A$2:$A$12, 1)))\n     - INDEX('Tabelas IRS'!$D$2:$D$12, MATCH(AA102, 'Tabelas IRS'!$A$2:$A$12, 1))\n   ) / AA102,\n   0\n)","v":0},"Taxa de IRS",{"$f":"IFERROR(\n   (\n     (AC102 * INDEX('Tabelas IRS'!$C$2:$C$12, MATCH(AC102, 'Tabelas IRS'!$A$2:$A$12, 1)))\n     - INDEX('Tabelas IRS'!$D$2:$D$12, MATCH(AC102, 'Tabelas IRS'!$A$2:$A$12, 1))\n   ) / AC102,\n   0\n)","v":0},"Taxa de IRS",{"$f":"IFERROR(\n   (\n     (AE102 * INDEX('Tabelas IRS'!$C$2:$C$12, MATCH(AE102, 'Tabelas IRS'!$A$2:$A$12, 1)))\n     - INDEX('Tabelas IRS'!$D$2:$D$12, MATCH(AE102, 'Tabelas IRS'!$A$2:$A$12, 1))\n   ) / AE102,\n   0\n)","v":0}]
[null,"Rendimento anual com mais-valia",{"$f":"C102+C100","v":45521},"Rendimento anual com mais-valia",{"$f":"E102+E100","v":45521},"Rendimento anual com mais-valia",{"$f":"G102+G100","v":{"$error":"#N/A"}},"Rendimento anual com mais-valia",{"$f":"I102+I100","v":{"$error":"#N/A"}},"Rendimento anual com mais-valia",{"$f":"K102+K100","v":{"$error":"#N/A"}},"Rendimento anual com mais-valia",{"$f":"M102+M100","v":{"$error":"#N/A"}},"Rendimento anual com mais-valia",{"$f":"O102+O100","v":{"$error":"#N/A"}},"Rendimento anual com mais-valia",{"$f":"Q102+Q100","v":{"$error":"#N/A"}},"Rendimento anual com mais-valia",{"$f":"S102+S100","v":{"$error":"#N/A"}},"Rendimento anual com mais-valia",{"$f":"U102+U100","v":{"$error":"#N/A"}},"Rendimento anual com mais-valia",{"$f":"W102+W100","v":{"$error":"#N/A"}},"Rendimento anual com mais-valia",{"$f":"Y102+Y100","v":{"$error":"#N/A"}},"Rendimento anual com mais-valia",{"$f":"AA102+AA100","v":{"$error":"#N/A"}},"Rendimento anual com mais-valia",{"$f":"AC102+AC100","v":{"$error":"#N/A"}},"Rendimento anual com mais-valia",{"$f":"AE102+AE100","v":{"$error":"#N/A"}}]
[null,"Taxa de IRS",{"$f":"IFERROR(\n   (\n     (C104 * INDEX('Tabelas IRS'!$C$2:$C$12, MATCH(C104, 'Tabelas IRS'!$A$2:$A$12, 1)))\n     - INDEX('Tabelas IRS'!$D$2:$D$12, MATCH(C104, 'Tabelas IRS'!$A$2:$A$12, 1))\n   ) / C104,\n   0\n)","v":0.27363348784077679},"Taxa de IRS",{"$f":"IFERROR(\n   (\n     (E104 * INDEX('Tabelas IRS'!$C$2:$C$12, MATCH(E104, 'Tabelas IRS'!$A$2:$A$12, 1)))\n     - INDEX('Tabelas IRS'!$D$2:$D$12, MATCH(E104, 'Tabelas IRS'!$A$2:$A$12, 1))\n   ) / E104,\n   0\n)","v":0.27363348784077679},"Taxa de IRS",{"$f":"IFERROR(\n   (\n     (G104 * INDEX('Tabelas IRS'!$C$2:$C$12, MATCH(G104, 'Tabelas IRS'!$A$2:$A$12, 1)))\n     - INDEX('Tabelas IRS'!$D$2:$D$12, MATCH(G104, 'Tabelas IRS'!$A$2:$A$12, 1))\n   ) / G104,\n   0\n)","v":0},"Taxa de IRS",{"$f":"IFERROR(\n   (\n     (I104 * INDEX('Tabelas IRS'!$C$2:$C$12, MATCH(I104, 'Tabelas IRS'!$A$2:$A$12, 1)))\n     - INDEX('Tabelas IRS'!$D$2:$D$12, MATCH(I104, 'Tabelas IRS'!$A$2:$A$12, 1))\n   ) / I104,\n   0\n)","v":0},"Taxa de IRS",{"$f":"IFERROR(\n   (\n     (K104 * INDEX('Tabelas IRS'!$C$2:$C$12, MATCH(K104, 'Tabelas IRS'!$A$2:$A$12, 1)))\n     - INDEX('Tabelas IRS'!$D$2:$D$12, MATCH(K104, 'Tabelas IRS'!$A$2:$A$12, 1))\n   ) / K104,\n   0\n)","v":0},"Taxa de IRS",{"$f":"IFERROR(\n   (\n     (M104 * INDEX('Tabelas IRS'!$C$2:$C$12, MATCH(M104, 'Tabelas IRS'!$A$2:$A$12, 1)))\n     - INDEX('Tabelas IRS'!$D$2:$D$12, MATCH(M104, 'Tabelas IRS'!$A$2:$A$12, 1))\n   ) / M104,\n   0\n)","v":0},"Taxa de IRS",{"$f":"IFERROR(\n   (\n     (O104 * INDEX('Tabelas IRS'!$C$2:$C$12, MATCH(O104, 'Tabelas IRS'!$A$2:$A$12, 1)))\n     - INDEX('Tabelas IRS'!$D$2:$D$12, MATCH(O104, 'Tabelas IRS'!$A$2:$A$12, 1))\n   ) / O104,\n   0\n)","v":0},"Taxa de IRS",{"$f":"IFERROR(\n   (\n     (Q104 * INDEX('Tabelas IRS'!$C$2:$C$12, MATCH(Q104, 'Tabelas IRS'!$A$2:$A$12, 1)))\n     - INDEX('Tabelas IRS'!$D$2:$D$12, MATCH(Q104, 'Tabelas IRS'!$A$2:$A$12, 1))\n   ) / Q104,\n   0\n)","v":0},"Taxa de IRS",{"$f":"IFERROR(\n   (\n     (S104 * INDEX('Tabelas IRS'!$C$2:$C$12, MATCH(S104, 'Tabelas IRS'!$A$2:$A$12, 1)))\n     - INDEX('Tabelas IRS'!$D$2:$D$12, MATCH(S104, 'Tabelas IRS'!$A$2:$A$12, 1))\n   ) / S104,\n   0\n)","v":0},"Taxa de IRS",{"$f":"IFERROR(\n   (\n     (U104 * INDEX('Tabelas IRS'!$C$2:$C$12, MATCH(U104, 'Tabelas IRS'!$A$2:$A$12, 1)))\n     - INDEX('Tabelas IRS'!$D$2:$D$12, MATCH(U104, 'Tabelas IRS'!$A$2:$A$12, 1))\n   ) / U104,\n   0\n)","v":0},"Taxa de IRS",{"$f":"IFERROR(\n   (\n     (W104 * INDEX('Tabelas IRS'!$C$2:$C$12, MATCH(W104, 'Tabelas IRS'!$A$2:$A$12, 1)))\n     - INDEX('Tabelas IRS'!$D$2:$D$12, MATCH(W104, 'Tabelas IRS'!$A$2:$A$12, 1))\n   ) / W104,\n   0\n)","v":0},"Taxa de IRS",{"$f":"IFERROR(\n   (\n     (Y104 * INDEX('Tabelas IRS'!$C$2:$C$12, MATCH(Y104, 'Tabelas IRS'!$A$2:$A$12, 1)))\n     - INDEX('Tabelas IRS'!$D$2:$D$12, MATCH(Y104, 'Tabelas IRS'!$A$2:$A$12, 1))\n   ) / Y104,\n   0\n)","v":0},"Taxa de IRS",{"$f":"IFERROR(\n   (\n     (AA104 * INDEX('Tabelas IRS'!$C$2:$C$12, MATCH(AA104, 'Tabelas IRS'!$A$2:$A$12, 1)))\n     - INDEX('Tabelas IRS'!$D$2:$D$12, MATCH(AA104, 'Tabelas IRS'!$A$2:$A$12, 1))\n   ) / AA104,\n   0\n)","v":0},"Taxa de IRS",{"$f":"IFERROR(\n   (\n     (AC104 * INDEX('Tabelas IRS'!$C$2:$C$12, MATCH(AC104, 'Tabelas IRS'!$A$2:$A$12, 1)))\n     - INDEX('Tabelas IRS'!$D$2:$D$12, MATCH(AC104, 'Tabelas IRS'!$A$2:$A$12, 1))\n   ) / AC104,\n   0\n)","v":0},"Taxa de IRS",{"$f":"IFERROR(\n   (\n     (AE104 * INDEX('Tabelas IRS'!$C$2:$C$12, MATCH(AE104, 'Tabelas IRS'!$A$2:$A$12, 1)))\n     - INDEX('Tabelas IRS'!$D$2:$D$12, MATCH(AE104, 'Tabelas IRS'!$A$2:$A$12, 1))\n   ) / AE104,\n   0\n)","v":0}]
[null,"Imposto da Mais-valia",{"$f":"C104*C105-INDEX('Tabelas IRS'!D4:D12,MATCH(C104,'Tabelas IRS'!B4:B12,1))-(C102*C103-INDEX('Tabelas IRS'!D4:D12,MATCH(C104,'Tabelas IRS'!B4:B12,1)))","v":5829.2099999999991},"Imposto da Mais-valia",{"$f":"E104*E105-INDEX('Tabelas IRS'!$D$2:$D$12, MATCH(E32, 'Tabelas IRS'!$A$2:$A$12, 1))-(E102*E103-INDEX('Tabelas IRS'!$D$2:$D$12, MATCH(E32, 'Tabelas IRS'!$A$2:$A$12, 1)))","v":5829.2099999999991},"Imposto da Mais-valia",{"$f":"G104*G105-INDEX('Tabelas IRS'!$D$2:$D$12, MATCH(G32, 'Tabelas IRS'!$A$2:$A$12, 1))-(G102*G103-INDEX('Tabelas IRS'!$D$2:$D$12, MATCH(G32, 'Tabelas IRS'!$A$2:$A$12, 1)))","v":{"$error":"#N/A"}},"Imposto da Mais-valia",{"$f":"I104*I105-INDEX('Tabelas IRS'!$D$2:$D$12, MATCH(I32, 'Tabelas IRS'!$A$2:$A$12, 1))-(I102*I103-INDEX('Tabelas IRS'!$D$2:$D$12, MATCH(I32, 'Tabelas IRS'!$A$2:$A$12, 1)))","v":{"$error":"#N/A"}},"Imposto da Mais-valia",{"$f":"K104*K105-INDEX('Tabelas IRS'!$D$2:$D$12, MATCH(K32, 'Tabelas IRS'!$A$2:$A$12, 1))-(K102*K103-INDEX('Tabelas IRS'!$D$2:$D$12, MATCH(K32, 'Tabelas IRS'!$A$2:$A$12, 1)))","v":{"$error":"#N/A"}},"Imposto da Mais-valia",{"$f":"M104*M105-INDEX('Tabelas IRS'!$D$2:$D$12, MATCH(M32, 'Tabelas IRS'!$A$2:$A$12, 1))-(M102*M103-INDEX('Tabelas IRS'!$D$2:$D$12, MATCH(M32, 'Tabelas IRS'!$A$2:$A$12, 1)))","v":{"$error":"#N/A"}},"Imposto da Mais-valia",{"$f":"O104*O105-INDEX('Tabelas IRS'!$D$2:$D$12, MATCH(O32, 'Tabelas IRS'!$A$2:$A$12, 1))-(O102*O103-INDEX('Tabelas IRS'!$D$2:$D$12, MATCH(O32, 'Tabelas IRS'!$A$2:$A$12, 1)))","v":{"$error":"#N/A"}},"Imposto da Mais-valia",{"$f":"Q104*Q105-INDEX('Tabelas IRS'!$D$2:$D$12, MATCH(Q32, 'Tabelas IRS'!$A$2:$A$12, 1))-(Q102*Q103-INDEX('Tabelas IRS'!$D$2:$D$12, MATCH(Q32, 'Tabelas IRS'!$A$2:$A$12, 1)))","v":{"$error":"#N/A"}},"Imposto da Mais-valia",{"$f":"S104*S105-INDEX('Tabelas IRS'!$D$2:$D$12, MATCH(S32, 'Tabelas IRS'!$A$2:$A$12, 1))-(S102*S103-INDEX('Tabelas IRS'!$D$2:$D$12, MATCH(S32, 'Tabelas IRS'!$A$2:$A$12, 1)))","v":{"$error":"#N/A"}},"Imposto da Mais-valia",{"$f":"U104*U105-INDEX('Tabelas IRS'!$D$2:$D$12, MATCH(U32, 'Tabelas IRS'!$A$2:$A$12, 1))-(U102*U103-INDEX('Tabelas IRS'!$D$2:$D$12, MATCH(U32, 'Tabelas IRS'!$A$2:$A$12, 1)))","v":{"$error":"#N/A"}},"Imposto da Mais-valia",{"$f":"W104*W105-INDEX('Tabelas IRS'!$D$2:$D$12, MATCH(W32, 'Tabelas IRS'!$A$2:$A$12, 1))-(W102*W103-INDEX('Tabelas IRS'!$D$2:$D$12, MATCH(W32, 'Tabelas IRS'!$A$2:$A$12, 1)))","v":{"$error":"#N/A"}},"Imposto da Mais-valia",{"$f":"Y104*Y105-INDEX('Tabelas IRS'!$D$2:$D$12, MATCH(Y32, 'Tabelas IRS'!$A$2:$A$12, 1))-(Y102*Y103-INDEX('Tabelas IRS'!$D$2:$D$12, MATCH(Y32, 'Tabelas IRS'!$A$2:$A$12, 1)))","v":{"$error":"#N/A"}},"Imposto da Mais-valia",{"$f":"AA104*AA105-INDEX('Tabelas IRS'!$D$2:$D$12, MATCH(AA32, 'Tabelas IRS'!$A$2:$A$12, 1))-(AA102*AA103-INDEX('Tabelas IRS'!$D$2:$D$12, MATCH(AA32, 'Tabelas IRS'!$A$2:$A$12, 1)))","v":{"$error":"#N/A"}},"Imposto da Mais-valia",{"$f":"AC104*AC105-INDEX('Tabelas IRS'!$D$2:$D$12, MATCH(AC32, 'Tabelas IRS'!$A$2:$A$12, 1))-(AC102*AC103-INDEX('Tabelas IRS'!$D$2:$D$12, MATCH(AC32, 'Tabelas IRS'!$A$2:$A$12, 1)))","v":{"$error":"#N/A"}},"Imposto da Mais-valia",{"$f":"AE104*AE105-INDEX('Tabelas IRS'!$D$2:$D$12, MATCH(AE32, 'Tabelas IRS'!$A$2:$A$12, 1))-(AE102*AE103-INDEX('Tabelas IRS'!$D$2:$D$12, MATCH(AE32, 'Tabelas IRS'!$A$2:$A$12, 1)))","v":{"$error":"#N/A"}}]
[]
[null,"Proprietários de Raiz 1",null,"Proprietários de Raiz 2",null,"Proprietários de Raiz 3",null,"Proprietários de Raiz 4",null,"Proprietários de Raiz 5",null,"Proprietários de Raiz 6",null,"Proprietários de Raiz 7",null,"Proprietários de Raiz 8",null,"Proprietários de Raiz 9",null,"Proprietários de Raiz",null,"Proprietários de Raiz",null,"Proprietários de Raiz 10",null,"Proprietários de Raiz 11",null,"Proprietários de Raiz 12",null,"Proprietários de Raiz 13"]
[null,"Nome ","André","Nome ","Francisco","Nome ",null,"Nome ",null,"Nome ",null,"Nome ",null,"Nome ",null,"Nome ",null,"Nome ",null,"Nome ",null,"Nome ",null,"Nome ",null,"Nome ",null,"Nome ",null,"Nome "]
[{"$f":"SUM(INDEX(110:110, _xlfn.SEQUENCE(C3, , 3, 2)))","v":1},"Quota-parte do direito",0.5,"Quota-parte do direito",0.5,"Quota-parte do direito",null,"Quota-parte do direito",null,"Quota-parte do direito",null,"Quota-parte do direito",null,"Quota-parte do direito",null,"Quota-parte do direito",null,"Quota-parte do direito",null,"Quota-parte do direito",null,"Quota-parte do direito",null,"Quota-parte do direito",null,"Quota-parte do direito",null,"Quota-parte do direito",null,"Quota-parte do direito"]
[{"$f":"IF(A110<>100%, \"As percentagens dos proprietários de raiz não totalizam 100%, voltar a confirmar quotas de todos os proprietários\", \"\")","v":""},"Origem","Herança de terceiro","Origem","Herança de terceiro","Origem",null,"Origem",null,"Origem",null,"Origem",null,"Origem",null,"Origem",null,"Origem",null,"Origem",null,"Origem",null,"Origem",null,"Origem",null,"Origem",null,"Origem"]
[null,{"$f":"IF(C111=\"Herança direta\", \"Valor patrimonial\", IF(C111=\"Herança de terceiro\", \"Valor do imóvel na doação\", IF(C111=\"Aquisição\", \"Valor de aquisição\", \"\")))","v":"Valor do imóvel na doação"},19000,{"$f":"IF(E111=\"Herança direta\", \"Valor patrimonial\", IF(E111=\"Herança de terceiro\", \"Valor do imóvel na doação\", IF(E111=\"Aquisição\", \"Valor de aquisição\", \"\")))","v":"Valor do imóvel na doação"},19000,{"$f":"IF(G111=\"Herança direta\", \"Valor patrimonial\", IF(G111=\"Herança de terceiro\", \"Valor do imóvel na doação\", IF(G111=\"Aquisição\", \"Valor de aquisição\", \"\")))","v":""},null,{"$f":"IF(I111=\"Herança direta\", \"Valor patrimonial\", IF(I111=\"Herança de terceiro\", \"Valor do imóvel na doação\", IF(I111=\"Aquisição\", \"Valor de aquisição\", \"\")))","v":""},null,{"$f":"IF(K111=\"Herança direta\", \"Valor patrimonial\", IF(K111=\"Herança de terceiro\", \"Valor do imóvel na doação\", IF(K111=\"Aquisição\", \"Valor de aquisição\", \"\")))","v":""},null,{"$f":"IF(M111=\"Herança direta\", \"Valor patrimonial\", IF(M111=\"Herança de terceiro\", \"Valor do imóvel na doação\", IF(M111=\"Aquisição\", \"Valor de aquisição\", \"\")))","v":""},null,{"$f":"IF(O111=\"Herança direta\", \"Valor patrimonial\", IF(O111=\"Herança de terceiro\", \"Valor do imóvel na doação\", IF(O111=\"Aquisição\", \"Valor de aquisição\", \"\")))","v":""},null,{"$f":"IF(Q111=\"Herança direta\", \"Valor patrimonial\", IF(Q111=\"Herança de terceiro\", \"Valor do imóvel na doação\", IF(Q111=\"Aquisição\", \"Valor de aquisição\", \"\")))","v":""},null,{"$f":"IF(S111=\"Herança direta\", \"Valor patrimonial\", IF(S111=\"Herança de terceiro\", \"Valor do imóvel na doação\", IF(S111=\"Aquisição\", \"Valor de aquisição\", \"\")))","v":""},null,{"$f":"IF(U111=\"Herança direta\", \"Valor patrimonial\", IF(U111=\"Herança de terceiro\", \"Valor do imóvel na doação\", IF(U111=\"Aquisição\", \"Valor de aquisição\", \"\")))","v":""},null,{"$f":"IF(W111=\"Herança direta\", \"Valor patrimonial\", IF(W111=\"Herança de terceiro\", \"Valor do imóvel na doação\", IF(W111=\"Aquisição\", \"Valor de aquisição\", \"\")))","v":""},null,{"$f":"IF(Y111=\"Herança direta\", \"Valor patrimonial\", IF(Y111=\"Herança de terceiro\", \"Valor do imóvel na doação\", IF(Y111=\"Aquisição\", \"Valor de aquisição\", \"\")))","v":""},null,{"$f":"IF(AA111=\"Herança direta\", \"Valor patrimonial\", IF(AA111=\"Herança de terceiro\", \"Valor do imóvel na doação\", IF(AA111=\"Aquisição\", \"Valor de aquisição\", \"\")))","v":""},null,{"$f":"IF(AC111=\"Herança direta\", \"Valor patrimonial\", IF(AC111=\"Herança de terceiro\", \"Valor do imóvel na doação\", IF(AC111=\"Aquisição\", \"Valor de aquisição\", \"\")))","v":""},null,{"$f":"IF(AE111=\"Herança direta\", \"Valor patrimonial\", IF(AE111=\"Herança de terceiro\", \"Valor do imóvel na doação\", IF(AE111=\"Aquisição\", \"Valor de aquisição\", \"\")))","v":""}]
[null,"Ano de aquisição",2013,"Ano de aquisição",2013,"Ano de aquisição",null,"Ano de aquisição",null,"Ano de aquisição",null,"Ano de aquisição",null,"Ano de aquisição",null,"Ano de aquisição",null,"Ano de aquisição",null,"Ano de aquisição",null,"Ano de aquisição",null,"Ano de aquisição",null,"Ano de aquisição",null,"Ano de aquisição",null,"Ano de aquisição"]
[null,"Obras nos últimos 12 anos",0,"Obras nos últimos 12 anos",0,"Obras nos últimos 12 anos",null,"Obras nos últimos 12 anos",null,"Obras nos últimos 12 anos",null,"Obras nos últimos 12 anos",null,"Obras nos últimos 12 anos",null,"Obras nos últimos 12 anos",null,"Obras nos últimos 12 anos",null,"Obras nos últimos 12 anos",null,"Obras nos últimos 12 anos",null,"Obras nos últimos 12 anos",null,"Obras nos últimos 12 anos",null,"Obras nos últimos 12 anos",null,"Obras nos últimos 12 anos"]
[null,"Impostos pagos na aquisição",100,"Impostos pagos na aquisição",100,"Impostos pagos na aquisição",null,"Impostos pagos na aquisição",null,"Impostos pagos na aquisição",null,"Impostos pagos na aquisição",null,"Impostos pagos na aquisição",null,"Impostos pagos na aquisição",null,"Impostos pagos na aquisição",null,"Impostos pagos na aquisição",null,"Impostos pagos na aquisição",null,"Impostos pagos na aquisição",null,"Impostos pagos na aquisição",null,"Impostos pagos na aquisição",null,"Impostos pagos na aquisição"]
[null,"Comissão imobiliária",2460,"Comissão imobiliária",2460,"Comissão imobiliária",null,"Comissão imobiliária",null,"Comissão imobiliária",null,"Comissão imobiliária",null,"Comissão imobiliária",null,"Comissão imobiliária",null,"Comissão imobiliária",null,"Comissão imobiliária",null,"Comissão imobiliária",null,"Comissão imobiliária",null,"Comissão imobiliária",null,"Comissão imobiliária",null,"Comissão imobiliária"]
[null,"Outros encargos dedutíveis",0,"Outros encargos dedutíveis",0,"Outros encargos dedutíveis",null,"Outros encargos dedutíveis",null,"Outros encargos dedutíveis",null,"Outros encargos dedutíveis",null,"Outros encargos dedutíveis",null,"Outros encargos dedutíveis",null,"Outros encargos dedutíveis",null,"Outros encargos dedutíveis",null,"Outros encargos dedutíveis",null,"Outros encargos dedutíveis",null,"Outros encargos dedutíveis",null,"Outros encargos dedutíveis",null,"Outros encargos dedutíveis"]
[null,"Cálculo da mais valia",null,"Cálculo da mais valia",null,"Cálculo da mais valia",null,"Cálculo da mais valia",null,"Cálculo da mais valia",null,"Cálculo da mais valia",null,"Cálculo da mais valia",null,"Cálculo da mais valia",null,"Cálculo da mais valia",null,"Cálculo da mais valia",null,"Cálculo da mais valia",null,"Cálculo da mais valia",null,"Cálculo da mais valia",null,"Cálculo da mais valia",null,"Cálculo da mais valia"]
[null,"Coeficiente de atualização",{"$f":"VLOOKUP(C113, 'Coeficiente de atualização'!B26:C178, 2, FALSE)","v":1.17},"Coeficiente de atualização",{"$f":"VLOOKUP(E113, 'Coeficiente de atualização'!$B$26:$C$178, 2, FALSE)","v":1.17},"Coeficiente de atualização",{"$f":"VLOOKUP(G113, 'Coeficiente de atualização'!$B$26:$C$178, 2, FALSE)","v":{"$error":"#N/A"}},"Coeficiente de atualização",{"$f":"VLOOKUP(I113, 'Coeficiente de atualização'!$B$26:$C$178, 2, FALSE)","v":{"$error":"#N/A"}},"Coeficiente de atualização",{"$f":"VLOOKUP(K113, 'Coeficiente de atualização'!$B$26:$C$178, 2, FALSE)","v":{"$error":"#N/A"}},"Coeficiente de atualização",{"$f":"VLOOKUP(M113, 'Coeficiente de atualização'!$B$26:$C$178, 2, FALSE)","v":{"$error":"#N/A"}},"Coeficiente de atualização",{"$f":"VLOOKUP(O113, 'Coeficiente de atualização'!$B$26:$C$178, 2, FALSE)","v":{"$error":"#N/A"}},"Coeficiente de atualização",{"$f":"VLOOKUP(Q113, 'Coeficiente de atualização'!$B$26:$C$178, 2, FALSE)","v":{"$error":"#N/A"}},"Coeficiente de atualização",{"$f":"VLOOKUP(S113, 'Coeficiente de atualização'!$B$26:$C$178, 2, FALSE)","v":{"$error":"#N/A"}},"Coeficiente de atualização",{"$f":"VLOOKUP(U113, 'Coeficiente de atualização'!$B$26:$C$178, 2, FALSE)","v":{"$error":"#N/A"}},"Coeficiente de atualização",{"$f":"VLOOKUP(W113, 'Coeficiente de atualização'!$B$26:$C$178, 2, FALSE)","v":{"$error":"#N/A"}},"Coeficiente de atualização",{"$f":"VLOOKUP(Y113, 'Coeficiente de atualização'!$B$26:$C$178, 2, FALSE)","v":{"$error":"#N/A"}},"Coeficiente de atualização",{"$f":"VLOOKUP(AA113, 'Coeficiente de atualização'!$B$26:$C$178, 2, FALSE)","v":{"$error":"#N/A"}},"Coeficiente de atualização",{"$f":"VLOOKUP(AC113, 'Coeficiente de atualização'!$B$26:$C$178, 2, FALSE)","v":{"$error":"#N/A"}},"Coeficiente de atualização",{"$f":"VLOOKUP(AE113, 'Coeficiente de atualização'!$B$26:$C$178, 2, FALSE)","v":{"$error":"#N/A"}}]
[null,"Despesas e encargos",{"$f":"C115++C114+C116+C117","v":2560},"Despesas e encargos",{"$f":"E114+E115+E116+E117","v":2560},"Despesas e encargos",{"$f":"G114+G115+G116+G117","v":0},"Despesas e encargos",{"$f":"I114+I115+I116+I117","v":0},"Despesas e encargos",{"$f":"K114+K115+K116+K117","v":0},"Despesas e encargos",{"$f":"M114+M115+M116+M117","v":0},"Despesas e encargos",{"$f":"O114+O115+O116+O117","v":0},"Despesas e encargos",{"$f":"Q114+Q115+Q116+Q117","v":0},"Despesas e encargos",{"$f":"S114+S115+S116+S117","v":0},"Despesas e encargos",{"$f":"U114+U115+U116+U117","v":0},"Despesas e encargos",{"$f":"W114+W115+W116+W117","v":0},"Despesas e encargos",{"$f":"Y114+Y115+Y116+Y117","v":0},"Despesas e encargos",{"$f":"AA114+AA115+AA116+AA117","v":0},"Despesas e encargos",{"$f":"AC114+AC115+AC116+AC117","v":0},"Despesas e encargos",{"$f":"AE114+AE115+AE116+AE117","v":0}]
[{"$f":"1-A98","v":0.6},"Quota-parte da mais-valia",{"$f":"A121*C110","v":0.3},"Quota-parte da mais-valia",{"$f":"$A$121*E110","v":0.3},"Quota-parte da mais-valia",{"$f":"$A$121*G110","v":0},"Quota-parte da mais-valia",{"$f":"$A$121*I110","v":0},"Quota-parte da mais-valia",{"$f":"$A$121*K110","v":0},"Quota-parte da mais-valia",{"$f":"$A$121*M110","v":0},"Quota-parte da mais-valia",{"$f":"$A$121*O110","v":0},"Quota-parte da mais-valia",{"$f":"$A$121*Q110","v":0},"Quota-parte da mais-valia",{"$f":"$A$121*S110","v":0},"Quota-parte da mais-valia",{"$f":"$A$121*U110","v":0},"Quota-parte da mais-valia",{"$f":"$A$121*W110","v":0},"Quota-parte da mais-valia",{"$f":"$A$121*Y110","v":0},"Quota-parte da mais-valia",{"$f":"$A$121*AA110","v":0},"Quota-parte da mais-valia",{"$f":"$A$121*AC110","v":0},"Quota-parte da mais-valia",{"$f":"$A$121*AE110","v":0}]
[null,"Mais-valia do proprietário de raiz",{"$f":"(C8-(C112*C119)-C120)*C121","v":46563},"Mais-valia do proprietário de raiz",{"$f":"($C$8-(E112*E119)-E120)*E121","v":46563},"Mais-valia do proprietário de raiz",{"$f":"($C$8-(G112*G119)-G120)*G121","v":{"$error":"#N/A"}},"Mais-valia do proprietário de raiz",{"$f":"($C$8-(I112*I119)-I120)*I121","v":{"$error":"#N/A"}},"Mais-valia do proprietário de raiz",{"$f":"($C$8-(K112*K119)-K120)*K121","v":{"$error":"#N/A"}},"Mais-valia do proprietário de raiz",{"$f":"($C$8-(M112*M119)-M120)*M121","v":{"$error":"#N/A"}},"Mais-valia do proprietário de raiz",{"$f":"($C$8-(O112*O119)-O120)*O121","v":{"$error":"#N/A"}},"Mais-valia do proprietário de raiz",{"$f":"($C$8-(Q112*Q119)-Q120)*Q121","v":{"$error":"#N/A"}},"Mais-valia do proprietário de raiz",{"$f":"($C$8-(S112*S119)-S120)*S121","v":{"$error":"#N/A"}},"Mais-valia do proprietário de raiz",{"$f":"($C$8-(U112*U119)-U120)*U121","v":{"$error":"#N/A"}},"Mais-valia do proprietário de raiz",{"$f":"($C$8-(W112*W119)-W120)*W121","v":{"$error":"#N/A"}},"Mais-valia do proprietário de raiz",{"$f":"($C$8-(Y112*Y119)-Y120)*Y121","v":{"$error":"#N/A"}},"Mais-valia do proprietário de raiz",{"$f":"($C$8-(AA112*AA119)-AA120)*AA121","v":{"$error":"#N/A"}},"Mais-valia do proprietário de raiz",{"$f":"($C$8-(AC112*AC119)-AC120)*AC121","v":{"$error":"#N/A"}},"Mais-valia do proprietário de raiz",{"$f":"($C$8-(AE112*AE119)-AE120)*AE121","v":{"$error":"#N/A"}}]
[null,"Art 43º (50%)",{"$f":"C122/2","v":23281.5},"Art 43º (50%)",{"$f":"E122/2","v":23281.5},"Art 43º (50%)",{"$f":"G122/2","v":{"$error":"#N/A"}},"Art 43º (50%)",{"$f":"I122/2","v":{"$error":"#N/A"}},"Art 43º (50%)",{"$f":"K122/2","v":{"$error":"#N/A"}},"Art 43º (50%)",{"$f":"M122/2","v":{"$error":"#N/A"}},"Art 43º (50%)",{"$f":"O122/2","v":{"$error":"#N/A"}},"Art 43º (50%)",{"$f":"Q122/2","v":{"$error":"#N/A"}},"Art 43º (50%)",{"$f":"S122/2","v":{"$error":"#N/A"}},"Art 43º (50%)",{"$f":"U122/2","v":{"$error":"#N/A"}},"Art 43º (50%)",{"$f":"W122/2","v":{"$error":"#N/A"}},"Art 43º (50%)",{"$f":"Y122/2","v":{"$error":"#N/A"}},"Art 43º (50%)",{"$f":"AA122/2","v":{"$error":"#N/A"}},"Art 43º (50%)",{"$f":"AC122/2","v":{"$error":"#N/A"}},"Art 43º (50%)",{"$f":"AE122/2","v":{"$error":"#N/A"}}]
[null,"Dados pessoais",null,"Dados pessoais",null,"Dados pessoais",null,"Dados pessoais",null,"Dados pessoais",null,"Dados pessoais",null,"Dados pessoais",null,"Dados pessoais",null,"Dados pessoais",null,"Dados pessoais",null,"Dados pessoais",null,"Dados pessoais",null,"Dados pessoais",null,"Dados pessoais",null,"Dados pessoais"]
[null,"Rendimento anual coletável",20000,"Rendimento anual coletável",15000,"Rendimento anual coletável",null,"Rendimento anual coletável",null,"Rendimento anual coletável",null,"Rendimento anual coletável",null,"Rendimento anual coletável",null,"Rendimento anual coletável",null,"Rendimento anual coletável",null,"Rendimento anual coletável",null,"Rendimento anual coletável",null,"Rendimento anual coletável",null,"Rendimento anual coletável",null,"Rendimento anual coletável",null,"Rendimento anual coletável"]
[{"$f":"IF(A98+A121<>100%, \"As percentagens dos usufrutuários e nu-proprietários não totalizam 100%, voltar a confirmar quotas de todos os proprietários\", \"\")","v":""},"Taxa de IRS",{"$f":"IFERROR(\n   (\n     (C125 * INDEX('Tabelas IRS'!$C$2:$C$12, MATCH(C125, 'Tabelas IRS'!$A$2:$A$12, 1)))\n     - INDEX('Tabelas IRS'!$D$2:$D$12, MATCH(C125, 'Tabelas IRS'!$A$2:$A$12, 1))\n   ) / C125,\n   0\n)","v":0.1766045},"Taxa de IRS",{"$f":"IFERROR(\n   (\n     (E125 * INDEX('Tabelas IRS'!$C$2:$C$12, MATCH(E125, 'Tabelas IRS'!$A$2:$A$12, 1)))\n     - INDEX('Tabelas IRS'!$D$2:$D$12, MATCH(E125, 'Tabelas IRS'!$A$2:$A$12, 1))\n   ) / E125,\n   0\n)","v":0.15660600000000002},"Taxa de IRS",{"$f":"IFERROR(\n   (\n     (G125 * INDEX('Tabelas IRS'!$C$2:$C$12, MATCH(G125, 'Tabelas IRS'!$A$2:$A$12, 1)))\n     - INDEX('Tabelas IRS'!$D$2:$D$12, MATCH(G125, 'Tabelas IRS'!$A$2:$A$12, 1))\n   ) / G125,\n   0\n)","v":0},"Taxa de IRS",{"$f":"IFERROR(\n   (\n     (I125 * INDEX('Tabelas IRS'!$C$2:$C$12, MATCH(I125, 'Tabelas IRS'!$A$2:$A$12, 1)))\n     - INDEX('Tabelas IRS'!$D$2:$D$12, MATCH(I125, 'Tabelas IRS'!$A$2:$A$12, 1))\n   ) / I125,\n   0\n)","v":0},"Taxa de IRS",{"$f":"IFERROR(\n   (\n     (K125 * INDEX('Tabelas IRS'!$C$2:$C$12, MATCH(K125, 'Tabelas IRS'!$A$2:$A$12, 1)))\n     - INDEX('Tabelas IRS'!$D$2:$D$12, MATCH(K125, 'Tabelas IRS'!$A$2:$A$12, 1))\n   ) / K125,\n   0\n)","v":0},"Taxa de IRS",{"$f":"IFERROR(\n   (\n     (M125 * INDEX('Tabelas IRS'!$C$2:$C$12, MATCH(M125, 'Tabelas IRS'!$A$2:$A$12, 1)))\n     - INDEX('Tabelas IRS'!$D$2:$D$12, MATCH(M125, 'Tabelas IRS'!$A$2:$A$12, 1))\n   ) / M125,\n   0\n)","v":0},"Taxa de IRS",{"$f":"IFERROR(\n   (\n     (O125 * INDEX('Tabelas IRS'!$C$2:$C$12, MATCH(O125, 'Tabelas IRS'!$A$2:$A$12, 1)))\n     - INDEX('Tabelas IRS'!$D$2:$D$12, MATCH(O125, 'Tabelas IRS'!$A$2:$A$12, 1))\n   ) / O125,\n   0\n)","v":0},"Taxa de IRS",{"$f":"IFERROR(\n   (\n     (Q125 * INDEX('Tabelas IRS'!$C$2:$C$12, MATCH(Q125, 'Tabelas IRS'!$A$2:$A$12, 1)))\n     - INDEX('Tabelas IRS'!$D$2:$D$12, MATCH(Q125, 'Tabelas IRS'!$A$2:$A$12, 1))\n   ) / Q125,\n   0\n)","v":0},"Taxa de IRS",{"$f":"IFERROR(\n   (\n     (S125 * INDEX('Tabelas IRS'!$C$2:$C$12, MATCH(S125, 'Tabelas IRS'!$A$2:$A$12, 1)))\n     - INDEX('Tabelas IRS'!$D$2:$D$12, MATCH(S125, 'Tabelas IRS'!$A$2:$A$12, 1))\n   ) / S125,\n   0\n)","v":0},"Taxa de IRS",{"$f":"IFERROR(\n   (\n     (U125 * INDEX('Tabelas IRS'!$C$2:$C$12, MATCH(U125, 'Tabelas IRS'!$A$2:$A$12, 1)))\n     - INDEX('Tabelas IRS'!$D$2:$D$12, MATCH(U125, 'Tabelas IRS'!$A$2:$A$12, 1))\n   ) / U125,\n   0\n)","v":0},"Taxa de IRS",{"$f":"IFERROR(\n   (\n     (W125 * INDEX('Tabelas IRS'!$C$2:$C$12, MATCH(W125, 'Tabelas IRS'!$A$2:$A$12, 1)))\n     - INDEX('Tabelas IRS'!$D$2:$D$12, MATCH(W125, 'Tabelas IRS'!$A$2:$A$12, 1))\n   ) / W125,\n   0\n)","v":0},"Taxa de IRS",{"$f":"IFERROR(\n   (\n     (Y125 * INDEX('Tabelas IRS'!$C$2:$C$12, MATCH(Y125, 'Tabelas IRS'!$A$2:$A$12, 1)))\n     - INDEX('Tabelas IRS'!$D$2:$D$12, MATCH(Y125, 'Tabelas IRS'!$A$2:$A$12, 1))\n   ) / Y125,\n   0\n)","v":0},"Taxa de IRS",{"$f":"IFERROR(\n   (\n     (AA125 * INDEX('Tabelas IRS'!$C$2:$C$12, MATCH(AA125, 'Tabelas IRS'!$A$2:$A$12, 1)))\n     - INDEX('Tabelas IRS'!$D$2:$D$12, MATCH(AA125, 'Tabelas IRS'!$A$2:$A$12, 1))\n   ) / AA125,\n   0\n)","v":0},"Taxa de IRS",{"$f":"IFERROR(\n   (\n     (AC125 * INDEX('Tabelas IRS'!$C$2:$C$12, MATCH(AC125, 'Tabelas IRS'!$A$2:$A$12, 1)))\n     - INDEX('Tabelas IRS'!$D$2:$D$12, MATCH(AC125, 'Tabelas IRS'!$A$2:$A$12, 1))\n   ) / AC125,\n   0\n)","v":0},"Taxa de IRS",{"$f":"IFERROR(\n   (\n     (AE125 * INDEX('Tabelas IRS'!$C$2:$C$12, MATCH(AE125, 'Tabelas IRS'!$A$2:$A$12, 1)))\n     - INDEX('Tabelas IRS'!$D$2:$D$12, MATCH(AE125, 'Tabelas IRS'!$A$2:$A$12, 1))\n   ) / AE125,\n   0\n)","v":0}]
[null,"Rendimento anual com mais-valia",{"$f":"C125+C123","v":43281.5},"Rendimento anual com mais-valia",{"$f":"E125+E123","v":38281.5},"Rendimento anual com mais-valia",{"$f":"G125+G123","v":{"$error":"#N/A"}},"Rendimento anual com mais-valia",{"$f":"I125+I123","v":{"$error":"#N/A"}},"Rendimento anual com mais-valia",{"$f":"K125+K123","v":{"$error":"#N/A"}},"Rendimento anual com mais-valia",{"$f":"M125+M123","v":{"$error":"#N/A"}},"Rendimento anual com mais-valia",{"$f":"O125+O123","v":{"$error":"#N/A"}},"Rendimento anual com mais-valia",{"$f":"Q125+Q123","v":{"$error":"#N/A"}},"Rendimento anual com mais-valia",{"$f":"S125+S123","v":{"$error":"#N/A"}},"Rendimento anual com mais-valia",{"$f":"U125+U123","v":{"$error":"#N/A"}},"Rendimento anual com mais-valia",{"$f":"W125+W123","v":{"$error":"#N/A"}},"Rendimento anual com mais-valia",{"$f":"Y125+Y123","v":{"$error":"#N/A"}},"Rendimento anual com mais-valia",{"$f":"AA125+AA123","v":{"$error":"#N/A"}},"Rendimento anual com mais-valia",{"$f":"AC125+AC123","v":{"$error":"#N/A"}},"Rendimento anual com mais-valia",{"$f":"AE125+AE123","v":{"$error":"#N/A"}}]
[null,"Taxa de IRS",{"$f":"IFERROR(\n   (\n     (C127 * INDEX('Tabelas IRS'!$C$2:$C$12, MATCH(C127, 'Tabelas IRS'!$A$2:$A$12, 1)))\n     - INDEX('Tabelas IRS'!$D$2:$D$12, MATCH(C127, 'Tabelas IRS'!$A$2:$A$12, 1))\n   ) / C127,\n   0\n)","v":0.26509461317190947},"Taxa de IRS",{"$f":"IFERROR(\n   (\n     (E127 * INDEX('Tabelas IRS'!$C$2:$C$12, MATCH(E127, 'Tabelas IRS'!$A$2:$A$12, 1)))\n     - INDEX('Tabelas IRS'!$D$2:$D$12, MATCH(E127, 'Tabelas IRS'!$A$2:$A$12, 1))\n   ) / E127,\n   0\n)","v":0.24990641693768528},"Taxa de IRS",{"$f":"IFERROR(\n   (\n     (G127 * INDEX('Tabelas IRS'!$C$2:$C$12, MATCH(G127, 'Tabelas IRS'!$A$2:$A$12, 1)))\n     - INDEX('Tabelas IRS'!$D$2:$D$12, MATCH(G127, 'Tabelas IRS'!$A$2:$A$12, 1))\n   ) / G127,\n   0\n)","v":0},"Taxa de IRS",{"$f":"IFERROR(\n   (\n     (I127 * INDEX('Tabelas IRS'!$C$2:$C$12, MATCH(I127, 'Tabelas IRS'!$A$2:$A$12, 1)))\n     - INDEX('Tabelas IRS'!$D$2:$D$12, MATCH(I127, 'Tabelas IRS'!$A$2:$A$12, 1))\n   ) / I127,\n   0\n)","v":0},"Taxa de IRS",{"$f":"IFERROR(\n   (\n     (K127 * INDEX('Tabelas IRS'!$C$2:$C$12, MATCH(K127, 'Tabelas IRS'!$A$2:$A$12, 1)))\n     - INDEX('Tabelas IRS'!$D$2:$D$12, MATCH(K127, 'Tabelas IRS'!$A$2:$A$12, 1))\n   ) / K127,\n   0\n)","v":0},"Taxa de IRS",{"$f":"IFERROR(\n   (\n     (M127 * INDEX('Tabelas IRS'!$C$2:$C$12, MATCH(M127, 'Tabelas IRS'!$A$2:$A$12, 1)))\n     - INDEX('Tabelas IRS'!$D$2:$D$12, MATCH(M127, 'Tabelas IRS'!$A$2:$A$12, 1))\n   ) / M127,\n   0\n)","v":0},"Taxa de IRS",{"$f":"IFERROR(\n   (\n     (O127 * INDEX('Tabelas IRS'!$C$2:$C$12, MATCH(O127, 'Tabelas IRS'!$A$2:$A$12, 1)))\n     - INDEX('Tabelas IRS'!$D$2:$D$12, MATCH(O127, 'Tabelas IRS'!$A$2:$A$12, 1))\n   ) / O127,\n   0\n)","v":0},"Taxa de IRS",{"$f":"IFERROR(\n   (\n     (Q127 * INDEX('Tabelas IRS'!$C$2:$C$12, MATCH(Q127, 'Tabelas IRS'!$A$2:$A$12, 1)))\n     - INDEX('Tabelas IRS'!$D$2:$D$12, MATCH(Q127, 'Tabelas IRS'!$A$2:$A$12, 1))\n   ) / Q127,\n   0\n)","v":0},"Taxa de IRS",{"$f":"IFERROR(\n   (\n     (S127 * INDEX('Tabelas IRS'!$C$2:$C$12, MATCH(S127, 'Tabelas IRS'!$A$2:$A$12, 1)))\n     - INDEX('Tabelas IRS'!$D$2:$D$12, MATCH(S127, 'Tabelas IRS'!$A$2:$A$12, 1))\n   ) / S127,\n   0\n)","v":0},"Taxa de IRS",{"$f":"IFERROR(\n   (\n     (U127 * INDEX('Tabelas IRS'!$C$2:$C$12, MATCH(U127, 'Tabelas IRS'!$A$2:$A$12, 1)))\n     - INDEX('Tabelas IRS'!$D$2:$D$12, MATCH(U127, 'Tabelas IRS'!$A$2:$A$12, 1))\n   ) / U127,\n   0\n)","v":0},"Taxa de IRS",{"$f":"IFERROR(\n   (\n     (W127 * INDEX('Tabelas IRS'!$C$2:$C$12, MATCH(W127, 'Tabelas IRS'!$A$2:$A$12, 1)))\n     - INDEX('Tabelas IRS'!$D$2:$D$12, MATCH(W127, 'Tabelas IRS'!$A$2:$A$12, 1))\n   ) / W127,\n   0\n)","v":0},"Taxa de IRS",{"$f":"IFERROR(\n   (\n     (Y127 * INDEX('Tabelas IRS'!$C$2:$C$12, MATCH(Y127, 'Tabelas IRS'!$A$2:$A$12, 1)))\n     - INDEX('Tabelas IRS'!$D$2:$D$12, MATCH(Y127, 'Tabelas IRS'!$A$2:$A$12, 1))\n   ) / Y127,\n   0\n)","v":0},"Taxa de IRS",{"$f":"IFERROR(\n   (\n     (AA127 * INDEX('Tabelas IRS'!$C$2:$C$12, MATCH(AA127, 'Tabelas IRS'!$A$2:$A$12, 1)))\n     - INDEX('Tabelas IRS'!$D$2:$D$12, MATCH(AA127, 'Tabelas IRS'!$A$2:$A$12, 1))\n   ) / AA127,\n   0\n)","v":0},"Taxa de IRS",{"$f":"IFERROR(\n   (\n     (AC127 * INDEX('Tabelas IRS'!$C$2:$C$12, MATCH(AC127, 'Tabelas IRS'!$A$2:$A$12, 1)))\n     - INDEX('Tabelas IRS'!$D$2:$D$12, MATCH(AC127, 'Tabelas IRS'!$A$2:$A$12, 1))\n   ) / AC127,\n   0\n)","v":0},"Taxa de IRS",{"$f":"IFERROR(\n   (\n     (AE127 * INDEX('Tabelas IRS'!$C$2:$C$12, MATCH(AE127, 'Tabelas IRS'!$A$2:$A$12, 1)))\n     - INDEX('Tabelas IRS'!$D$2:$D$12, MATCH(AE127, 'Tabelas IRS'!$A$2:$A$12, 1))\n   ) / AE127,\n   0\n)","v":0}]
[null,"Imposto da Mais-valia",{"$f":"C127*C128-INDEX('Tabelas IRS'!D4:D12,MATCH(C127,'Tabelas IRS'!B4:B12,1))-(C125*C126-INDEX('Tabelas IRS'!D4:D12,MATCH(C127,'Tabelas IRS'!B4:B12,1)))","v":7941.6024999999991},"Imposto da Mais-valia",{"$f":"E127*E128-INDEX('Tabelas IRS'!$D$2:$D$12, MATCH(E32, 'Tabelas IRS'!$A$2:$A$12, 1))-(E125*E126-INDEX('Tabelas IRS'!$D$2:$D$12, MATCH(E32, 'Tabelas IRS'!$A$2:$A$12, 1)))","v":7217.7024999999994},"Imposto da Mais-valia",{"$f":"G127*G128-INDEX('Tabelas IRS'!$D$2:$D$12, MATCH(G32, 'Tabelas IRS'!$A$2:$A$12, 1))-(G125*G126-INDEX('Tabelas IRS'!$D$2:$D$12, MATCH(G32, 'Tabelas IRS'!$A$2:$A$12, 1)))","v":{"$error":"#N/A"}},"Imposto da Mais-valia",{"$f":"I127*I128-INDEX('Tabelas IRS'!$D$2:$D$12, MATCH(I32, 'Tabelas IRS'!$A$2:$A$12, 1))-(I125*I126-INDEX('Tabelas IRS'!$D$2:$D$12, MATCH(I32, 'Tabelas IRS'!$A$2:$A$12, 1)))","v":{"$error":"#N/A"}},"Imposto da Mais-valia",{"$f":"K127*K128-INDEX('Tabelas IRS'!$D$2:$D$12, MATCH(K32, 'Tabelas IRS'!$A$2:$A$12, 1))-(K125*K126-INDEX('Tabelas IRS'!$D$2:$D$12, MATCH(K32, 'Tabelas IRS'!$A$2:$A$12, 1)))","v":{"$error":"#N/A"}},"Imposto da Mais-valia",{"$f":"M127*M128-INDEX('Tabelas IRS'!$D$2:$D$12, MATCH(M32, 'Tabelas IRS'!$A$2:$A$12, 1))-(M125*M126-INDEX('Tabelas IRS'!$D$2:$D$12, MATCH(M32, 'Tabelas IRS'!$A$2:$A$12, 1)))","v":{"$error":"#N/A"}},"Imposto da Mais-valia",{"$f":"O127*O128-INDEX('Tabelas IRS'!$D$2:$D$12, MATCH(O32, 'Tabelas IRS'!$A$2:$A$12, 1))-(O125*O126-INDEX('Tabelas IRS'!$D$2:$D$12, MATCH(O32, 'Tabelas IRS'!$A$2:$A$12, 1)))","v":{"$error":"#N/A"}},"Imposto da Mais-valia",{"$f":"Q127*Q128-INDEX('Tabelas IRS'!$D$2:$D$12, MATCH(Q32, 'Tabelas IRS'!$A$2:$A$12, 1))-(Q125*Q126-INDEX('Tabelas IRS'!$D$2:$D$12, MATCH(Q32, 'Tabelas IRS'!$A$2:$A$12, 1)))","v":{"$error":"#N/A"}},"Imposto da Mais-valia",{"$f":"S127*S128-INDEX('Tabelas IRS'!$D$2:$D$12, MATCH(S32, 'Tabelas IRS'!$A$2:$A$12, 1))-(S125*S126-INDEX('Tabelas IRS'!$D$2:$D$12, MATCH(S32, 'Tabelas IRS'!$A$2:$A$12, 1)))","v":{"$error":"#N/A"}},"Imposto da Mais-valia",{"$f":"U127*U128-INDEX('Tabelas IRS'!$D$2:$D$12, MATCH(U32, 'Tabelas IRS'!$A$2:$A$12, 1))-(U125*U126-INDEX('Tabelas IRS'!$D$2:$D$12, MATCH(U32, 'Tabelas IRS'!$A$2:$A$12, 1)))","v":{"$error":"#N/A"}},"Imposto da Mais-valia",{"$f":"W127*W128-INDEX('Tabelas IRS'!$D$2:$D$12, MATCH(W32, 'Tabelas IRS'!$A$2:$A$12, 1))-(W125*W126-INDEX('Tabelas IRS'!$D$2:$D$12, MATCH(W32, 'Tabelas IRS'!$A$2:$A$12, 1)))","v":{"$error":"#N/A"}},"Imposto da Mais-valia",{"$f":"Y127*Y128-INDEX('Tabelas IRS'!$D$2:$D$12, MATCH(Y32, 'Tabelas IRS'!$A$2:$A$12, 1))-(Y125*Y126-INDEX('Tabelas IRS'!$D$2:$D$12, MATCH(Y32, 'Tabelas IRS'!$A$2:$A$12, 1)))","v":{"$error":"#N/A"}},"Imposto da Mais-valia",{"$f":"AA127*AA128-INDEX('Tabelas IRS'!$D$2:$D$12, MATCH(AA32, 'Tabelas IRS'!$A$2:$A$12, 1))-(AA125*AA126-INDEX('Tabelas IRS'!$D$2:$D$12, MATCH(AA32, 'Tabelas IRS'!$A$2:$A$12, 1)))","v":{"$error":"#N/A"}},"Imposto da Mais-valia",{"$f":"AC127*AC128-INDEX('Tabelas IRS'!$D$2:$D$12, MATCH(AC32, 'Tabelas IRS'!$A$2:$A$12, 1))-(AC125*AC126-INDEX('Tabelas IRS'!$D$2:$D$12, MATCH(AC32, 'Tabelas IRS'!$A$2:$A$12, 1)))","v":{"$error":"#N/A"}},"Imposto da Mais-valia",{"$f":"AE127*AE128-INDEX('Tabelas IRS'!$D$2:$D$12, MATCH(AE32, 'Tabelas IRS'!$A$2:$A$12, 1))-(AE125*AE126-INDEX('Tabelas IRS'!$D$2:$D$12, MATCH(AE32, 'Tabelas IRS'!$A$2:$A$12, 1)))","v":{"$error":"#N/A"}}]

{"sheet":"Tabelas IRS","index":1,"n_rows":12,"n_cols":4,"rows_kept":12,"cut":false,"hidden":false,"merged":[[0,0,0,3],[1,0,1,3]]}
["IRS - Trabalhador, não casado, sem dependentes, em Portugal Continental"]
["IRS"]
["Limite mínimo","F (Limite Máximo)","G (Taxa)","H (Parcela)"]
[0,8059,0.13,0]
[8059.01,12160,0.16500000000000001,282.07]
[12160.01,17233,0.22,950.91]
[17233.009999999998,22306,0.25,1467.91]
[22306.01,28400,0.32,3029.38]
[28400.01,41629,0.35499999999999998,4023.14]
[41629.01,44987,0.435,7353.76]
[44987.01,83696,0.45,8028.38]
[83696.009999999995,999999999,0.48,10539]

{"sheet":"Coeficiente de atualização","index":2,"n_rows":123,"n_cols":3,"rows_kept":123,"cut":false,"hidden":false,"merged":[]}
[]
[null,"Anos","Coeficientes"]
[null,"Até 1903",5463.93]
[null,1904,5086.29]
[null,1905,5086.29]
[null,1906,5086.29]
[null,1907,5086.29]
[null,1908,5086.29]
[null,1909,5086.29]
[null,1910,5086.29]
[null,1911,4878.32]
[null,1912,4878.32]
[null,1913,4878.32]
[null,1914,4878.32]
[null,1915,4340.22]
[null,1916,3552.49]
[null,1917,2835.94]
[null,1918,2023.36]
[null,1919,1550.68]
[null,1920,1024.6199999999999]
[null,1921,668.53]
[null,1922,495.1]
[null,1923,302.98]
[null,1924,255.06]
[null,1925,219.83]
[null,1926,219.83]
[null,1927,219.83]
[null,1928,219.83]
[null,1929,219.83]
[null,1930,219.83]
[null,1931,219.83]
[null,1932,219.83]
[null,1933,219.83]
[null,1934,219.83]
[null,1935,219.83]
[null,1936,219.83]
[null,1937,213.49]
[null,1938,213.49]
[null,1939,213.49]
[null,1940,179.65]
[null,1941,159.56]
[null,1942,137.76]
[null,1943,117.31]
[null,1944,99.56]
[null,1945,99.56]
[null,1946,99.56]
[null,1947,99.56]
[null,1948,99.56]
[null,1949,99.56]
[null,1950,99.56]
[null,1951,91.36]
[null,1952,91.36]
[null,1953,91.36]
[null,1954,91.36]
[null,1955,91.36]
[null,1956,91.36]
[null,1957,91.36]
[null,1958,85.9]
[null,1959,85.9]
[null,1960,85.9]
[null,1961,85.9]
[null,1962,85.9]
[null,1963,85.9]
[null,1964,82.09]
[null,1965,79.069999999999993]
[null,1966,75.569999999999993]
[null,1967,70.66]
[null,1968,70.66]
[null,1969,70.66]
[null,1970,65.430000000000007]
[null,1971,62.28]
[null,1972,58.22]
[null,1973,52.93]
[null,1974,40.590000000000003]
[null,1975,34.69]
[null,1976,29.06]
[null,1977,22.26]
[null,1978,17.440000000000001]
[null,1979,13.76]
[null,1980,12.4]
[null,1981,10.14]
[null,1982,8.42]
[null,1983,6.74]
[null,1984,5.23]
[null,1985,4.38]
[null,1986,3.95]
[null,1987,3.63]
[null,1988,3.26]
[null,1989,2.93]
[null,1990,2.63]
[null,1991,2.33]
[null,1992,2.13]
[null,1993,1.97]
[null,1994,1.88]
[null,1995,1.8]
[null,1996,1.76]
[null,1997,1.73]
[null,1998,1.68]
[null,1999,1.66]
[null,2000,1.63]
[null,2001,1.52]
[null,2002,1.46]
[null,2003,1.42]
[null,2004,1.4]
[null,2005,1.37]
[null,2006,1.31]
[null,2007,1.29]
[null,2008,1.25]
[null,2009,1.27]
[null,2010,1.25]
[null,2011,1.21]
[null,2012,1.17]
[null,2013,1.17]
[null,2014,1.17]
[null,2015,1.17]
[null,2016,1.1599999999999999]
[null,2017,1.1499999999999999]
[null,2018,1.1399999999999999]
[null,2019,1.1399999999999999]
[null,2020,1.1399999999999999]
[null,2021,1.1299999999999999]
[null,2022,1.04]
[null,2023,1]

{"sheet":"Art 13 CIMT","index":3,"n_rows":12,"n_cols":4,"rows_kept":12,"cut":false,"hidden":false,"merged":[]}
[]
["Intervalo","Idade do usufrutuário","Valor do Usufruto (%)","Valor da Nua Propriedade (%)"]
["0 a 20 anos",0,0.9,0.1]
["20 a 30 anos",20,0.85,0.15]
["30 a 40 anos",30,0.8,0.2]
["40 a 50 anos",40,0.7,0.3]
["50 a 60 anos",50,0.6,0.4]
["60 a 65 anos",60,0.5,0.5]
["65 a 70 anos",65,0.4,0.6]
["70 a 75 anos",70,0.3,0.7]
["75 a 80 anos",75,0.2,0.8]
["Mais de 80 anos",999,0.1,0.9]

{"sheet":"Backup","index":4,"n_rows":22,"n_cols":6,"rows_kept":22,"cut":false,"hidden":true,"merged":[]}
[]
[]
[]
[]
[]
["Direito","Usufruto","Direito","Nua Propriedade","Direito","Usufruto"]
["Quota-parte do direito",0.5,"Quota-parte do direito",0.5,"Quota-parte do direito",0.5]
["Origem","Herança de terceiro","Origem","Herança de terceiro","Origem","Herança de terceiro"]
["Valor do imóvel na doação",40000,"Valor do imóvel na doação",40000,"Valor do imóvel na doação",40000]
["Ano de aquisição",1990,"Ano de aquisição",1990,"Ano de aquisição",2013]
["Obras nos últimos 12 anos",0,"Obras nos últimos 12 anos",5000,"Obras nos últimos 12 anos",0]
["Impostos pagos na aquisição",100,"Impostos pagos na aquisição",100,"Impostos pagos na aquisição",100]
["Outros encargos dedutíveis",0,"Outros encargos dedutíveis",0,"Outros encargos dedutíveis",0]
[]
["Coeficiente de atualização",2.63,"Coeficiente de atualização",2.63,"Coeficiente de atualização",1.17]
["Despesas e encargos",100,"Despesas e encargos",5100,"Despesas e encargos",100]
["Percentagem atribuída do direito",null,"Percentagem atribuída",null,"Percentagem atribuída"]
["Quota-parte da mais-valia",null,"Mais-valia",null,"Mais-valia"]
[]
[]
["Finalidade do imóvel","Habitação secundária","Finalidade do imóvel","Habitação secundária","Finalidade do imóvel","Habitação secundária"]
["Rendimento anual coletável",null,"Rendimento anual coletável",null,"Rendimento anual coletável"]